Workbook

Sheet Read Me

Sheet Data Dictionary
A1: Term | B1: Who reports it? | C1: Definition
A2: Agency | B2: All | C2: The transit agency's name.
A3: City | B3: All | C3: The city in which the agency is headquartered.
A4: State | B4: All | C4: The state in which the agency is headquartered.
A5: Legacy NTD ID | B5: All | C5: A four-digit identifying number for each agency used in the legacy NTD system.
A6: NTD ID | B6: All | C6: A five-digit identifying number for each agency used in the current NTD system.
A7: Organization Type | B7: All | C7: Description of the agency's legal entity.
A8: Reporter Type | B8: All | C8: The type of NTD report that the agency completed this year.
A9: Primary UZA Population | B9: DOES NOT APPLY TO: Rural General Public Transit Sub-recipients, Intercity Bus Sub-recipients | C9: The population of the urbanized area primarily served by the agency.
A10: Agency VOMS | B10: DOES NOT APPLY TO: Building Reporters, Planning Reporters, Separate Service Reporters, Tribal Subsidy Reporters, Intercity Bus Sub-recipients | C10: The number of revenue vehicles operated across the whole agency to meet the annual maximum service requirement. This is the revenue vehicle count during the peak season of the year; on the week and day that maximum service is provided. Vehicles operated in maximum service (VOMS) exclude atypical days and one-time special events.
A11: Mode | B11: DOES NOT APPLY TO: Planning Reporters, Tribal Subsidy Reporters, Intercity Bus Sub-recipients | C11: A system for carrying transit passengers described by specific right-of-way (ROW), technology and operational features.
A12: Type of Service | B12: DOES NOT APPLY TO: Planning Reporters, Tribal Subsidy Reporters, Intercity Bus Sub-recipients | C12: Describes how public transportation services are provided by the transit agency: directly operated (DO) or purchased transportation (PT) services.
A13: Mode VOMS | B13: DOES NOT APPLY TO: Building Reporters, Planning Reporters, Separate Service Reporters, Tribal Subsidy Reporters, Intercity Bus Sub-recipients | C13: The number of revenue vehicles operated by the given mode and type of service to meet the annual maximum service requirement. This is the revenue vehicle count during the peak season of the year; on the week and day that maximum service is provided. Vehicles operated in maximum service (VOMS) exclude atypical days and one-time special events.
A14: Rural General Public Transit | C14: Reporter type for agencies that do not operate in an urban area and are not Tribes.
A15: Intercity Bus | C15: Reporter type for private bus lines providing non-transit service connecting wide-ranging areas.
A16: Building Reporter | C16: Reporter type for agencies that are building a new transit service but not yet operating it.
A17: Planning Reporter | C17: Reporter type for entities that expend funds in planning transit but do not operate service.
A18: Separate Service | C18: Reporter type for agencies that have a contractual relationship with another NTD reporter to provide service but do not report any service themselves.
A19: Tribal Subsidy | C19: Reporter type for Tribes that subsidize service but do not operate service or pay the full cost of service.
A20: Full Reporter | C20: Reporter type for agencies that operate urban service and complete the most detailed level of NTD report. Urban agencies that operate more than 30 vehicles or operate Fixed Guideway service are required to complete Full Reports; other urban agencies may do so if they wish.
A21: Reduced Reporter | C21: Reporter type for agencies that operate urban service but complete a simplified NTD report. Urban agencies that operate 30 or fewer vehicles and do not operate Fixed Guideway service are eligible to complete Reduced Reports. This is sometimes called a Small Systems Report.
A22: Urbanized Area (UZA) | C22: An area defined by the U. S. Census Bureau that includes: - One or more incorporated cities, villages, and towns (central place) - The adjacent densely settled surrounding territory (urban fringe) that together has a minimum of 50,000 persons The urban fringe generally consists of contiguous territory having a density of at least 1,000 persons per square mile. Urbanized areas do not conform to congressional districts or any other political boundaries.
A23: Alaska Railroad (AR) | C23: The passenger service portion of the Alaska Railroad Corporation. The service encompasses only car miles for passenger cars; car miles for freight cars are specifically excluded.
A24: Bus (MB) | C24: A transit mode comprised of rubber-tired passenger vehicles operating on fixed routes and schedules over roadways. Vehicles are powered by: - Diesel - Gasoline - Battery - Alternative fuel engines contained within the vehicle
A25: Bus Rapid Transit (RB) | C25: Fixed-route bus mode: - In which the majority of each line operates in a separated right-of-way dedicated for public transportation use during peak periods; and - That includes features that emulate the services provided by rail fixed guideway public transportation systems, including: o Defined stations o Traffic signal priority for public transportation vehicles o Short headway bidirectional services for a substantial part of weekdays and weekend days o Pre-board ticketing, platform level boarding, and separate branding This mode may include portions of service that are fixed-guideway and non-fixed-guideway.
A26: Cable Car (CC) | C26: A transit mode that is an electric railway with individually controlled transit vehicles attached to a moving cable located below the street surface and powered by engines or motors at a central location, not onboard the vehicle.
A27: Commuter Bus (CB) | C27: Fixed-route bus systems that are primarily connecting outlying areas with a central city through bus service that operates with at least five miles of continuous closed-door service. This service may operate motorcoaches (aka over-the-road buses), and usually features peak scheduling, multiple-trip tickets, and limited stops in the central city.
A28: Commuter Rail (CR) | C28: A transit mode that is an electric or diesel propelled railway for urban passenger train service consisting of local short distance travel operating between a central city and adjacent suburbs. Service must be operated on a regular basis by or under contract with a transit operator for the purpose of transporting passengers within urbanized areas (UZAs), or between urbanized areas and outlying areas. Such rail service, using either locomotive hauled or self-propelled railroad passenger cars, is generally characterized by: - Multi-trip tickets - Specific station to station fares - Railroad employment practices - Usually only one or two stations in the central business district It does not include: - Heavy rail (HR) rapid transit - Light rail (LR)/streetcar transit service Intercity rail service is excluded, except for that portion of such service that is operated by or under contract with a public transit agency for predominantly commuter services. Predominantly commuter service means that for any given trip segment (i.e., distance between any two stations), more than 50 percent of the average daily ridership makes a return trip on the same day. Only the predominantly commuter service portion of an intercity route is eligible for inclusion when determining commuter rail (CR) route miles.
A29: Demand Response (DR) | C29: A transit mode comprised of automobiles, vans or small buses operating in response to calls from passengers or their agents to the transit operator, who then dispatches a vehicle to pick up the passengers and transport them to their destinations. A demand response (DR) operation is characterized by the following: - The vehicles do not operate over a fixed route or on a fixed schedule except, perhaps, on a temporary basis to satisfy a special need; and - Typically, the vehicle may be dispatched to pick up several passengers at different pick-up points before taking them to their respective destinations and may even be interrupted en route to these destinations to pick up other passengers. The following types of operations fall under the above definitions provided they are not on a scheduled fixed route basis: - Many origins—many destinations - Many origins—one destination - One origin—many destinations - One origin—one destination
A30: Demand Response Taxi (DT) | C30: A special form of the demand response mode operated through taxicab providers. The mode is always purchased transportation type of service. In order to be reportable, there must be a system in place through which passengers can share rides.
A31: Ferryboat (FB) | C31: A transit mode comprised of vessels carrying passengers and/or vehicles over a body of water that are generally steam or diesel powered. Intercity ferryboat (FB) service is excluded, except for that portion of such service that is operated by or under contract with a public transit agency for predominantly commuter services. Predominantly commuter service means that for any given trip segment (i.e., distance between any two piers), more than 50 percent of the average daily ridership makes a return trip on the ferryboat on the same day. Only the predominantly commuter service portion of an intercity route is eligible for inclusion when determining ferryboat (FB) route miles.
A32: Heavy Rail (HR) | C32: A transit mode that is an electric railway with the capacity for a heavy volume of traffic. It is characterized by: - High speed and rapid acceleration passenger rail cars operating singly or in multi-car trains on fixed rails - Separate rights-of-way (ROW) from which all other vehicular and foot traffic are excluded - Sophisticated signaling - Raised platform loading
A33: Hybrid Rail (YR) | C33: Rail systems primarily operating routes on the National system of railroads, but not operating with the characteristics of commuter rail. This service typically operates light rail-type vehicles as diesel multipleunit trains (DMU’s). These trains do not meet Federal Railroad Administration standards, and so must operate with temporal separation from freight rail traffic.
A34: Inclined Plane (IP) | C34: A transit mode that is a railway operating over exclusive right-of-way (ROW) on steep grades (slopes) with powerless vehicles propelled by moving cables attached to the vehicles and powered by engines or motors at a central location not onboard the vehicle. The special tramway types of vehicles have passenger seats that remain horizontal while the undercarriage (truck) is angled parallel to the slope.
A35: Light Rail (LR) | C35: A transit mode that is typically an electric railway with a light volume traffic capacity compared to heavy rail (HR). It is characterized by: - Passenger rail cars operating singly (or in short, usually two car, trains) on fixed rails in shared or exclusive right-of-way (ROW) - Low or high platform loading - Vehicle power drawn from an overhead electric line via a trolley or a pantograph
A36: Monorail/Automated Guideway (MG) | C36: Monorail and Automated Guideway modes operate on exclusive guideway without using steel wheels on rails.
A37: Streetcar Rail (SR) | C37: This mode is for rail transit systems operating entire routes predominantly on streets in mixed-traffic. This service typically operates with single-car trains powered by overhead catenaries and with frequent stops.
A38: Trolleybus (TB) | C38: A transit mode comprised of electric rubber-tired passenger vehicles, manually steered and operating singly on city streets. Vehicles are propelled by a motor drawing current through overhead wires via trolleys, from a central power source not onboard the vehicle.
A39: Vanpool (VP) | C39: A transit mode comprised of vans, small buses and other vehicles operating as a ride sharing arrangement, providing transportation to a group of individuals traveling directly between their homes and a regular destination within the same geographical area.
A40: Jitney (JT) | C40: A transit mode comprising passenger cars or vans operating on fixed routes (sometimes with minor deviations) as demand warrants without fixed schedules or fixed stops.
A41: Aerial Tramway (TR) | C41: A transit mode that is an electric system of aerial cables with suspended powerless passenger vehicles. The vehicles are propelled by separate cables attached to the vehicle suspension system and powered by engines or motors at a central location not on-board the vehicle.
A42: Publico (PB) | C42: A transit mode comprised of passenger vans or small buses operating with fixed routes but no fixed schedules in Puerto Rico. Publicos (PB) are a privately owned and operated public transit service which is market oriented and unsubsidized, but regulated through a public service commission, state or local government. Publicos (PB) are operated under franchise agreements, fares are regulated by route and there are special insurance requirements. Vehicle capacity varies from 8 to 24, and the vehicles may be owned or leased by the operator.
A43: Questionable (Q) | C43: FTA marks a data point as Questionable when there is reason to believe it is incorrect, but the reporting agency has been unable to correct the data or offer an explanation for its anomalous appearance.
A44: Waived (W) | C44: FTA marks a data point as Waived when the reporting agency has not reported the data point according to NTD reporting requirements, but has received a waiver to report the data as-is for one year.
A45: ADA Accessible Stations | B45: ONLY APPLIES TO: Full Reporters, Reduced Reporters | C45: Public transportation passenger facilities which, in compliance with the Americans with Disabilities Act of 1990 (ADA), provide ready access to passengers with disabilities, including individuals who use wheelchairs, by meeting accessibility requirements of transport devices, signage, and other aids.
A46: Non-ADA Accessible Stations | B46: ONLY APPLIES TO: Full Reporters, Reduced Reporters | C46: Public transportation passenger facilities that do not provide ready access to passengers with disabilities, including individuals who use wheelchairs, by meeting accessibility requirements of transport devices, signage, and other aids.
A47: Elevators | B47: ONLY APPLIES TO: Full Reporters, Reduced Reporters | C47: A compartment that usually moves up and down vertically to transfer passengers from one level of a station or parking facility to another. Elevators may move horizontally, such as from a station to an adjacent parking garage, but such movement is normally done by non-elevator means such as a pedestrian bridge or a moving sidewalk. Does not include non-passenger elevators used only for freight or by transit staff.
A48: Escalators | B48: ONLY APPLIES TO: Full Reporters, Reduced Reporters | C48: A moving stairway that moves up and down at an angle to transfer passengers from one level of a station or parking facility to another. Does not include non-passenger escalators used only for freight or by transit staff.
A49: Stations | B49: ONLY APPLIES TO: Full Reporters, Reduced Reporters | C49: Passenger stations are significant structures in a separate right-of-way (ROW). Therefore, agencies may not report a street stop or passenger shelter as a passenger station. Passenger stations typically mean a platform area for rail modes. The following rules apply: • All rail passenger facilities are stations (except for light rail (LR), streetcar (SR), and cable car (CC) modes); • All LR, CC, and SR passenger facilities serving track that is in a separate ROW (not in mixed street traffic) that have platforms are stations; • All motorbus (MB), rapid bus (RB), commuter bus (CB), and trolley bus (TB) passenger facilities in a separate ROW that have an enclosed structure (building) for passengers for such items as ticketing, information, restrooms, concessions, and telephones are stations; • When service is operated in mixed traffic, stops on streets or in medians for CC, LR, SR, MB, RB, CB, and TB are not stations if at most they have shelters, canopies, lighting, signage or ramps for accessibility requirements, (i.e. no separate, enclosed buildings); and • All transportation, transit or transfer centers, park-and-ride facilities, and transit malls are stations if they have an enclosed structure (building) for passengers for items such as ticketing, information, restrooms, concessions, and telephones.

Sheet Stations
A1: Name | B1: City | C1: State | D1: Legacy NTD ID | E1: NTD ID | F1: Organization Type | G1: Reporter Type | H1: Primary UZA Population | I1: Agency VOMS | J1: Mode | K1: TOS | L1: Mode VOMS | M1: ADA Accessible Stations | N1: ADA Accessible Stations Questionable | O1: Non-ADA Accessible Stations | P1: Non-ADA Accessible Stations Questionable | Q1: Total Stations | R1: Total Stations Questionable | S1: Elevators | T1: Elevators Questionable | U1: Escalators | V1: Escalators Questionable | W1: Any data questionable? | Z1: =IF(Z4=1,1,0) -> 1
A2: MTA New York City Transit | B2: New York | C2: NY | D2: 2008 | E2: 20008 | F2: Subsidiary Unit of a Transit Agency, Reporting Separately | G2: Full Reporter | H2: 18351295 | I2: 11000 | J2: HR | K2: DO | L2: 5282 | M2: 106 | O2: 363 | Q2: 469 | S2: 229 | U2: 186 | W2: =IF(OR(N2="Q",P2="Q",R2="Q",T2="Q",V2="Q",),"Yes","No") -> No | Z2: Hide questionable data tags
A3: MTA New York City Transit | B3: New York | C3: NY | D3: 2008 | E3: 20008 | F3: Subsidiary Unit of a Transit Agency, Reporting Separately | G3: Full Reporter | H3: 18351295 | I3: 11000 | J3: MB | K3: DO | L3: 3314 | M3: 2 | O3: 0 | Q3: 2 | S3: 0 | U3: 0 | W3: No | Z3: Show questionable data tags
A4: MTA New York City Transit | B4: New York | C4: NY | D4: 2008 | E4: 20008 | F4: Subsidiary Unit of a Transit Agency, Reporting Separately | G4: Full Reporter | H4: 18351295 | I4: 11000 | J4: CB | K4: DO | L4: 456 | M4: 0 | O4: 0 | Q4: 0 | S4: 0 | U4: 0 | W4: No | Z4: 1
A5: MTA New York City Transit | B5: New York | C5: NY | D5: 2008 | E5: 20008 | F5: Subsidiary Unit of a Transit Agency, Reporting Separately | G5: Full Reporter | H5: 18351295 | I5: 11000 | J5: RB | K5: DO | L5: 108 | M5: 0 | O5: 0 | Q5: 0 | S5: 0 | U5: 0 | W5: No
A6: New Jersey Transit Corporation | B6: Newark | C6: NJ | D6: 2080 | E6: 20080 | F6: Other Publicly-Owned or Privately Chartered Corporation | G6: Full Reporter | H6: 18351295 | I6: 4020 | J6: MB | K6: DO | L6: 1870 | M6: 30 | O6: 0 | Q6: 30 | S6: 7 | U6: 0 | W6: No
A7: New Jersey Transit Corporation | B7: Newark | C7: NJ | D7: 2080 | E7: 20080 | F7: Other Publicly-Owned or Privately Chartered Corporation | G7: Full Reporter | H7: 18351295 | I7: 4020 | J7: CR | K7: DO | L7: 1267 | M7: 78 | O7: 87 | Q7: 165 | S7: 102 | U7: 75 | W7: No
A8: New Jersey Transit Corporation | B8: Newark | C8: NJ | D8: 2080 | E8: 20080 | F8: Other Publicly-Owned or Privately Chartered Corporation | G8: Full Reporter | H8: 18351295 | I8: 4020 | J8: MB | K8: PT | L8: 181 | M8: 0 | O8: 0 | Q8: 0 | S8: 0 | U8: 0 | W8: No
A9: New Jersey Transit Corporation | B9: Newark | C9: NJ | D9: 2080 | E9: 20080 | F9: Other Publicly-Owned or Privately Chartered Corporation | G9: Full Reporter | H9: 18351295 | I9: 4020 | J9: LR | K9: PT | L9: 42 | M9: 24 | O9: 0 | Q9: 24 | S9: 15 | U9: 0 | W9: No
A10: New Jersey Transit Corporation | B10: Newark | C10: NJ | D10: 2080 | E10: 20080 | F10: Other Publicly-Owned or Privately Chartered Corporation | G10: Full Reporter | H10: 18351295 | I10: 4020 | J10: YR | K10: PT | L10: 16 | M10: 21 | O10: 0 | Q10: 21 | S10: 0 | U10: 0 | W10: No
A11: New Jersey Transit Corporation | B11: Newark | C11: NJ | D11: 2080 | E11: 20080 | F11: Other Publicly-Owned or Privately Chartered Corporation | G11: Full Reporter | H11: 18351295 | I11: 4020 | J11: LR | K11: DO | L11: 14 | M11: 11 | O11: 6 | Q11: 17 | S11: 5 | U11: 2 | W11: No
A12: Los Angeles County Metropolitan Transportation Authority dba: Metro | B12: Los Angeles | C12: CA | D12: 9154 | E12: 90154 | F12: Independent Public Agency or Authority of Transit Service | G12: Full Reporter | H12: 12150996 | I12: 3516 | J12: MB | K12: DO | L12: 1766 | M12: 9 | O12: 0 | Q12: 9 | S12: 18 | U12: 4 | W12: No
A13: Los Angeles County Metropolitan Transportation Authority dba: Metro | B13: Los Angeles | C13: CA | D13: 9154 | E13: 90154 | F13: Independent Public Agency or Authority of Transit Service | G13: Full Reporter | H13: 12150996 | I13: 3516 | J13: LR | K13: DO | L13: 144 | M13: 66 | O13: 0 | Q13: 66 | S13: 57 | U13: 29 | W13: No
A14: Los Angeles County Metropolitan Transportation Authority dba: Metro | B14: Los Angeles | C14: CA | D14: 9154 | E14: 90154 | F14: Independent Public Agency or Authority of Transit Service | G14: Full Reporter | H14: 12150996 | I14: 3516 | J14: MB | K14: PT | L14: 125 | M14: 38 | O14: 0 | Q14: 38 | S14: 38 | U14: 35 | W14: No
A15: Los Angeles County Metropolitan Transportation Authority dba: Metro | B15: Los Angeles | C15: CA | D15: 9154 | E15: 90154 | F15: Independent Public Agency or Authority of Transit Service | G15: Full Reporter | H15: 12150996 | I15: 3516 | J15: HR | K15: DO | L15: 70 | M15: 16 | O15: 0 | Q15: 16 | S15: 49 | U15: 104 | W15: No
A16: Los Angeles County Metropolitan Transportation Authority dba: Metro | B16: Los Angeles | C16: CA | D16: 9154 | E16: 90154 | F16: Independent Public Agency or Authority of Transit Service | G16: Full Reporter | H16: 12150996 | I16: 3516 | J16: RB | K16: DO | L16: 33 | M16: 2 | O16: 0 | Q16: 2 | S16: 0 | U16: 0 | W16: No
A17: Washington Metropolitan Area Transit Authority | B17: Washington | C17: DC | D17: 3030 | E17: 30030 | F17: Independent Public Agency or Authority of Transit Service | G17: Full Reporter | H17: 4586770 | I17: 3200 | J17: MB | K17: DO | L17: 1300 | M17: 0 | O17: 0 | Q17: 0 | S17: 0 | U17: 0 | W17: No
A18: Washington Metropolitan Area Transit Authority | B18: Washington | C18: DC | D18: 3030 | E18: 30030 | F18: Independent Public Agency or Authority of Transit Service | G18: Full Reporter | H18: 4586770 | I18: 3200 | J18: HR | K18: DO | L18: 954 | M18: 91 | O18: 0 | Q18: 91 | S18: 275 | U18: 613 | W18: No
A19: Washington Metropolitan Area Transit Authority | B19: Washington | C19: DC | D19: 3030 | E19: 30030 | F19: Independent Public Agency or Authority of Transit Service | G19: Full Reporter | H19: 4586770 | I19: 3200 | J19: MB | K19: PT | L19: 44 | M19: 0 | O19: 0 | Q19: 0 | S19: 0 | U19: 0 | W19: No
A20: King County Department of Transportation - Metro Transit Division | B20: Seattle | C20: WA | D20: 1 | E20: 1 | F20: City, County or Local Government Unit or Department of Transportation | G20: Full Reporter | H20: 3059393 | I20: 2875 | J20: MB | K20: DO | L20: 871 | M20: 12 | O20: 0 | Q20: 12 | S20: 34 | U20: 40 | W20: No
A21: King County Department of Transportation - Metro Transit Division | B21: Seattle | C21: WA | D21: 1 | E21: 1 | F21: City, County or Local Government Unit or Department of Transportation | G21: Full Reporter | H21: 3059393 | I21: 2875 | J21: TB | K21: DO | L21: 129 | M21: 0 | O21: 0 | Q21: 0 | S21: 0 | U21: 0 | W21: No
A22: King County Department of Transportation - Metro Transit Division | B22: Seattle | C22: WA | D22: 1 | E22: 1 | F22: City, County or Local Government Unit or Department of Transportation | G22: Full Reporter | H22: 3059393 | I22: 2875 | J22: MB | K22: PT | L22: 30 | M22: 0 | O22: 0 | Q22: 0 | S22: 0 | U22: 0 | W22: No
A23: King County Department of Transportation - Metro Transit Division | B23: Seattle | C23: WA | D23: 1 | E23: 1 | F23: City, County or Local Government Unit or Department of Transportation | G23: Full Reporter | H23: 3059393 | I23: 2875 | J23: SR | K23: DO | L23: 3 | M23: 11 | O23: 0 | Q23: 11 | S23: 0 | U23: 0 | W23: No
A24: Chicago Transit Authority | B24: Chicago | C24: IL | D24: 5066 | E24: 50066 | F24: Independent Public Agency or Authority of Transit Service | G24: Full Reporter | H24: 8608208 | I24: 2728 | J24: MB | K24: DO | L24: 1594 | M24: 0 | O24: 0 | Q24: 0 | S24: 0 | U24: 0 | W24: No
A25: Chicago Transit Authority | B25: Chicago | C25: IL | D25: 5066 | E25: 50066 | F25: Independent Public Agency or Authority of Transit Service | G25: Full Reporter | H25: 8608208 | I25: 2728 | J25: HR | K25: DO | L25: 1134 | M25: 98 | O25: 47 | Q25: 145 | S25: 147 | U25: 158 | W25: No
A26: Massachusetts Bay Transportation Authority | B26: Boston | C26: MA | D26: 1003 | E26: 10003 | F26: Independent Public Agency or Authority of Transit Service | G26: Full Reporter | H26: 4181019 | I26: 2344 | J26: MB | K26: DO | L26: 790 | M26: 51 | O26: 0 | Q26: 51 | S26: 7 | U26: 11 | W26: No
A27: Massachusetts Bay Transportation Authority | B27: Boston | C27: MA | D27: 1003 | E27: 10003 | F27: Independent Public Agency or Authority of Transit Service | G27: Full Reporter | H27: 4181019 | I27: 2344 | J27: CR | K27: PT | L27: 421 | M27: 104 | O27: 34 | Q27: 138 | S27: 11 | U27: 4 | W27: No
A28: Massachusetts Bay Transportation Authority | B28: Boston | C28: MA | D28: 1003 | E28: 10003 | F28: Independent Public Agency or Authority of Transit Service | G28: Full Reporter | H28: 4181019 | I28: 2344 | J28: HR | K28: DO | L28: 336 | M28: 52 | O28: 2 | Q28: 54 | S28: 133 | U28: 150 | W28: No
A29: Massachusetts Bay Transportation Authority | B29: Boston | C29: MA | D29: 1003 | E29: 10003 | F29: Independent Public Agency or Authority of Transit Service | G29: Full Reporter | H29: 4181019 | I29: 2344 | J29: LR | K29: DO | L29: 151 | M29: 38 | O29: 36 | Q29: 74 | S29: 23 | U29: 18 | W29: No
A30: Massachusetts Bay Transportation Authority | B30: Boston | C30: MA | D30: 1003 | E30: 10003 | F30: Independent Public Agency or Authority of Transit Service | G30: Full Reporter | H30: 4181019 | I30: 2344 | J30: RB | K30: DO | L30: 30 | M30: 15 | O30: 0 | Q30: 15 | S30: 7 | U30: 11 | W30: No
A31: Massachusetts Bay Transportation Authority | B31: Boston | C31: MA | D31: 1003 | E31: 10003 | F31: Independent Public Agency or Authority of Transit Service | G31: Full Reporter | H31: 4181019 | I31: 2344 | J31: TB | K31: DO | L31: 10 | M31: 15 | O31: 0 | Q31: 15 | S31: 7 | U31: 11 | W31: No
A32: Massachusetts Bay Transportation Authority | B32: Boston | C32: MA | D32: 1003 | E32: 10003 | F32: Independent Public Agency or Authority of Transit Service | G32: Full Reporter | H32: 4181019 | I32: 2344 | J32: FB | K32: PT | L32: 8 | M32: 8 | O32: 1 | Q32: 9 | S32: 0 | U32: 0 | W32: No
A33: Massachusetts Bay Transportation Authority | B33: Boston | C33: MA | D33: 1003 | E33: 10003 | F33: Independent Public Agency or Authority of Transit Service | G33: Full Reporter | H33: 4181019 | I33: 2344 | J33: MB | K33: PT | L33: 8 | M33: 0 | O33: 0 | Q33: 0 | S33: 0 | U33: 0 | W33: No
A34: Southeastern Pennsylvania Transportation Authority | B34: Philadelphia | C34: PA | D34: 3019 | E34: 30019 | F34: Independent Public Agency or Authority of Transit Service | G34: Full Reporter | H34: 5441567 | I34: 2340 | J34: MB | K34: DO | L34: 1172 | M34: 0 | O34: 0 | Q34: 0 | S34: 0 | U34: 0 | W34: No
A35: Southeastern Pennsylvania Transportation Authority | B35: Philadelphia | C35: PA | D35: 3019 | E35: 30019 | F35: Independent Public Agency or Authority of Transit Service | G35: Full Reporter | H35: 5441567 | I35: 2340 | J35: CR | K35: DO | L35: 339 | M35: 68 | O35: 86 | Q35: 154 | S35: 34 | U35: 22 | W35: No
A36: Southeastern Pennsylvania Transportation Authority | B36: Philadelphia | C36: PA | D36: 3019 | E36: 30019 | F36: Independent Public Agency or Authority of Transit Service | G36: Full Reporter | H36: 5441567 | I36: 2340 | J36: HR | K36: DO | L36: 287 | M36: 37 | O36: 38 | Q36: 75 | S36: 72 | U36: 36 | W36: No
A37: Southeastern Pennsylvania Transportation Authority | B37: Philadelphia | C37: PA | D37: 3019 | E37: 30019 | F37: Independent Public Agency or Authority of Transit Service | G37: Full Reporter | H37: 5441567 | I37: 2340 | J37: SR | K37: DO | L37: 124 | M37: 2 | O37: 43 | Q37: 45 | S37: 4 | U37: 1 | W37: No
A38: Southeastern Pennsylvania Transportation Authority | B38: Philadelphia | C38: PA | D38: 3019 | E38: 30019 | F38: Independent Public Agency or Authority of Transit Service | G38: Full Reporter | H38: 5441567 | I38: 2340 | J38: TB | K38: DO | L38: 30 | M38: 0 | O38: 0 | Q38: 0 | S38: 0 | U38: 0 | W38: No
A39: Metropolitan Transit Authority of Harris County, Texas | B39: Houston | C39: TX | D39: 6008 | E39: 60008 | F39: Independent Public Agency or Authority of Transit Service | G39: Full Reporter | H39: 4944332 | I39: 2240 | J39: MB | K39: DO | L39: 610 | M39: 44 | O39: 0 | Q39: 44 | S39: 5 | U39: 2 | W39: No
A40: Metropolitan Transit Authority of Harris County, Texas | B40: Houston | C40: TX | D40: 6008 | E40: 60008 | F40: Independent Public Agency or Authority of Transit Service | G40: Full Reporter | H40: 4944332 | I40: 2240 | J40: CB | K40: DO | L40: 232 | M40: 34 | O40: 0 | Q40: 34 | S40: 3 | U40: 2 | W40: No
A41: Metropolitan Transit Authority of Harris County, Texas | B41: Houston | C41: TX | D41: 6008 | E41: 60008 | F41: Independent Public Agency or Authority of Transit Service | G41: Full Reporter | H41: 4944332 | I41: 2240 | J41: MB | K41: PT | L41: 143 | M41: 24 | O41: 0 | Q41: 24 | S41: 3 | U41: 2 | W41: No
A42: Metropolitan Transit Authority of Harris County, Texas | B42: Houston | C42: TX | D42: 6008 | E42: 60008 | F42: Independent Public Agency or Authority of Transit Service | G42: Full Reporter | H42: 4944332 | I42: 2240 | J42: CB | K42: PT | L42: 60 | M42: 15 | O42: 0 | Q42: 15 | S42: 3 | U42: 0 | W42: No
A43: Metropolitan Transit Authority of Harris County, Texas | B43: Houston | C43: TX | D43: 6008 | E43: 60008 | F43: Independent Public Agency or Authority of Transit Service | G43: Full Reporter | H43: 4944332 | I43: 2240 | J43: LR | K43: DO | L43: 51 | M43: 39 | O43: 0 | Q43: 39 | S43: 6 | U43: 2 | W43: No
A44: Pace - Suburban Bus Division | B44: Arlington Heights | C44: IL | D44: 5113 | E44: 50113 | F44: Independent Public Agency or Authority of Transit Service | G44: Full Reporter | H44: 8608208 | I44: 1638 | J44: MB | K44: DO | L44: 520 | M44: 128 | O44: 32 | Q44: 160 | S44: 25 | U44: 25 | W44: No
A45: Pace - Suburban Bus Division | B45: Arlington Heights | C45: IL | D45: 5113 | E45: 50113 | F45: Independent Public Agency or Authority of Transit Service | G45: Full Reporter | H45: 8608208 | I45: 1638 | J45: MB | K45: PT | L45: 93 | M45: 27 | O45: 2 | Q45: 29 | S45: 1 | U45: 1 | W45: No
A46: Orange County Transportation Authority | B46: Orange | C46: CA | D46: 9036 | E46: 90036 | F46: Independent Public Agency or Authority of Transit Service | G46: Full Reporter | H46: 12150996 | I46: 1528 | J46: MB | K46: DO | L46: 293 | M46: 14 | O46: 0 | Q46: 14 | S46: 10 | U46: 0 | W46: No
A47: Orange County Transportation Authority | B47: Orange | C47: CA | D47: 9036 | E47: 90036 | F47: Independent Public Agency or Authority of Transit Service | G47: Full Reporter | H47: 12150996 | I47: 1528 | J47: MB | K47: PT | L47: 158 | M47: 14 | O47: 0 | Q47: 14 | S47: 10 | U47: 0 | W47: No
A48: Orange County Transportation Authority | B48: Orange | C48: CA | D48: 9036 | E48: 90036 | F48: Independent Public Agency or Authority of Transit Service | G48: Full Reporter | H48: 12150996 | I48: 1528 | J48: CB | K48: PT | L48: 23 | M48: 6 | O48: 0 | Q48: 6 | S48: 6 | U48: 0 | W48: No
A49: Orange County Transportation Authority | B49: Orange | C49: CA | D49: 9036 | E49: 90036 | F49: Independent Public Agency or Authority of Transit Service | G49: Full Reporter | H49: 12150996 | I49: 1528 | J49: CB | K49: DO | L49: 6 | M49: 4 | O49: 0 | Q49: 4 | S49: 0 | U49: 0 | W49: No
A50: San Francisco Municipal Railway | B50: San Francisco | C50: CA | D50: 9015 | E50: 90015 | F50: City, County or Local Government Unit or Department of Transportation | G50: Full Reporter | H50: 3281212 | I50: 1524 | J50: MB | K50: DO | L50: 430 | M50: 0 | O50: 0 | Q50: 0 | S50: 0 | U50: 0 | W50: No
A51: San Francisco Municipal Railway | B51: San Francisco | C51: CA | D51: 9015 | E51: 90015 | F51: City, County or Local Government Unit or Department of Transportation | G51: Full Reporter | H51: 3281212 | I51: 1524 | J51: TB | K51: DO | L51: 196 | M51: 0 | O51: 0 | Q51: 0 | S51: 0 | U51: 0 | W51: No
A52: San Francisco Municipal Railway | B52: San Francisco | C52: CA | D52: 9015 | E52: 90015 | F52: City, County or Local Government Unit or Department of Transportation | G52: Full Reporter | H52: 3281212 | I52: 1524 | J52: LR | K52: DO | L52: 131 | M52: 9 | O52: 0 | Q52: 9 | S52: 11 | U52: 28 | W52: No
A53: San Francisco Municipal Railway | B53: San Francisco | C53: CA | D53: 9015 | E53: 90015 | F53: City, County or Local Government Unit or Department of Transportation | G53: Full Reporter | H53: 3281212 | I53: 1524 | J53: CC | K53: DO | L53: 27 | M53: 0 | O53: 0 | Q53: 0 | S53: 0 | U53: 0 | W53: No
A54: San Francisco Municipal Railway | B54: San Francisco | C54: CA | D54: 9015 | E54: 90015 | F54: City, County or Local Government Unit or Department of Transportation | G54: Full Reporter | H54: 3281212 | I54: 1524 | J54: SR | K54: DO | L54: 24 | M54: 0 | O54: 0 | Q54: 0 | S54: 0 | U54: 0 | W54: No
A55: Maryland Transit Administration | B55: Baltimore | C55: MD | D55: 3034 | E55: 30034 | F55: State Government Unit or Department of Transportation | G55: Full Reporter | H55: 2203663 | I55: 1491 | J55: MB | K55: DO | L55: 620 | M55: 0 | O55: 0 | Q55: 0 | S55: 0 | U55: 0 | W55: No
A56: Maryland Transit Administration | B56: Baltimore | C56: MD | D56: 3034 | E56: 30034 | F56: State Government Unit or Department of Transportation | G56: Full Reporter | H56: 2203663 | I56: 1491 | J56: CB | K56: PT | L56: 192 | M56: 0 | O56: 0 | Q56: 0 | S56: 0 | U56: 0 | W56: No
A57: Maryland Transit Administration | B57: Baltimore | C57: MD | D57: 3034 | E57: 30034 | F57: State Government Unit or Department of Transportation | G57: Full Reporter | H57: 2203663 | I57: 1491 | J57: CR | K57: PT | L57: 142 | M57: 24 | O57: 18 | Q57: 42 | S57: 10 | U57: 3 | W57: No
A58: Maryland Transit Administration | B58: Baltimore | C58: MD | D58: 3034 | E58: 30034 | F58: State Government Unit or Department of Transportation | G58: Full Reporter | H58: 2203663 | I58: 1491 | J58: HR | K58: DO | L58: 54 | M58: 14 | O58: 0 | Q58: 14 | S58: 27 | U58: 81 | W58: No
A59: Maryland Transit Administration | B59: Baltimore | C59: MD | D59: 3034 | E59: 30034 | F59: State Government Unit or Department of Transportation | G59: Full Reporter | H59: 2203663 | I59: 1491 | J59: LR | K59: DO | L59: 38 | M59: 33 | O59: 0 | Q59: 33 | S59: 1 | U59: 0 | W59: No
A60: Denver Regional Transportation District | B60: Denver | C60: CO | D60: 8006 | E60: 80006 | F60: Independent Public Agency or Authority of Transit Service | G60: Full Reporter | H60: 2374203 | I60: 1395 | J60: MB | K60: DO | L60: 482 | M60: 4 | O60: 0 | Q60: 4 | S60: 13 | U60: 8 | W60: No
A61: Denver Regional Transportation District | B61: Denver | C61: CO | D61: 8006 | E61: 80006 | F61: Independent Public Agency or Authority of Transit Service | G61: Full Reporter | H61: 2374203 | I61: 1395 | J61: MB | K61: PT | L61: 372 | M61: 4 | O61: 0 | Q61: 4 | S61: 13 | U61: 8 | W61: No
A62: Denver Regional Transportation District | B62: Denver | C62: CO | D62: 8006 | E62: 80006 | F62: Independent Public Agency or Authority of Transit Service | G62: Full Reporter | H62: 2374203 | I62: 1395 | J62: LR | K62: DO | L62: 137 | M62: 46 | O62: 0 | Q62: 46 | S62: 49 | U62: 0 | W62: No
A63: Metro-North Commuter Railroad Company, dba: MTA Metro-North Railroad | B63: New York | C63: NY | D63: 2078 | E63: 20078 | F63: Subsidiary Unit of a Transit Agency, Reporting Separately | G63: Full Reporter | H63: 18351295 | I63: 1199 | J63: CR | K63: DO | L63: 1188 | M63: 46 | O63: 66 | Q63: 112 | S63: 142 | U63: 36 | W63: No
A64: Metro-North Commuter Railroad Company, dba: MTA Metro-North Railroad | B64: New York | C64: NY | D64: 2078 | E64: 20078 | F64: Subsidiary Unit of a Transit Agency, Reporting Separately | G64: Full Reporter | H64: 18351295 | I64: 1199 | J64: MB | K64: PT | L64: 9 | M64: 1 | O64: 1 | Q64: 2 | S64: 2 | U64: 0 | W64: No
A65: Metro-North Commuter Railroad Company, dba: MTA Metro-North Railroad | B65: New York | C65: NY | D65: 2078 | E65: 20078 | F65: Subsidiary Unit of a Transit Agency, Reporting Separately | G65: Full Reporter | H65: 18351295 | I65: 1199 | J65: FB | K65: PT | L65: 2 | M65: 2 | O65: 0 | Q65: 2 | S65: 5 | U65: 0 | W65: No
A66: Miami-Dade Transit | B66: Miami | C66: FL | D66: 4034 | E66: 40034 | F66: City, County or Local Government Unit or Department of Transportation | G66: Full Reporter | H66: 5502379 | I66: 1129 | J66: MB | K66: DO | L66: 672 | M66: 0 | O66: 0 | Q66: 0 | S66: 0 | U66: 0 | W66: =IF(OR(N66="Q",P66="Q",R66="Q",T66="Q",V66="Q",),"Yes","No") -> No
A67: Miami-Dade Transit | B67: Miami | C67: FL | D67: 4034 | E67: 40034 | F67: City, County or Local Government Unit or Department of Transportation | G67: Full Reporter | H67: 5502379 | I67: 1129 | J67: HR | K67: DO | L67: 80 | M67: 23 | O67: 0 | Q67: 23 | S67: 65 | U67: 68 | W67: No
A68: Miami-Dade Transit | B68: Miami | C68: FL | D68: 4034 | E68: 40034 | F68: City, County or Local Government Unit or Department of Transportation | G68: Full Reporter | H68: 5502379 | I68: 1129 | J68: MG | K68: DO | L68: 23 | M68: 21 | O68: 0 | Q68: 21 | S68: 21 | U68: 18 | W68: No
A69: Miami-Dade Transit | B69: Miami | C69: FL | D69: 4034 | E69: 40034 | F69: City, County or Local Government Unit or Department of Transportation | G69: Full Reporter | H69: 5502379 | I69: 1129 | J69: CB | K69: PT | L69: 7 | M69: 0 | O69: 0 | Q69: 0 | S69: 0 | U69: 0 | W69: No
A70: Utah Transit Authority | B70: Salt Lake City | C70: UT | D70: 8001 | E70: 80001 | F70: Independent Public Agency or Authority of Transit Service | G70: Full Reporter | H70: 1021243 | I70: 1104 | J70: MB | K70: DO | L70: 401 | M70: 28 | O70: 0 | Q70: 28 | S70: 0 | U70: 0 | W70: No
A71: Utah Transit Authority | B71: Salt Lake City | C71: UT | D71: 8001 | E71: 80001 | F71: Independent Public Agency or Authority of Transit Service | G71: Full Reporter | H71: 1021243 | I71: 1104 | J71: LR | K71: DO | L71: 91 | M71: 56 | O71: 0 | Q71: 56 | S71: 6 | U71: 0 | W71: No
A72: Utah Transit Authority | B72: Salt Lake City | C72: UT | D72: 8001 | E72: 80001 | F72: Independent Public Agency or Authority of Transit Service | G72: Full Reporter | H72: 1021243 | I72: 1104 | J72: CB | K72: DO | L72: 42 | M72: 0 | O72: 0 | Q72: 0 | S72: 0 | U72: 0 | W72: No
A73: Utah Transit Authority | B73: Salt Lake City | C73: UT | D73: 8001 | E73: 80001 | F73: Independent Public Agency or Authority of Transit Service | G73: Full Reporter | H73: 1021243 | I73: 1104 | J73: CR | K73: DO | L73: 36 | M73: 16 | O73: 0 | Q73: 16 | S73: 6 | U73: 2 | W73: No
A74: Utah Transit Authority | B74: Salt Lake City | C74: UT | D74: 8001 | E74: 80001 | F74: Independent Public Agency or Authority of Transit Service | G74: Full Reporter | H74: 1021243 | I74: 1104 | J74: MB | K74: PT | L74: 5 | M74: 1 | O74: 0 | Q74: 1 | S74: 0 | U74: 0 | W74: No
A75: MTA Bus Company | B75: New York | C75: NY | D75: 2188 | E75: 20188 | F75: Subsidiary Unit of a Transit Agency, Reporting Separately | G75: Full Reporter | H75: 18351295 | I75: 1091 | J75: MB | K75: DO | L75: 1091 | M75: 1 | O75: 1 | Q75: 2 | S75: 0 | U75: 0 | W75: No
A76: Northeast Illinois Regional Commuter Railroad Corporation dba: Metra Rail | B76: Chicago | C76: IL | D76: 5118 | E76: 50118 | F76: Independent Public Agency or Authority of Transit Service | G76: Full Reporter | H76: 8608208 | I76: 1062 | J76: CR | K76: DO | L76: 1062 | M76: 181 | O76: 60 | Q76: 241 | S76: 36 | U76: 24 | W76: No
A77: Dallas Area Rapid Transit | B77: Dallas | C77: TX | D77: 6056 | E77: 60056 | F77: Independent Public Agency or Authority of Transit Service | G77: Full Reporter | H77: 5121892 | I77: 1042 | J77: MB | K77: DO | L77: 535 | M77: 18 | O77: 0 | Q77: 18 | S77: 0 | U77: 0 | W77: No
A78: Dallas Area Rapid Transit | B78: Dallas | C78: TX | D78: 6056 | E78: 60056 | F78: Independent Public Agency or Authority of Transit Service | G78: Full Reporter | H78: 5121892 | I78: 1042 | J78: LR | K78: DO | L78: 105 | M78: 62 | O78: 0 | Q78: 62 | S78: 30 | U78: 8 | W78: No
A79: Dallas Area Rapid Transit | B79: Dallas | C79: TX | D79: 6056 | E79: 60056 | F79: Independent Public Agency or Authority of Transit Service | G79: Full Reporter | H79: 5121892 | I79: 1042 | J79: CR | K79: PT | L79: 23 | M79: 10 | O79: 0 | Q79: 10 | S79: 2 | U79: 0 | W79: No
A80: Dallas Area Rapid Transit | B80: Dallas | C80: TX | D80: 6056 | E80: 60056 | F80: Independent Public Agency or Authority of Transit Service | G80: Full Reporter | H80: 5121892 | I80: 1042 | J80: SR | K80: DO | L80: 1 | M80: 4 | O80: 0 | Q80: 4 | S80: 0 | U80: 0 | W80: No
A81: MTA Long Island Rail Road | B81: Jamaica | C81: NY | D81: 2100 | E81: 20100 | F81: Subsidiary Unit of a Transit Agency, Reporting Separately | G81: Full Reporter | H81: 18351295 | I81: 1019 | J81: CR | K81: DO | L81: 1019 | M81: 103 | O81: 21 | Q81: 124 | S81: 37 | U81: 19 | W81: No
A82: Tri-County Metropolitan Transportation District of Oregon | B82: Portland | C82: OR | D82: 8 | E82: 8 | F82: Independent Public Agency or Authority of Transit Service | G82: Full Reporter | H82: 1849898 | I82: 918 | J82: MB | K82: DO | L82: 534 | M82: 6 | O82: 0 | Q82: 6 | S82: 0 | U82: 0 | W82: No
A83: Tri-County Metropolitan Transportation District of Oregon | B83: Portland | C83: OR | D83: 8 | E83: 8 | F83: Independent Public Agency or Authority of Transit Service | G83: Full Reporter | H83: 1849898 | I83: 918 | J83: LR | K83: DO | L83: 104 | M83: 37 | O83: 0 | Q83: 37 | S83: 12 | U83: 0 | W83: No
A84: Tri-County Metropolitan Transportation District of Oregon | B84: Portland | C84: OR | D84: 8 | E84: 8 | F84: Independent Public Agency or Authority of Transit Service | G84: Full Reporter | H84: 1849898 | I84: 918 | J84: YR | K84: PT | L84: 4 | M84: 5 | O84: 0 | Q84: 5 | S84: 0 | U84: 0 | W84: No
A85: Port Authority of Allegheny County | B85: Pittsburgh | C85: PA | D85: 3022 | E85: 30022 | F85: Independent Public Agency or Authority of Transit Service | G85: Full Reporter | H85: 1733853 | I85: 912 | J85: MB | K85: DO | L85: 575 | M85: 16 | O85: 0 | Q85: 16 | S85: 0 | U85: 0 | W85: No
A86: Port Authority of Allegheny County | B86: Pittsburgh | C86: PA | D86: 3022 | E86: 30022 | F86: Independent Public Agency or Authority of Transit Service | G86: Full Reporter | H86: 1733853 | I86: 912 | J86: LR | K86: DO | L86: 56 | M86: 26 | O86: 0 | Q86: 26 | S86: 17 | U86: 21 | W86: No
A87: Port Authority of Allegheny County | B87: Pittsburgh | C87: PA | D87: 3022 | E87: 30022 | F87: Independent Public Agency or Authority of Transit Service | G87: Full Reporter | H87: 1733853 | I87: 912 | J87: IP | K87: DO | L87: 2 | M87: 2 | O87: 0 | Q87: 2 | S87: 0 | U87: 0 | W87: No
A88: Metro Transit | B88: Minneapolis | C88: MN | D88: 5027 | E88: 50027 | F88: Subsidiary Unit of a Transit Agency, Reporting Separately | G88: Full Reporter | H88: 2650890 | I88: 885 | J88: MB | K88: DO | L88: 793 | M88: 36 | O88: 0 | Q88: 36 | S88: 32 | U88: 17 | W88: No
A89: Metro Transit | B89: Minneapolis | C89: MN | D89: 5027 | E89: 50027 | F89: Subsidiary Unit of a Transit Agency, Reporting Separately | G89: Full Reporter | H89: 2650890 | I89: 885 | J89: LR | K89: DO | L89: 72 | M89: 37 | O89: 0 | Q89: 37 | S89: 16 | U89: 9 | W89: No
A90: Metro Transit | B90: Minneapolis | C90: MN | D90: 5027 | E90: 50027 | F90: Subsidiary Unit of a Transit Agency, Reporting Separately | G90: Full Reporter | H90: 2650890 | I90: 885 | J90: CR | K90: PT | L90: 20 | M90: 7 | O90: 0 | Q90: 7 | S90: 10 | U90: 1 | W90: No
A91: Metropolitan Atlanta Rapid Transit Authority | B91: Atlanta | C91: GA | D91: 4022 | E91: 40022 | F91: Independent Public Agency or Authority of Transit Service | G91: Full Reporter | H91: 4515419 | I91: 838 | J91: MB | K91: DO | L91: 451 | M91: 1 | O91: 0 | Q91: 1 | S91: 0 | U91: 0 | W91: No
A92: Metropolitan Atlanta Rapid Transit Authority | B92: Atlanta | C92: GA | D92: 4022 | E92: 40022 | F92: Independent Public Agency or Authority of Transit Service | G92: Full Reporter | H92: 4515419 | I92: 838 | J92: HR | K92: DO | L92: 224 | M92: 38 | O92: 0 | Q92: 38 | S92: 97 | U92: 149 | W92: No
A93: City and County of Honolulu Department of Transportation Services | B93: Honolulu | C93: HI | D93: 9002 | E93: 90002 | F93: City, County or Local Government Unit or Department of Transportation | G93: Full Reporter | H93: 802459 | I93: 799 | J93: MB | K93: PT | L93: 442 | M93: 1 | O93: 0 | Q93: 1 | S93: 0 | U93: 0 | W93: No
A94: VIA Metropolitan Transit | B94: San Antonio | C94: TX | D94: 6011 | E94: 60011 | F94: Independent Public Agency or Authority of Transit Service | G94: Full Reporter | H94: 1758210 | I94: 786 | J94: MB | K94: DO | L94: 372 | M94: 9 | O94: 0 | Q94: 9 | S94: 1 | U94: 0 | W94: No
A95: San Diego Metropolitan Transit System | B95: San Diego | C95: CA | D95: 9026 | E95: 90026 | F95: Independent Public Agency or Authority of Transit Service | G95: Full Reporter | H95: 2956746 | I95: 732 | J95: MB | K95: PT | L95: 255 | M95: 0 | O95: 0 | Q95: 0 | S95: 0 | U95: 0 | W95: No
A96: San Diego Metropolitan Transit System | B96: San Diego | C96: CA | D96: 9026 | E96: 90026 | F96: Independent Public Agency or Authority of Transit Service | G96: Full Reporter | H96: 2956746 | I96: 732 | J96: MB | K96: DO | L96: 215 | M96: 4 | O96: 0 | Q96: 4 | S96: 1 | U96: 0 | W96: No
A97: San Diego Metropolitan Transit System | B97: San Diego | C97: CA | D97: 9026 | E97: 90026 | F97: Independent Public Agency or Authority of Transit Service | G97: Full Reporter | H97: 2956746 | I97: 732 | J97: LR | K97: DO | L97: 97 | M97: 53 | O97: 0 | Q97: 53 | S97: 10 | U97: 4 | W97: No
A98: San Diego Metropolitan Transit System | B98: San Diego | C98: CA | D98: 9026 | E98: 90026 | F98: Independent Public Agency or Authority of Transit Service | G98: Full Reporter | H98: 2956746 | I98: 732 | J98: CB | K98: PT | L98: 18 | M98: 0 | O98: 0 | Q98: 0 | S98: 0 | U98: 0 | W98: No
A99: Santa Clara Valley Transportation Authority | B99: San Jose | C99: CA | D99: 9013 | E99: 90013 | F99: Independent Public Agency or Authority of Transit Service | G99: Full Reporter | H99: 1664496 | I99: 679 | J99: MB | K99: DO | L99: 384 | M99: 12 | O99: 0 | Q99: 12 | S99: 1 | U99: 0 | W99: No
A100: Santa Clara Valley Transportation Authority | B100: San Jose | C100: CA | D100: 9013 | E100: 90013 | F100: Independent Public Agency or Authority of Transit Service | G100: Full Reporter | H100: 1664496 | I100: 679 | J100: LR | K100: DO | L100: 59 | M100: 64 | O100: 0 | Q100: 64 | S100: 28 | U100: 10 | W100: No
A101: Santa Clara Valley Transportation Authority | B101: San Jose | C101: CA | D101: 9013 | E101: 90013 | F101: Independent Public Agency or Authority of Transit Service | G101: Full Reporter | H101: 1664496 | I101: 679 | J101: MB | K101: PT | L101: 11 | M101: 1 | O101: 0 | Q101: 1 | S101: 0 | U101: 0 | W101: No
A102: Capital Metropolitan Transportation Authority | B102: Austin | C102: TX | D102: 6048 | E102: 60048 | F102: Independent Public Agency or Authority of Transit Service | G102: Full Reporter | H102: 1362416 | I102: 674 | J102: MB | K102: PT | L102: 301 | M102: 6 | O102: 0 | Q102: 6 | S102: 0 | U102: 0 | W102: No
A103: Capital Metropolitan Transportation Authority | B103: Austin | C103: TX | D103: 6048 | E103: 60048 | F103: Independent Public Agency or Authority of Transit Service | G103: Full Reporter | H103: 1362416 | I103: 674 | J103: CB | K103: PT | L103: 35 | M103: 2 | O103: 0 | Q103: 2 | S103: 0 | U103: 0 | W103: No
A104: Capital Metropolitan Transportation Authority | B104: Austin | C104: TX | D104: 6048 | E104: 60048 | F104: Independent Public Agency or Authority of Transit Service | G104: Full Reporter | H104: 1362416 | I104: 674 | J104: YR | K104: PT | L104: 4 | M104: 9 | O104: 0 | Q104: 9 | S104: 0 | U104: 0 | W104: No
A105: Alameda-Contra Costa Transit District | B105: Oakland | C105: CA | D105: 9014 | E105: 90014 | F105: Independent Public Agency or Authority of Transit Service | G105: Full Reporter | H105: 3281212 | I105: 667 | J105: MB | K105: DO | L105: 362 | M105: 3 | O105: 0 | Q105: 3 | S105: 13 | U105: 0 | W105: No
A106: Alameda-Contra Costa Transit District | B106: Oakland | C106: CA | D106: 9014 | E106: 90014 | F106: Independent Public Agency or Authority of Transit Service | G106: Full Reporter | H106: 3281212 | I106: 667 | J106: CB | K106: DO | L106: 104 | M106: 3 | O106: 0 | Q106: 3 | S106: 9 | U106: 0 | W106: No
A107: Alameda-Contra Costa Transit District | B107: Oakland | C107: CA | D107: 9014 | E107: 90014 | F107: Independent Public Agency or Authority of Transit Service | G107: Full Reporter | H107: 3281212 | I107: 667 | J107: MB | K107: PT | L107: 14 | M107: 0 | O107: 0 | Q107: 0 | S107: 0 | U107: 0 | W107: No
A108: Regional Transportation Commission of Southern Nevada | B108: Las Vegas | C108: NV | D108: 9045 | E108: 90045 | F108: Independent Public Agency or Authority of Transit Service | G108: Full Reporter | H108: 1886011 | I108: 660 | J108: MB | K108: PT | L108: 300 | M108: 4 | O108: 0 | Q108: 4 | S108: 0 | U108: 0 | W108: No
A109: Regional Transportation Commission of Southern Nevada | B109: Las Vegas | C109: NV | D109: 9045 | E109: 90045 | F109: Independent Public Agency or Authority of Transit Service | G109: Full Reporter | H109: 1886011 | I109: 660 | J109: RB | K109: PT | L109: 33 | M109: 1 | O109: 0 | Q109: 1 | S109: 0 | U109: 0 | W109: No
A110: Snohomish County Public Transportation Benefit Area Corporation | B110: Everett | C110: WA | D110: 29 | E110: 29 | F110: Independent Public Agency or Authority of Transit Service | G110: Full Reporter | H110: 3059393 | I110: 608 | J110: MB | K110: DO | L110: 93 | M110: 2 | O110: 0 | Q110: 2 | S110: 0 | U110: 0 | W110: No
A111: Snohomish County Public Transportation Benefit Area Corporation | B111: Everett | C111: WA | D111: 29 | E111: 29 | F111: Independent Public Agency or Authority of Transit Service | G111: Full Reporter | H111: 3059393 | I111: 608 | J111: CB | K111: PT | L111: 53 | M111: 2 | O111: 0 | Q111: 2 | S111: 0 | U111: 0 | W111: No
A112: Snohomish County Public Transportation Benefit Area Corporation | B112: Everett | C112: WA | D112: 29 | E112: 29 | F112: Independent Public Agency or Authority of Transit Service | G112: Full Reporter | H112: 3059393 | I112: 608 | J112: CB | K112: DO | L112: 49 | M112: 2 | O112: 0 | Q112: 2 | S112: 0 | U112: 0 | W112: No
A113: City of Phoenix Public Transit Department dba Valley Metro | B113: Phoenix | C113: AZ | D113: 9032 | E113: 90032 | F113: City, County or Local Government Unit or Department of Transportation | G113: Full Reporter | H113: 3629114 | I113: 571 | J113: MB | K113: PT | L113: 447 | M113: 4 | O113: 0 | Q113: 4 | S113: 0 | U113: 0 | W113: No
A114: Central Florida Regional Transportation Authority | B114: Orlando | C114: FL | D114: 4035 | E114: 40035 | F114: Independent Public Agency or Authority of Transit Service | G114: Full Reporter | H114: 1510516 | I114: 560 | J114: MB | K114: DO | L114: 238 | M114: 2 | O114: 0 | Q114: 2 | S114: 0 | U114: 0 | W114: No
A115: Central Florida Regional Transportation Authority | B115: Orlando | C115: FL | D115: 4035 | E115: 40035 | F115: Independent Public Agency or Authority of Transit Service | G115: Full Reporter | H115: 1510516 | I115: 560 | J115: MB | K115: PT | L115: 15 | M115: 0 | O115: 0 | Q115: 0 | S115: 0 | U115: 0 | W115: No
A116: Central Florida Regional Transportation Authority | B116: Orlando | C116: FL | D116: 4035 | E116: 40035 | F116: Independent Public Agency or Authority of Transit Service | G116: Full Reporter | H116: 1510516 | I116: 560 | J116: RB | K116: DO | L116: 12 | M116: 1 | O116: 0 | Q116: 1 | S116: 0 | U116: 0 | W116: No
A117: Central Florida Regional Transportation Authority | B117: Orlando | C117: FL | D117: 4035 | E117: 40035 | F117: Independent Public Agency or Authority of Transit Service | G117: Full Reporter | H117: 1510516 | I117: 560 | J117: CB | K117: PT | L117: 2 | M117: 0 | O117: 0 | Q117: 0 | S117: 0 | U117: 0 | W117: No
A118: The Greater Cleveland Regional Transit Authority | B118: Cleveland | C118: OH | D118: 5015 | E118: 50015 | F118: Independent Public Agency or Authority of Transit Service | G118: Full Reporter | H118: 1780673 | I118: 547 | J118: MB | K118: DO | L118: 350 | M118: 6 | O118: 0 | Q118: 6 | S118: 0 | U118: 0 | W118: No
A119: The Greater Cleveland Regional Transit Authority | B119: Cleveland | C119: OH | D119: 5015 | E119: 50015 | F119: Independent Public Agency or Authority of Transit Service | G119: Full Reporter | H119: 1780673 | I119: 547 | J119: HR | K119: DO | L119: 20 | M119: 15 | O119: 3 | Q119: 18 | S119: 17 | U119: 11 | W119: No
A120: The Greater Cleveland Regional Transit Authority | B120: Cleveland | C120: OH | D120: 5015 | E120: 50015 | F120: Independent Public Agency or Authority of Transit Service | G120: Full Reporter | H120: 1780673 | I120: 547 | J120: RB | K120: DO | L120: 16 | M120: 6 | O120: 0 | Q120: 6 | S120: 6 | U120: 0 | W120: No
A121: The Greater Cleveland Regional Transit Authority | B121: Cleveland | C121: OH | D121: 5015 | E121: 50015 | F121: Independent Public Agency or Authority of Transit Service | G121: Full Reporter | H121: 1780673 | I121: 547 | J121: LR | K121: DO | L121: 14 | M121: 10 | O121: 24 | Q121: 34 | S121: 4 | U121: 0 | W121: No
A122: San Francisco Bay Area Rapid Transit District | B122: Oakland | C122: CA | D122: 9003 | E122: 90003 | F122: Independent Public Agency or Authority of Transit Service | G122: Full Reporter | H122: 3281212 | I122: 538 | J122: HR | K122: DO | L122: 534 | M122: 44 | O122: 0 | Q122: 44 | S122: 126 | U122: 177 | W122: No
A123: San Francisco Bay Area Rapid Transit District | B123: Oakland | C123: CA | D123: 9003 | E123: 90003 | F123: Independent Public Agency or Authority of Transit Service | G123: Full Reporter | H123: 3281212 | I123: 538 | J123: MG | K123: PT | L123: 4 | M123: 1 | O123: 0 | Q123: 1 | S123: 2 | U123: 4 | W123: No
A124: Pierce County Transportation Benefit Area Authority | B124: Tacoma | C124: WA | D124: 3 | E124: 3 | F124: Independent Public Agency or Authority of Transit Service | G124: Full Reporter | H124: 3059393 | I124: 507 | J124: MB | K124: DO | L124: 116 | M124: 28 | O124: 0 | Q124: 28 | S124: 5 | U124: 0 | W124: No
A125: Broward County Transit Division | B125: Plantation | C125: FL | D125: 4029 | E125: 40029 | F125: City, County or Local Government Unit or Department of Transportation | G125: Full Reporter | H125: 5502379 | I125: 474 | J125: MB | K125: DO | L125: 274 | M125: 4 | O125: 0 | Q125: 4 | S125: 0 | U125: 0 | W125: No
A126: Broward County Transit Division | B126: Plantation | C126: FL | D126: 4029 | E126: 40029 | F126: City, County or Local Government Unit or Department of Transportation | G126: Full Reporter | H126: 5502379 | I126: 474 | J126: MB | K126: PT | L126: 7 | M126: 0 | O126: 0 | Q126: 0 | S126: 0 | U126: 0 | W126: No
A127: Bi-State Development Agency of the Missouri-Illinois Metropolitan District, d.b.a.(St. Louis) Metro | B127: St. Louis | C127: MO | D127: 7006 | E127: 70006 | F127: Independent Public Agency or Authority of Transit Service | G127: Full Reporter | H127: 2150706 | I127: 473 | J127: MB | K127: DO | L127: 317 | M127: 24 | O127: 0 | Q127: 24 | S127: 1 | U127: 2 | W127: No
A128: Potomac and Rappahannock Transportation Commission | B128: Woodbridge | C128: VA | D128: 3070 | E128: 30070 | F128: Independent Public Agency or Authority of Transit Service | G128: Full Reporter | H128: 4586770 | I128: 473 | J128: CB | K128: PT | L128: 86 | M128: 1 | O128: 0 | Q128: 1 | S128: 0 | U128: 0 | W128: No
A129: Bi-State Development Agency of the Missouri-Illinois Metropolitan District, d.b.a.(St. Louis) Metro | B129: St. Louis | C129: MO | D129: 7006 | E129: 70006 | F129: Independent Public Agency or Authority of Transit Service | G129: Full Reporter | H129: 2150706 | I129: 473 | J129: LR | K129: DO | L129: 58 | M129: 37 | O129: 0 | Q129: 37 | S129: 18 | U129: 6 | W129: No
A130: Potomac and Rappahannock Transportation Commission | B130: Woodbridge | C130: VA | D130: 3070 | E130: 30070 | F130: Independent Public Agency or Authority of Transit Service | G130: Full Reporter | H130: 4586770 | I130: 473 | J130: MB | K130: PT | L130: 36 | M130: 1 | O130: 0 | Q130: 1 | S130: 0 | U130: 0 | W130: =IF(OR(N130="Q",P130="Q",R130="Q",T130="Q",V130="Q",),"Yes","No") -> No
A131: LACMTA - Small Operators | B131: Los Angeles | C131: CA | D131: 9166 | E131: 90166 | F131: Other | G131: Full Reporter | H131: 12150996 | I131: 462 | J131: MB | K131: PT | L131: 195 | M131: 9 | O131: 0 | Q131: 9 | S131: 3 | U131: 0 | W131: No
A132: City of Detroit Department of Transportation | B132: Detroit | C132: MI | D132: 5119 | E132: 50119 | F132: City, County or Local Government Unit or Department of Transportation | G132: Full Reporter | H132: 3734090 | I132: 454 | J132: MB | K132: DO | L132: 229 | M132: 1 | O132: 0 | Q132: 1 | S132: 1 | U132: 1 | W132: No
A133: Board of County Commissioners, Palm Beach County, PalmTran, Inc. | B133: West Palm Beach | C133: FL | D133: 4037 | E133: 40037 | F133: City, County or Local Government Unit or Department of Transportation | G133: Full Reporter | H133: 5502379 | I133: 450 | J133: MB | K133: DO | L133: 131 | M133: 1 | O133: 0 | Q133: 1 | S133: 1 | U133: 0 | W133: No
A134: Delaware Transit Corporation | B134: Dover | C134: DE | D134: 3075 | E134: 30075 | F134: Independent Public Agency or Authority of Transit Service | G134: Full Reporter | H134: 5441567 | I134: 445 | J134: MB | K134: DO | L134: 173 | M134: 4 | O134: 0 | Q134: 4 | S134: 1 | U134: 1 | W134: No
A135: Delaware Transit Corporation | B135: Dover | C135: DE | D135: 3075 | E135: 30075 | F135: Independent Public Agency or Authority of Transit Service | G135: Full Reporter | H135: 5441567 | I135: 445 | J135: MB | K135: PT | L135: 23 | M135: 3 | O135: 0 | Q135: 3 | S135: 1 | U135: 1 | W135: No
A136: Ben Franklin Transit | B136: Richland | C136: WA | D136: 18 | E136: 18 | F136: Independent Public Agency or Authority of Transit Service | G136: Full Reporter | H136: 210975 | I136: 440 | J136: MB | K136: DO | L136: 52 | M136: 1 | O136: 0 | Q136: 1 | S136: 0 | U136: 0 | W136: No
A137: Milwaukee County Transit System | B137: Milwaukee | C137: WI | D137: 5008 | E137: 50008 | F137: City, County or Local Government Unit or Department of Transportation | G137: Full Reporter | H137: 1376476 | I137: 433 | J137: MB | K137: DO | L137: 343 | M137: 1 | O137: 0 | Q137: 1 | S137: 1 | U137: 2 | W137: No
A138: Charlotte Area Transit System | B138: Charlotte | C138: NC | D138: 4008 | E138: 40008 | F138: City, County or Local Government Unit or Department of Transportation | G138: Full Reporter | H138: 1249442 | I138: 431 | J138: MB | K138: DO | L138: 196 | M138: 7 | O138: 0 | Q138: 7 | S138: 0 | U138: 0 | W138: No
A139: Charlotte Area Transit System | B139: Charlotte | C139: NC | D139: 4008 | E139: 40008 | F139: City, County or Local Government Unit or Department of Transportation | G139: Full Reporter | H139: 1249442 | I139: 431 | J139: CB | K139: DO | L139: 69 | M139: 0 | O139: 0 | Q139: 0 | S139: 0 | U139: 0 | W139: No
A140: Charlotte Area Transit System | B140: Charlotte | C140: NC | D140: 4008 | E140: 40008 | F140: City, County or Local Government Unit or Department of Transportation | G140: Full Reporter | H140: 1249442 | I140: 431 | J140: LR | K140: DO | L140: 14 | M140: 15 | O140: 0 | Q140: 15 | S140: 9 | U140: 0 | W140: No
A141: Regional Public Transportation Authority, dba: Valley Metro | B141: Phoenix | C141: AZ | D141: 9136 | E141: 90136 | F141: Independent Public Agency or Authority of Transit Service | G141: Full Reporter | H141: 3629114 | I141: 403 | J141: MB | K141: PT | L141: 282 | M141: 2 | O141: 0 | Q141: 2 | S141: 0 | U141: 0 | W141: No
A142: City of Los Angeles Department of Transportation | B142: Los Angeles | C142: CA | D142: 9147 | E142: 90147 | F142: City, County or Local Government Unit or Department of Transportation | G142: Full Reporter | H142: 12150996 | I142: 369 | J142: MB | K142: PT | L142: 173 | M142: 0 | O142: 0 | Q142: 0 | S142: 0 | U142: 0 | W142: No
A143: City of Los Angeles Department of Transportation | B143: Los Angeles | C143: CA | D143: 9147 | E143: 90147 | F143: City, County or Local Government Unit or Department of Transportation | G143: Full Reporter | H143: 12150996 | I143: 369 | J143: CB | K143: PT | L143: 93 | M143: 4 | O143: 0 | Q143: 4 | S143: 0 | U143: 0 | W143: No
A144: Transportation District Commission of Hampton Roads | B144: Hampton | C144: VA | D144: 3083 | E144: 30083 | F144: Independent Public Agency or Authority of Transit Service | G144: Full Reporter | H144: 1439666 | I144: 368 | J144: MB | K144: DO | L144: 236 | M144: 5 | O144: 0 | Q144: 5 | S144: 0 | U144: 0 | W144: No
A145: Transportation District Commission of Hampton Roads | B145: Hampton | C145: VA | D145: 3083 | E145: 30083 | F145: Independent Public Agency or Authority of Transit Service | G145: Full Reporter | H145: 1439666 | I145: 368 | J145: LR | K145: DO | L145: 6 | M145: 11 | O145: 0 | Q145: 11 | S145: 1 | U145: 0 | W145: No
A146: Transportation District Commission of Hampton Roads | B146: Hampton | C146: VA | D146: 3083 | E146: 30083 | F146: Independent Public Agency or Authority of Transit Service | G146: Full Reporter | H146: 1439666 | I146: 368 | J146: FB | K146: PT | L146: 3 | M146: 0 | O146: 0 | Q146: 0 | S146: 0 | U146: 0 | W146: No
A147: San Mateo County Transit District | B147: San Carlos | C147: CA | D147: 9009 | E147: 90009 | F147: Independent Public Agency or Authority of Transit Service | G147: Full Reporter | H147: 3281212 | I147: 363 | J147: MB | K147: DO | L147: 192 | M147: 0 | O147: 0 | Q147: 0 | S147: 0 | U147: 0 | W147: No
A148: San Mateo County Transit District | B148: San Carlos | C148: CA | D148: 9009 | E148: 90009 | F148: Independent Public Agency or Authority of Transit Service | G148: Full Reporter | H148: 3281212 | I148: 363 | J148: MB | K148: PT | L148: 79 | M148: 0 | O148: 0 | Q148: 0 | S148: 0 | U148: 0 | W148: No
A149: Central Ohio Transit Authority | B149: Columbus | C149: OH | D149: 5016 | E149: 50016 | F149: Independent Public Agency or Authority of Transit Service | G149: Full Reporter | H149: 1368035 | I149: 361 | J149: MB | K149: DO | L149: 284 | M149: 5 | O149: 0 | Q149: 5 | S149: 0 | U149: 1 | W149: No
A150: Nassau Inter County Express | B150: Garden City | C150: NY | D150: 2206 | E150: 20206 | F150: City, County or Local Government Unit or Department of Transportation | G150: Full Reporter | H150: 18351295 | I150: 353 | J150: MB | K150: PT | L150: 255 | M150: 1 | O150: 0 | Q150: 1 | S150: 0 | U150: 0 | W150: No
A151: Niagara Frontier Transportation Authority | B151: Buffalo | C151: NY | D151: 2004 | E151: 20004 | F151: Independent Public Agency or Authority of Transit Service | G151: Full Reporter | H151: 935906 | I151: 351 | J151: MB | K151: DO | L151: 264 | M151: 10 | O151: 0 | Q151: 10 | S151: 0 | U151: 0 | W151: No
A152: Niagara Frontier Transportation Authority | B152: Buffalo | C152: NY | D152: 2004 | E152: 20004 | F152: Independent Public Agency or Authority of Transit Service | G152: Full Reporter | H152: 935906 | I152: 351 | J152: LR | K152: DO | L152: 23 | M152: 14 | O152: 0 | Q152: 14 | S152: 19 | U152: 24 | W152: No
A153: Southwest Ohio Regional Transit Authority | B153: Cincinnati | C153: OH | D153: 5012 | E153: 50012 | F153: City, County or Local Government Unit or Department of Transportation | G153: Full Reporter | H153: 1624827 | I153: 346 | J153: MB | K153: DO | L153: 298 | M153: 3 | O153: 0 | Q153: 3 | S153: 2 | U153: 0 | W153: No
A154: Westchester County Bee-Line System | B154: Mount Vernon | C154: NY | D154: 2076 | E154: 20076 | F154: City, County or Local Government Unit or Department of Transportation | G154: Full Reporter | H154: 18351295 | I154: 343 | J154: MB | K154: PT | L154: 276 | M154: 2 | O154: 0 | Q154: 2 | S154: 0 | U154: 0 | W154: No
A155: City of Tucson | B155: Tucson | C155: AZ | D155: 9033 | E155: 90033 | F155: City, County or Local Government Unit or Department of Transportation | G155: Full Reporter | H155: 843168 | I155: 338 | J155: MB | K155: DO | L155: 212 | M155: 3 | O155: 0 | Q155: 3 | S155: 0 | U155: 0 | W155: No
A156: City of Tucson | B156: Tucson | C156: AZ | D156: 9033 | E156: 90033 | F156: City, County or Local Government Unit or Department of Transportation | G156: Full Reporter | H156: 843168 | I156: 338 | J156: SR | K156: DO | L156: 6 | M156: 0 | O156: 0 | Q156: 0 | S156: 0 | U156: 0 | W156: No
A157: Central Puget Sound Regional Transit Authority | B157: Seattle | C157: WA | D157: 40 | E157: 40 | F157: Independent Public Agency or Authority of Transit Service | G157: Full Reporter | H157: 3059393 | I157: 336 | J157: CB | K157: DO | L157: 190 | M157: 18 | O157: 0 | Q157: 18 | S157: 12 | U157: 4 | W157: No
A158: Central Puget Sound Regional Transit Authority | B158: Seattle | C158: WA | D158: 40 | E158: 40 | F158: Independent Public Agency or Authority of Transit Service | G158: Full Reporter | H158: 3059393 | I158: 336 | J158: CR | K158: PT | L158: 62 | M158: 12 | O158: 0 | Q158: 12 | S158: 13 | U158: 0 | W158: No
A159: Central Puget Sound Regional Transit Authority | B159: Seattle | C159: WA | D159: 40 | E159: 40 | F159: Independent Public Agency or Authority of Transit Service | G159: Full Reporter | H159: 3059393 | I159: 336 | J159: CB | K159: PT | L159: 48 | M159: 8 | O159: 0 | Q159: 8 | S159: 3 | U159: 0 | W159: No
A160: Central Puget Sound Regional Transit Authority | B160: Seattle | C160: WA | D160: 40 | E160: 40 | F160: Independent Public Agency or Authority of Transit Service | G160: Full Reporter | H160: 3059393 | I160: 336 | J160: LR | K160: DO | L160: 34 | M160: 13 | O160: 0 | Q160: 13 | S160: 35 | U160: 47 | W160: No
A161: Central Puget Sound Regional Transit Authority | B161: Seattle | C161: WA | D161: 40 | E161: 40 | F161: Independent Public Agency or Authority of Transit Service | G161: Full Reporter | H161: 3059393 | I161: 336 | J161: SR | K161: DO | L161: 2 | M161: 0 | O161: 0 | Q161: 0 | S161: 0 | U161: 0 | W161: No
A162: Cape Cod Regional Transit Authority | B162: Hyannis | C162: MA | D162: 1105 | E162: 10105 | F162: Independent Public Agency or Authority of Transit Service | G162: Full Reporter | H162: 246695 | I162: 335 | J162: MB | K162: PT | L162: 47 | M162: 1 | O162: 0 | Q162: 1 | S162: 1 | U162: 0 | W162: No
A163: Cape Cod Regional Transit Authority | B163: Hyannis | C163: MA | D163: 1105 | E163: 10105 | F163: Independent Public Agency or Authority of Transit Service | G163: Full Reporter | H163: 246695 | I163: 335 | J163: CB | K163: PT | L163: 2 | M163: 0 | O163: 0 | Q163: 0 | S163: 0 | U163: 0 | W163: No
A164: Greater Richmond Transit Company | B164: Richmond | C164: VA | D164: 3006 | E164: 30006 | F164: Other Publicly-Owned or Privately Chartered Corporation | G164: Full Reporter | H164: 953556 | I164: 328 | J164: MB | K164: DO | L164: 118 | M164: 0 | O164: 0 | Q164: 0 | S164: 0 | U164: 0 | W164: No
A165: Lane Transit District | B165: Eugene | C165: OR | D165: 7 | E165: 7 | F165: Independent Public Agency or Authority of Transit Service | G165: Full Reporter | H165: 247421 | I165: 325 | J165: MB | K165: DO | L165: 71 | M165: 11 | O165: 0 | Q165: 11 | S165: 0 | U165: 0 | W165: No
A166: Lane Transit District | B166: Eugene | C166: OR | D166: 7 | E166: 7 | F166: Independent Public Agency or Authority of Transit Service | G166: Full Reporter | H166: 247421 | I166: 325 | J166: RB | K166: DO | L166: 8 | M166: 3 | O166: 0 | Q166: 3 | S166: 0 | U166: 0 | W166: No
A167: Lane Transit District | B167: Eugene | C167: OR | D167: 7 | E167: 7 | F167: Independent Public Agency or Authority of Transit Service | G167: Full Reporter | H167: 247421 | I167: 325 | J167: MB | K167: PT | L167: 1 | M167: 1 | O167: 0 | Q167: 1 | S167: 0 | U167: 0 | W167: No
A168: Suburban Mobility Authority for Regional Transportation | B168: Detroit | C168: MI | D168: 5031 | E168: 50031 | F168: Independent Public Agency or Authority of Transit Service | G168: Full Reporter | H168: 3734090 | I168: 317 | J168: MB | K168: DO | L168: 195 | M168: 1 | O168: 0 | Q168: 1 | S168: 0 | U168: 0 | W168: No
A169: Suburban Mobility Authority for Regional Transportation | B169: Detroit | C169: MI | D169: 5031 | E169: 50031 | F169: Independent Public Agency or Authority of Transit Service | G169: Full Reporter | H169: 3734090 | I169: 317 | J169: MB | K169: PT | L169: 8 | M169: 1 | O169: 0 | Q169: 1 | S169: 0 | U169: 0 | W169: No
A170: Transit Authority of River City | B170: Louisville | C170: KY | D170: 4018 | E170: 40018 | F170: Independent Public Agency or Authority of Transit Service | G170: Full Reporter | H170: 972546 | I170: 315 | J170: MB | K170: DO | L170: 173 | M170: 2 | O170: 0 | Q170: 2 | S170: 0 | U170: 0 | W170: No
A171: Transit Authority of River City | B171: Louisville | C171: KY | D171: 4018 | E171: 40018 | F171: Independent Public Agency or Authority of Transit Service | G171: Full Reporter | H171: 972546 | I171: 315 | J171: MB | K171: PT | L171: 1 | M171: 0 | O171: 0 | Q171: 0 | S171: 0 | U171: 0 | W171: No
A172: Spokane Transit Authority | B172: Spokane | C172: WA | D172: 2 | E172: 2 | F172: Independent Public Agency or Authority of Transit Service | G172: Full Reporter | H172: 387847 | I172: 311 | J172: MB | K172: DO | L172: 110 | M172: 1 | O172: 0 | Q172: 1 | S172: 2 | U172: 1 | W172: No
A173: Intercity Transit | B173: Olympia | C173: WA | D173: 19 | E173: 19 | F173: Independent Public Agency or Authority of Transit Service | G173: Full Reporter | H173: 176617 | I173: 310 | J173: MB | K173: DO | L173: 50 | M173: 2 | O173: 0 | Q173: 2 | S173: 0 | U173: 0 | W173: No
A174: Intercity Transit | B174: Olympia | C174: WA | D174: 19 | E174: 19 | F174: Independent Public Agency or Authority of Transit Service | G174: Full Reporter | H174: 176617 | I174: 310 | J174: CB | K174: DO | L174: 9 | M174: 2 | O174: 0 | Q174: 2 | S174: 0 | U174: 0 | W174: No
A175: Pinellas Suncoast Transit Authority | B175: St. Petersburg | C175: FL | D175: 4027 | E175: 40027 | F175: Independent Public Agency or Authority of Transit Service | G175: Full Reporter | H175: 2441770 | I175: 308 | J175: MB | K175: DO | L175: 160 | M175: 4 | O175: 0 | Q175: 4 | S175: 0 | U175: 0 | W175: No
A176: Pinellas Suncoast Transit Authority | B176: St. Petersburg | C176: FL | D176: 4027 | E176: 40027 | F176: Independent Public Agency or Authority of Transit Service | G176: Full Reporter | H176: 2441770 | I176: 308 | J176: MB | K176: PT | L176: 18 | M176: 0 | O176: 0 | Q176: 0 | S176: 0 | U176: 0 | W176: No
A177: Pinellas Suncoast Transit Authority | B177: St. Petersburg | C177: FL | D177: 4027 | E177: 40027 | F177: Independent Public Agency or Authority of Transit Service | G177: Full Reporter | H177: 2441770 | I177: 308 | J177: CB | K177: DO | L177: 7 | M177: 0 | O177: 0 | Q177: 0 | S177: 0 | U177: 0 | W177: No
A178: Port Authority Trans-Hudson Corporation | B178: Jersey City | C178: NJ | D178: 2098 | E178: 20098 | F178: Independent Public Agency or Authority of Transit Service | G178: Full Reporter | H178: 18351295 | I178: 304 | J178: HR | K178: DO | L178: 299 | M178: 7 | O178: 6 | Q178: 13 | S178: 24 | U178: 34 | W178: No
A179: Rhode Island Public Transit Authority | B179: Providence | C179: RI | D179: 1001 | E179: 10001 | F179: Independent Public Agency or Authority of Transit Service | G179: Full Reporter | H179: 1190956 | I179: 304 | J179: MB | K179: DO | L179: 196 | M179: 1 | O179: 0 | Q179: 1 | S179: 0 | U179: 0 | W179: No
A180: Port Authority Trans-Hudson Corporation | B180: Jersey City | C180: NJ | D180: 2098 | E180: 20098 | F180: Independent Public Agency or Authority of Transit Service | G180: Full Reporter | H180: 18351295 | I180: 304 | J180: FB | K180: PT | L180: 5 | M180: 2 | O180: 0 | Q180: 2 | S180: 0 | U180: 0 | W180: No
A181: Capital Area Transit | B181: Raleigh | C181: NC | D181: 4007 | E181: 40007 | F181: City, County or Local Government Unit or Department of Transportation | G181: Full Reporter | H181: 884891 | I181: 298 | J181: MB | K181: DO | L181: 65 | M181: 1 | O181: 0 | Q181: 1 | S181: 1 | U181: 0 | W181: No
A182: Kansas City Area Transportation Authority | B182: Kansas City | C182: MO | D182: 7005 | E182: 70005 | F182: Independent Public Agency or Authority of Transit Service | G182: Full Reporter | H182: 1519417 | I182: 295 | J182: MB | K182: DO | L182: 168 | M182: 0 | O182: 0 | Q182: 0 | S182: 0 | U182: 0 | W182: No
A183: Kansas City Area Transportation Authority | B183: Kansas City | C183: MO | D183: 7005 | E183: 70005 | F183: Independent Public Agency or Authority of Transit Service | G183: Full Reporter | H183: 1519417 | I183: 295 | J183: RB | K183: DO | L183: 11 | M183: 0 | O183: 0 | Q183: 0 | S183: 0 | U183: 0 | W183: No
A184: Suffolk County Department of Public Works - Transportation Division | B184: Yaphank | C184: NY | D184: 2072 | E184: 20072 | F184: City, County or Local Government Unit or Department of Transportation | G184: Full Reporter | H184: 18351295 | I184: 291 | J184: MB | K184: PT | L184: 128 | M184: 0 | O184: 0 | Q184: 0 | S184: 0 | U184: 0 | W184: No
A185: Ride-On Montgomery County Transit | B185: Rockville | C185: MD | D185: 3051 | E185: 30051 | F185: City, County or Local Government Unit or Department of Transportation | G185: Full Reporter | H185: 4586770 | I185: 282 | J185: MB | K185: DO | L185: 282 | M185: 3 | O185: 0 | Q185: 3 | S185: 2 | U185: 0 | W185: No
A186: Foothill Transit | B186: West Covina | C186: CA | D186: 9146 | E186: 90146 | F186: Independent Public Agency or Authority of Transit Service | G186: Full Reporter | H186: 12150996 | I186: 278 | J186: MB | K186: PT | L186: 278 | M186: 1 | O186: 0 | Q186: 1 | S186: 0 | U186: 0 | W186: No
A187: Metropolitan Transit Authority | B187: Nashville | C187: TN | D187: 4004 | E187: 40004 | F187: Independent Public Agency or Authority of Transit Service | G187: Full Reporter | H187: 969587 | I187: 269 | J187: MB | K187: DO | L187: 120 | M187: 1 | O187: 0 | Q187: 1 | S187: 1 | U187: 2 | W187: No
A188: Salem Area Mass Transit District | B188: Salem | C188: OR | D188: 25 | E188: 25 | F188: Independent Public Agency or Authority of Transit Service | G188: Full Reporter | H188: 236632 | I188: 269 | J188: MB | K188: DO | L188: 53 | M188: 3 | O188: 0 | Q188: 3 | S188: 0 | U188: 0 | W188: No
A189: Metropolitan Transit Authority | B189: Nashville | C189: TN | D189: 4004 | E189: 40004 | F189: Independent Public Agency or Authority of Transit Service | G189: Full Reporter | H189: 969587 | I189: 269 | J189: CB | K189: DO | L189: 23 | M189: 1 | O189: 0 | Q189: 1 | S189: 2 | U189: 1 | W189: No
A190: Kitsap Transit | B190: Bremerton | C190: WA | D190: 20 | E190: 20 | F190: Independent Public Agency or Authority of Transit Service | G190: Full Reporter | H190: 198979 | I190: 266 | J190: MB | K190: DO | L190: 89 | M190: 13 | O190: 0 | Q190: 13 | S190: 1 | U190: 0 | W190: No
A191: Kitsap Transit | B191: Bremerton | C191: WA | D191: 20 | E191: 20 | F191: Independent Public Agency or Authority of Transit Service | G191: Full Reporter | H191: 198979 | I191: 266 | J191: FB | K191: PT | L191: 3 | M191: 2 | O191: 1 | Q191: 3 | S191: 1 | U191: 0 | W191: No
A192: Riverside Transit Agency | B192: Riverside | C192: CA | D192: 9031 | E192: 90031 | F192: Independent Public Agency or Authority of Transit Service | G192: Full Reporter | H192: 1932666 | I192: 260 | J192: MB | K192: DO | L192: 77 | M192: 7 | O192: 0 | Q192: 7 | S192: 4 | U192: 0 | W192: No
A193: Riverside Transit Agency | B193: Riverside | C193: CA | D193: 9031 | E193: 90031 | F193: Independent Public Agency or Authority of Transit Service | G193: Full Reporter | H193: 1932666 | I193: 260 | J193: MB | K193: PT | L193: 51 | M193: 2 | O193: 0 | Q193: 2 | S193: 1 | U193: 0 | W193: No
A194: Riverside Transit Agency | B194: Riverside | C194: CA | D194: 9031 | E194: 90031 | F194: Independent Public Agency or Authority of Transit Service | G194: Full Reporter | H194: 1932666 | I194: 260 | J194: CB | K194: PT | L194: 16 | M194: 6 | O194: 0 | Q194: 6 | S194: 1 | U194: 0 | W194: =IF(OR(N194="Q",P194="Q",R194="Q",T194="Q",V194="Q",),"Yes","No") -> No
A195: Riverside Transit Agency | B195: Riverside | C195: CA | D195: 9031 | E195: 90031 | F195: Independent Public Agency or Authority of Transit Service | G195: Full Reporter | H195: 1932666 | I195: 260 | J195: CB | K195: DO | L195: 15 | M195: 3 | O195: 0 | Q195: 3 | S195: 1 | U195: 0 | W195: No
A196: Regional Transit Service, Inc. and Lift Line, Inc. | B196: Rochester | C196: NY | D196: 2113 | E196: 20113 | F196: Independent Public Agency or Authority of Transit Service | G196: Full Reporter | H196: 720572 | I196: 256 | J196: MB | K196: DO | L196: 217 | M196: 3 | O196: 0 | Q196: 3 | S196: 0 | U196: 0 | W196: No
A197: Metro Transit System | B197: Madison | C197: WI | D197: 5005 | E197: 50005 | F197: City, County or Local Government Unit or Department of Transportation | G197: Full Reporter | H197: 401661 | I197: 254 | J197: MB | K197: DO | L197: 182 | M197: 0 | O197: 0 | Q197: 0 | S197: 0 | U197: 0 | W197: No
A198: Pioneer Valley Transit Authority | B198: Springfield | C198: MA | D198: 1008 | E198: 10008 | F198: Independent Public Agency or Authority of Transit Service | G198: Full Reporter | H198: 621300 | I198: 254 | J198: MB | K198: PT | L198: 147 | M198: 2 | O198: 0 | Q198: 2 | S198: 0 | U198: 0 | W198: No
A199: Omnitrans | B199: San Bernardino | C199: CA | D199: 9029 | E199: 90029 | F199: Independent Public Agency or Authority of Transit Service | G199: Full Reporter | H199: 1932666 | I199: 248 | J199: MB | K199: DO | L199: 145 | M199: 7 | O199: 0 | Q199: 7 | S199: 2 | U199: 0 | W199: No
A200: Omnitrans | B200: San Bernardino | C200: CA | D200: 9029 | E200: 90029 | F200: Independent Public Agency or Authority of Transit Service | G200: Full Reporter | H200: 1932666 | I200: 248 | J200: MB | K200: PT | L200: 7 | M200: 2 | O200: 0 | Q200: 2 | S200: 0 | U200: 0 | W200: No
... 840 more rows

Sheet Agency Totals
A1: Name | B1: City | C1: State | D1: Legacy NTD ID | E1: NTD ID | F1: Organization Type | G1: Reporter Type | H1: Primary UZA Population | I1: Agency VOMS | J1: ADA Accessible Stations | K1: ADA Accessible Stations Questionable | L1: Non-ADA Accessible Stations | M1: Non-ADA Accessible Stations Questionable | N1: Total Stations | O1: Total Stations Questionable | P1: Elevators | Q1: Elevators Questionable | R1: Escalators | S1: Escalators Questionable | T1: Any data questionable? | W1: =IF(W4=1,1,0) -> 1
A2: MTA New York City Transit | B2: New York | C2: NY | D2: 2008 | E2: 20008 | F2: Subsidiary Unit of a Transit Agency, Reporting Separately | G2: Full Reporter | H2: 18351295 | I2: 11000 | J2: 108 | L2: 363 | N2: 471 | P2: 229 | R2: 186 | T2: =IF(OR(K2="Q",M2="Q",O2="Q",Q2="Q",S2="Q"),"Yes","No") -> No | W2: Hide questionable data tags
A3: New Jersey Transit Corporation | B3: Newark | C3: NJ | D3: 2080 | E3: 20080 | F3: Other Publicly-Owned or Privately Chartered Corporation | G3: Full Reporter | H3: 18351295 | I3: 4020 | J3: 164 | L3: 93 | N3: 257 | P3: 129 | R3: 77 | T3: No | W3: Show questionable data tags
A4: Los Angeles County Metropolitan Transportation Authority dba: Metro | B4: Los Angeles | C4: CA | D4: 9154 | E4: 90154 | F4: Independent Public Agency or Authority of Transit Service | G4: Full Reporter | H4: 12150996 | I4: 3516 | J4: 131 | L4: 0 | N4: 131 | P4: 162 | R4: 172 | T4: No | W4: 1
A5: Washington Metropolitan Area Transit Authority | B5: Washington | C5: DC | D5: 3030 | E5: 30030 | F5: Independent Public Agency or Authority of Transit Service | G5: Full Reporter | H5: 4586770 | I5: 3200 | J5: 91 | L5: 0 | N5: 91 | P5: 275 | R5: 613 | T5: No
A6: King County Department of Transportation - Metro Transit Division | B6: Seattle | C6: WA | D6: 1 | E6: 1 | F6: City, County or Local Government Unit or Department of Transportation | G6: Full Reporter | H6: 3059393 | I6: 2875 | J6: 23 | L6: 0 | N6: 23 | P6: 34 | R6: 40 | T6: No
A7: Chicago Transit Authority | B7: Chicago | C7: IL | D7: 5066 | E7: 50066 | F7: Independent Public Agency or Authority of Transit Service | G7: Full Reporter | H7: 8608208 | I7: 2728 | J7: 98 | L7: 47 | N7: 145 | P7: 147 | R7: 158 | T7: No
A8: Massachusetts Bay Transportation Authority | B8: Boston | C8: MA | D8: 1003 | E8: 10003 | F8: Independent Public Agency or Authority of Transit Service | G8: Full Reporter | H8: 4181019 | I8: 2344 | J8: 283 | L8: 73 | N8: 356 | P8: 188 | R8: 205 | T8: No
A9: Southeastern Pennsylvania Transportation Authority | B9: Philadelphia | C9: PA | D9: 3019 | E9: 30019 | F9: Independent Public Agency or Authority of Transit Service | G9: Full Reporter | H9: 5441567 | I9: 2340 | J9: 107 | L9: 167 | N9: 274 | P9: 110 | R9: 59 | T9: No
A10: Metropolitan Transit Authority of Harris County, Texas | B10: Houston | C10: TX | D10: 6008 | E10: 60008 | F10: Independent Public Agency or Authority of Transit Service | G10: Full Reporter | H10: 4944332 | I10: 2240 | J10: 156 | L10: 0 | N10: 156 | P10: 20 | R10: 8 | T10: No
A11: Pace - Suburban Bus Division | B11: Arlington Heights | C11: IL | D11: 5113 | E11: 50113 | F11: Independent Public Agency or Authority of Transit Service | G11: Full Reporter | H11: 8608208 | I11: 1638 | J11: 155 | L11: 34 | N11: 189 | P11: 26 | R11: 26 | T11: No
A12: Orange County Transportation Authority | B12: Orange | C12: CA | D12: 9036 | E12: 90036 | F12: Independent Public Agency or Authority of Transit Service | G12: Full Reporter | H12: 12150996 | I12: 1528 | J12: 38 | L12: 0 | N12: 38 | P12: 26 | R12: 0 | T12: No
A13: San Francisco Municipal Railway | B13: San Francisco | C13: CA | D13: 9015 | E13: 90015 | F13: City, County or Local Government Unit or Department of Transportation | G13: Full Reporter | H13: 3281212 | I13: 1524 | J13: 9 | L13: 0 | N13: 9 | P13: 11 | R13: 28 | T13: No
A14: Maryland Transit Administration | B14: Baltimore | C14: MD | D14: 3034 | E14: 30034 | F14: State Government Unit or Department of Transportation | G14: Full Reporter | H14: 2203663 | I14: 1491 | J14: 71 | L14: 18 | N14: 89 | P14: 38 | R14: 84 | T14: No
A15: Denver Regional Transportation District | B15: Denver | C15: CO | D15: 8006 | E15: 80006 | F15: Independent Public Agency or Authority of Transit Service | G15: Full Reporter | H15: 2374203 | I15: 1395 | J15: 54 | L15: 0 | N15: 54 | P15: 75 | R15: 16 | T15: No
A16: Metro-North Commuter Railroad Company, dba: MTA Metro-North Railroad | B16: New York | C16: NY | D16: 2078 | E16: 20078 | F16: Subsidiary Unit of a Transit Agency, Reporting Separately | G16: Full Reporter | H16: 18351295 | I16: 1199 | J16: 49 | L16: 67 | N16: 116 | P16: 149 | R16: 36 | T16: No
A17: Miami-Dade Transit | B17: Miami | C17: FL | D17: 4034 | E17: 40034 | F17: City, County or Local Government Unit or Department of Transportation | G17: Full Reporter | H17: 5502379 | I17: 1129 | J17: 44 | L17: 0 | N17: 44 | P17: 86 | R17: 86 | T17: No
A18: Utah Transit Authority | B18: Salt Lake City | C18: UT | D18: 8001 | E18: 80001 | F18: Independent Public Agency or Authority of Transit Service | G18: Full Reporter | H18: 1021243 | I18: 1104 | J18: 101 | L18: 0 | N18: 101 | P18: 12 | R18: 2 | T18: No
A19: MTA Bus Company | B19: New York | C19: NY | D19: 2188 | E19: 20188 | F19: Subsidiary Unit of a Transit Agency, Reporting Separately | G19: Full Reporter | H19: 18351295 | I19: 1091 | J19: 1 | L19: 1 | N19: 2 | P19: 0 | R19: 0 | T19: No
A20: Northeast Illinois Regional Commuter Railroad Corporation dba: Metra Rail | B20: Chicago | C20: IL | D20: 5118 | E20: 50118 | F20: Independent Public Agency or Authority of Transit Service | G20: Full Reporter | H20: 8608208 | I20: 1062 | J20: 181 | L20: 60 | N20: 241 | P20: 36 | R20: 24 | T20: No
A21: Dallas Area Rapid Transit | B21: Dallas | C21: TX | D21: 6056 | E21: 60056 | F21: Independent Public Agency or Authority of Transit Service | G21: Full Reporter | H21: 5121892 | I21: 1042 | J21: 94 | L21: 0 | N21: 94 | P21: 32 | R21: 8 | T21: No
A22: MTA Long Island Rail Road | B22: Jamaica | C22: NY | D22: 2100 | E22: 20100 | F22: Subsidiary Unit of a Transit Agency, Reporting Separately | G22: Full Reporter | H22: 18351295 | I22: 1019 | J22: 103 | L22: 21 | N22: 124 | P22: 37 | R22: 19 | T22: No
A23: Tri-County Metropolitan Transportation District of Oregon | B23: Portland | C23: OR | D23: 8 | E23: 8 | F23: Independent Public Agency or Authority of Transit Service | G23: Full Reporter | H23: 1849898 | I23: 918 | J23: 48 | L23: 0 | N23: 48 | P23: 12 | R23: 0 | T23: No
A24: Port Authority of Allegheny County | B24: Pittsburgh | C24: PA | D24: 3022 | E24: 30022 | F24: Independent Public Agency or Authority of Transit Service | G24: Full Reporter | H24: 1733853 | I24: 912 | J24: 44 | L24: 0 | N24: 44 | P24: 17 | R24: 21 | T24: No
A25: Metro Transit | B25: Minneapolis | C25: MN | D25: 5027 | E25: 50027 | F25: Subsidiary Unit of a Transit Agency, Reporting Separately | G25: Full Reporter | H25: 2650890 | I25: 885 | J25: 80 | L25: 0 | N25: 80 | P25: 58 | R25: 27 | T25: No
A26: Metropolitan Atlanta Rapid Transit Authority | B26: Atlanta | C26: GA | D26: 4022 | E26: 40022 | F26: Independent Public Agency or Authority of Transit Service | G26: Full Reporter | H26: 4515419 | I26: 838 | J26: 39 | L26: 0 | N26: 39 | P26: 97 | R26: 149 | T26: No
A27: City and County of Honolulu Department of Transportation Services | B27: Honolulu | C27: HI | D27: 9002 | E27: 90002 | F27: City, County or Local Government Unit or Department of Transportation | G27: Full Reporter | H27: 802459 | I27: 799 | J27: 1 | L27: 0 | N27: 1 | P27: 0 | R27: 0 | T27: No
A28: VIA Metropolitan Transit | B28: San Antonio | C28: TX | D28: 6011 | E28: 60011 | F28: Independent Public Agency or Authority of Transit Service | G28: Full Reporter | H28: 1758210 | I28: 786 | J28: 9 | L28: 0 | N28: 9 | P28: 1 | R28: 0 | T28: No
A29: San Diego Metropolitan Transit System | B29: San Diego | C29: CA | D29: 9026 | E29: 90026 | F29: Independent Public Agency or Authority of Transit Service | G29: Full Reporter | H29: 2956746 | I29: 732 | J29: 57 | L29: 0 | N29: 57 | P29: 11 | R29: 4 | T29: No
A30: Santa Clara Valley Transportation Authority | B30: San Jose | C30: CA | D30: 9013 | E30: 90013 | F30: Independent Public Agency or Authority of Transit Service | G30: Full Reporter | H30: 1664496 | I30: 679 | J30: 77 | L30: 0 | N30: 77 | P30: 29 | R30: 10 | T30: No
A31: Capital Metropolitan Transportation Authority | B31: Austin | C31: TX | D31: 6048 | E31: 60048 | F31: Independent Public Agency or Authority of Transit Service | G31: Full Reporter | H31: 1362416 | I31: 674 | J31: 17 | L31: 0 | N31: 17 | P31: 0 | R31: 0 | T31: No
A32: Alameda-Contra Costa Transit District | B32: Oakland | C32: CA | D32: 9014 | E32: 90014 | F32: Independent Public Agency or Authority of Transit Service | G32: Full Reporter | H32: 3281212 | I32: 667 | J32: 6 | L32: 0 | N32: 6 | P32: 22 | R32: 0 | T32: No
A33: Regional Transportation Commission of Southern Nevada | B33: Las Vegas | C33: NV | D33: 9045 | E33: 90045 | F33: Independent Public Agency or Authority of Transit Service | G33: Full Reporter | H33: 1886011 | I33: 660 | J33: 5 | L33: 0 | N33: 5 | P33: 0 | R33: 0 | T33: No
A34: Snohomish County Public Transportation Benefit Area Corporation | B34: Everett | C34: WA | D34: 29 | E34: 29 | F34: Independent Public Agency or Authority of Transit Service | G34: Full Reporter | H34: 3059393 | I34: 608 | J34: 6 | L34: 0 | N34: 6 | P34: 0 | R34: 0 | T34: No
A35: City of Phoenix Public Transit Department dba Valley Metro | B35: Phoenix | C35: AZ | D35: 9032 | E35: 90032 | F35: City, County or Local Government Unit or Department of Transportation | G35: Full Reporter | H35: 3629114 | I35: 571 | J35: 4 | L35: 0 | N35: 4 | P35: 0 | R35: 0 | T35: No
A36: Central Florida Regional Transportation Authority | B36: Orlando | C36: FL | D36: 4035 | E36: 40035 | F36: Independent Public Agency or Authority of Transit Service | G36: Full Reporter | H36: 1510516 | I36: 560 | J36: 3 | L36: 0 | N36: 3 | P36: 0 | R36: 0 | T36: No
A37: The Greater Cleveland Regional Transit Authority | B37: Cleveland | C37: OH | D37: 5015 | E37: 50015 | F37: Independent Public Agency or Authority of Transit Service | G37: Full Reporter | H37: 1780673 | I37: 547 | J37: 37 | L37: 27 | N37: 64 | P37: 27 | R37: 11 | T37: No
A38: San Francisco Bay Area Rapid Transit District | B38: Oakland | C38: CA | D38: 9003 | E38: 90003 | F38: Independent Public Agency or Authority of Transit Service | G38: Full Reporter | H38: 3281212 | I38: 538 | J38: 45 | L38: 0 | N38: 45 | P38: 128 | R38: 181 | T38: No
A39: Pierce County Transportation Benefit Area Authority | B39: Tacoma | C39: WA | D39: 3 | E39: 3 | F39: Independent Public Agency or Authority of Transit Service | G39: Full Reporter | H39: 3059393 | I39: 507 | J39: 28 | L39: 0 | N39: 28 | P39: 5 | R39: 0 | T39: No
A40: Broward County Transit Division | B40: Plantation | C40: FL | D40: 4029 | E40: 40029 | F40: City, County or Local Government Unit or Department of Transportation | G40: Full Reporter | H40: 5502379 | I40: 474 | J40: 4 | L40: 0 | N40: 4 | P40: 0 | R40: 0 | T40: No
A41: Potomac and Rappahannock Transportation Commission | B41: Woodbridge | C41: VA | D41: 3070 | E41: 30070 | F41: Independent Public Agency or Authority of Transit Service | G41: Full Reporter | H41: 4586770 | I41: 473 | J41: 2 | L41: 0 | N41: 2 | P41: 0 | R41: 0 | T41: No
A42: Bi-State Development Agency of the Missouri-Illinois Metropolitan District, d.b.a.(St. Louis) Metro | B42: St. Louis | C42: MO | D42: 7006 | E42: 70006 | F42: Independent Public Agency or Authority of Transit Service | G42: Full Reporter | H42: 2150706 | I42: 473 | J42: 61 | L42: 0 | N42: 61 | P42: 19 | R42: 8 | T42: No
A43: LACMTA - Small Operators | B43: Los Angeles | C43: CA | D43: 9166 | E43: 90166 | F43: Other | G43: Full Reporter | H43: 12150996 | I43: 462 | J43: 9 | L43: 0 | N43: 9 | P43: 3 | R43: 0 | T43: No
A44: City of Detroit Department of Transportation | B44: Detroit | C44: MI | D44: 5119 | E44: 50119 | F44: City, County or Local Government Unit or Department of Transportation | G44: Full Reporter | H44: 3734090 | I44: 454 | J44: 1 | L44: 0 | N44: 1 | P44: 1 | R44: 1 | T44: No
A45: Board of County Commissioners, Palm Beach County, PalmTran, Inc. | B45: West Palm Beach | C45: FL | D45: 4037 | E45: 40037 | F45: City, County or Local Government Unit or Department of Transportation | G45: Full Reporter | H45: 5502379 | I45: 450 | J45: 1 | L45: 0 | N45: 1 | P45: 1 | R45: 0 | T45: No
A46: Delaware Transit Corporation | B46: Dover | C46: DE | D46: 3075 | E46: 30075 | F46: Independent Public Agency or Authority of Transit Service | G46: Full Reporter | H46: 5441567 | I46: 445 | J46: 7 | L46: 0 | N46: 7 | P46: 2 | R46: 2 | T46: No
A47: Ben Franklin Transit | B47: Richland | C47: WA | D47: 18 | E47: 18 | F47: Independent Public Agency or Authority of Transit Service | G47: Full Reporter | H47: 210975 | I47: 440 | J47: 1 | L47: 0 | N47: 1 | P47: 0 | R47: 0 | T47: No
A48: Milwaukee County Transit System | B48: Milwaukee | C48: WI | D48: 5008 | E48: 50008 | F48: City, County or Local Government Unit or Department of Transportation | G48: Full Reporter | H48: 1376476 | I48: 433 | J48: 1 | L48: 0 | N48: 1 | P48: 1 | R48: 2 | T48: No
A49: Charlotte Area Transit System | B49: Charlotte | C49: NC | D49: 4008 | E49: 40008 | F49: City, County or Local Government Unit or Department of Transportation | G49: Full Reporter | H49: 1249442 | I49: 431 | J49: 22 | L49: 0 | N49: 22 | P49: 9 | R49: 0 | T49: No
A50: Regional Public Transportation Authority, dba: Valley Metro | B50: Phoenix | C50: AZ | D50: 9136 | E50: 90136 | F50: Independent Public Agency or Authority of Transit Service | G50: Full Reporter | H50: 3629114 | I50: 403 | J50: 2 | L50: 0 | N50: 2 | P50: 0 | R50: 0 | T50: No
A51: City of Los Angeles Department of Transportation | B51: Los Angeles | C51: CA | D51: 9147 | E51: 90147 | F51: City, County or Local Government Unit or Department of Transportation | G51: Full Reporter | H51: 12150996 | I51: 369 | J51: 4 | L51: 0 | N51: 4 | P51: 0 | R51: 0 | T51: No
A52: Transportation District Commission of Hampton Roads | B52: Hampton | C52: VA | D52: 3083 | E52: 30083 | F52: Independent Public Agency or Authority of Transit Service | G52: Full Reporter | H52: 1439666 | I52: 368 | J52: 16 | L52: 0 | N52: 16 | P52: 1 | R52: 0 | T52: No
A53: San Mateo County Transit District | B53: San Carlos | C53: CA | D53: 9009 | E53: 90009 | F53: Independent Public Agency or Authority of Transit Service | G53: Full Reporter | H53: 3281212 | I53: 363 | J53: 0 | L53: 0 | N53: 0 | P53: 0 | R53: 0 | T53: No
A54: Central Ohio Transit Authority | B54: Columbus | C54: OH | D54: 5016 | E54: 50016 | F54: Independent Public Agency or Authority of Transit Service | G54: Full Reporter | H54: 1368035 | I54: 361 | J54: 5 | L54: 0 | N54: 5 | P54: 0 | R54: 1 | T54: No
A55: Nassau Inter County Express | B55: Garden City | C55: NY | D55: 2206 | E55: 20206 | F55: City, County or Local Government Unit or Department of Transportation | G55: Full Reporter | H55: 18351295 | I55: 353 | J55: 1 | L55: 0 | N55: 1 | P55: 0 | R55: 0 | T55: No
A56: Niagara Frontier Transportation Authority | B56: Buffalo | C56: NY | D56: 2004 | E56: 20004 | F56: Independent Public Agency or Authority of Transit Service | G56: Full Reporter | H56: 935906 | I56: 351 | J56: 24 | L56: 0 | N56: 24 | P56: 19 | R56: 24 | T56: No
A57: Southwest Ohio Regional Transit Authority | B57: Cincinnati | C57: OH | D57: 5012 | E57: 50012 | F57: City, County or Local Government Unit or Department of Transportation | G57: Full Reporter | H57: 1624827 | I57: 346 | J57: 3 | L57: 0 | N57: 3 | P57: 2 | R57: 0 | T57: No
A58: Westchester County Bee-Line System | B58: Mount Vernon | C58: NY | D58: 2076 | E58: 20076 | F58: City, County or Local Government Unit or Department of Transportation | G58: Full Reporter | H58: 18351295 | I58: 343 | J58: 2 | L58: 0 | N58: 2 | P58: 0 | R58: 0 | T58: No
A59: City of Tucson | B59: Tucson | C59: AZ | D59: 9033 | E59: 90033 | F59: City, County or Local Government Unit or Department of Transportation | G59: Full Reporter | H59: 843168 | I59: 338 | J59: 3 | L59: 0 | N59: 3 | P59: 0 | R59: 0 | T59: No
A60: Central Puget Sound Regional Transit Authority | B60: Seattle | C60: WA | D60: 40 | E60: 40 | F60: Independent Public Agency or Authority of Transit Service | G60: Full Reporter | H60: 3059393 | I60: 336 | J60: 51 | L60: 0 | N60: 51 | P60: 63 | R60: 51 | T60: No
A61: Cape Cod Regional Transit Authority | B61: Hyannis | C61: MA | D61: 1105 | E61: 10105 | F61: Independent Public Agency or Authority of Transit Service | G61: Full Reporter | H61: 246695 | I61: 335 | J61: 1 | L61: 0 | N61: 1 | P61: 1 | R61: 0 | T61: No
A62: Greater Richmond Transit Company | B62: Richmond | C62: VA | D62: 3006 | E62: 30006 | F62: Other Publicly-Owned or Privately Chartered Corporation | G62: Full Reporter | H62: 953556 | I62: 328 | J62: 0 | L62: 0 | N62: 0 | P62: 0 | R62: 0 | T62: No
A63: Lane Transit District | B63: Eugene | C63: OR | D63: 7 | E63: 7 | F63: Independent Public Agency or Authority of Transit Service | G63: Full Reporter | H63: 247421 | I63: 325 | J63: 15 | L63: 0 | N63: 15 | P63: 0 | R63: 0 | T63: No
A64: Suburban Mobility Authority for Regional Transportation | B64: Detroit | C64: MI | D64: 5031 | E64: 50031 | F64: Independent Public Agency or Authority of Transit Service | G64: Full Reporter | H64: 3734090 | I64: 317 | J64: 2 | L64: 0 | N64: 2 | P64: 0 | R64: 0 | T64: No
A65: Transit Authority of River City | B65: Louisville | C65: KY | D65: 4018 | E65: 40018 | F65: Independent Public Agency or Authority of Transit Service | G65: Full Reporter | H65: 972546 | I65: 315 | J65: 2 | L65: 0 | N65: 2 | P65: 0 | R65: 0 | T65: No
A66: Spokane Transit Authority | B66: Spokane | C66: WA | D66: 2 | E66: 2 | F66: Independent Public Agency or Authority of Transit Service | G66: Full Reporter | H66: 387847 | I66: 311 | J66: 1 | L66: 0 | N66: 1 | P66: 2 | R66: 1 | T66: =IF(OR(K66="Q",M66="Q",O66="Q",Q66="Q",S66="Q"),"Yes","No") -> No
A67: Intercity Transit | B67: Olympia | C67: WA | D67: 19 | E67: 19 | F67: Independent Public Agency or Authority of Transit Service | G67: Full Reporter | H67: 176617 | I67: 310 | J67: 4 | L67: 0 | N67: 4 | P67: 0 | R67: 0 | T67: No
A68: Pinellas Suncoast Transit Authority | B68: St. Petersburg | C68: FL | D68: 4027 | E68: 40027 | F68: Independent Public Agency or Authority of Transit Service | G68: Full Reporter | H68: 2441770 | I68: 308 | J68: 4 | L68: 0 | N68: 4 | P68: 0 | R68: 0 | T68: No
A69: Rhode Island Public Transit Authority | B69: Providence | C69: RI | D69: 1001 | E69: 10001 | F69: Independent Public Agency or Authority of Transit Service | G69: Full Reporter | H69: 1190956 | I69: 304 | J69: 1 | L69: 0 | N69: 1 | P69: 0 | R69: 0 | T69: No
A70: Port Authority Trans-Hudson Corporation | B70: Jersey City | C70: NJ | D70: 2098 | E70: 20098 | F70: Independent Public Agency or Authority of Transit Service | G70: Full Reporter | H70: 18351295 | I70: 304 | J70: 9 | L70: 6 | N70: 15 | P70: 24 | R70: 34 | T70: No
A71: Capital Area Transit | B71: Raleigh | C71: NC | D71: 4007 | E71: 40007 | F71: City, County or Local Government Unit or Department of Transportation | G71: Full Reporter | H71: 884891 | I71: 298 | J71: 1 | L71: 0 | N71: 1 | P71: 1 | R71: 0 | T71: No
A72: Kansas City Area Transportation Authority | B72: Kansas City | C72: MO | D72: 7005 | E72: 70005 | F72: Independent Public Agency or Authority of Transit Service | G72: Full Reporter | H72: 1519417 | I72: 295 | J72: 0 | L72: 0 | N72: 0 | P72: 0 | R72: 0 | T72: No
A73: Suffolk County Department of Public Works - Transportation Division | B73: Yaphank | C73: NY | D73: 2072 | E73: 20072 | F73: City, County or Local Government Unit or Department of Transportation | G73: Full Reporter | H73: 18351295 | I73: 291 | J73: 0 | L73: 0 | N73: 0 | P73: 0 | R73: 0 | T73: No
A74: Ride-On Montgomery County Transit | B74: Rockville | C74: MD | D74: 3051 | E74: 30051 | F74: City, County or Local Government Unit or Department of Transportation | G74: Full Reporter | H74: 4586770 | I74: 282 | J74: 3 | L74: 0 | N74: 3 | P74: 2 | R74: 0 | T74: No
A75: Foothill Transit | B75: West Covina | C75: CA | D75: 9146 | E75: 90146 | F75: Independent Public Agency or Authority of Transit Service | G75: Full Reporter | H75: 12150996 | I75: 278 | J75: 1 | L75: 0 | N75: 1 | P75: 0 | R75: 0 | T75: No
A76: Salem Area Mass Transit District | B76: Salem | C76: OR | D76: 25 | E76: 25 | F76: Independent Public Agency or Authority of Transit Service | G76: Full Reporter | H76: 236632 | I76: 269 | J76: 3 | L76: 0 | N76: 3 | P76: 0 | R76: 0 | T76: No
A77: Metropolitan Transit Authority | B77: Nashville | C77: TN | D77: 4004 | E77: 40004 | F77: Independent Public Agency or Authority of Transit Service | G77: Full Reporter | H77: 969587 | I77: 269 | J77: 2 | L77: 0 | N77: 2 | P77: 3 | R77: 3 | T77: No
A78: Kitsap Transit | B78: Bremerton | C78: WA | D78: 20 | E78: 20 | F78: Independent Public Agency or Authority of Transit Service | G78: Full Reporter | H78: 198979 | I78: 266 | J78: 15 | L78: 1 | N78: 16 | P78: 2 | R78: 0 | T78: No
A79: Riverside Transit Agency | B79: Riverside | C79: CA | D79: 9031 | E79: 90031 | F79: Independent Public Agency or Authority of Transit Service | G79: Full Reporter | H79: 1932666 | I79: 260 | J79: 18 | L79: 0 | N79: 18 | P79: 7 | R79: 0 | T79: No
A80: Regional Transit Service, Inc. and Lift Line, Inc. | B80: Rochester | C80: NY | D80: 2113 | E80: 20113 | F80: Independent Public Agency or Authority of Transit Service | G80: Full Reporter | H80: 720572 | I80: 256 | J80: 3 | L80: 0 | N80: 3 | P80: 0 | R80: 0 | T80: No
A81: Pioneer Valley Transit Authority | B81: Springfield | C81: MA | D81: 1008 | E81: 10008 | F81: Independent Public Agency or Authority of Transit Service | G81: Full Reporter | H81: 621300 | I81: 254 | J81: 2 | L81: 0 | N81: 2 | P81: 0 | R81: 0 | T81: No
A82: Metro Transit System | B82: Madison | C82: WI | D82: 5005 | E82: 50005 | F82: City, County or Local Government Unit or Department of Transportation | G82: Full Reporter | H82: 401661 | I82: 254 | J82: 0 | L82: 0 | N82: 0 | P82: 0 | R82: 0 | T82: No
A83: Omnitrans | B83: San Bernardino | C83: CA | D83: 9029 | E83: 90029 | F83: Independent Public Agency or Authority of Transit Service | G83: Full Reporter | H83: 1932666 | I83: 248 | J83: 9 | L83: 0 | N83: 9 | P83: 2 | R83: 0 | T83: No
A84: Jacksonville Transportation Authority | B84: Jacksonville | C84: FL | D84: 4040 | E84: 40040 | F84: Independent Public Agency or Authority of Transit Service | G84: Full Reporter | H84: 1065219 | I84: 246 | J84: 11 | L84: 0 | N84: 11 | P84: 10 | R84: 18 | T84: No
A85: Interurban Transit Partnership | B85: Grand Rapids | C85: MI | D85: 5033 | E85: 50033 | F85: Independent Public Agency or Authority of Transit Service | G85: Full Reporter | H85: 569935 | I85: 246 | J85: 1 | L85: 0 | N85: 1 | P85: 1 | R85: 0 | T85: No
A86: Victor Valley Transit Authority | B86: Hesperia | C86: CA | D86: 9148 | E86: 90148 | F86: Independent Public Agency or Authority of Transit Service | G86: Full Reporter | H86: 328454 | I86: 245 | J86: 0 | L86: 0 | N86: 0 | P86: 0 | R86: 0 | T86: No
A87: Capital District Transportation Authority | B87: Albany | C87: NY | D87: 2002 | E87: 20002 | F87: Independent Public Agency or Authority of Transit Service | G87: Full Reporter | H87: 594962 | I87: 239 | J87: 0 | L87: 0 | N87: 0 | P87: 0 | R87: 0 | T87: No
A88: Connecticut Department of Transportation - CTTRANSIT - Hartford Division | B88: Hartford | C88: CT | D88: 1048 | E88: 10048 | F88: State Government Unit or Department of Transportation | G88: Full Reporter | H88: 924859 | I88: 233 | J88: 0 | L88: 0 | N88: 0 | P88: 0 | R88: 0 | T88: No
A89: Des Moines Area Regional Transit Authority | B89: Des Moines | C89: IA | D89: 7010 | E89: 70010 | F89: Independent Public Agency or Authority of Transit Service | G89: Full Reporter | H89: 450070 | I89: 231 | J89: 1 | L89: 0 | N89: 1 | P89: 1 | R89: 0 | T89: No
A90: North County Transit District | B90: Oceanside | C90: CA | D90: 9030 | E90: 90030 | F90: Independent Public Agency or Authority of Transit Service | G90: Full Reporter | H90: 2956746 | I90: 230 | J90: 27 | L90: 0 | N90: 27 | P90: 2 | R90: 0 | T90: No
A91: Academy Lines, Inc. | B91: Hoboken | C91: NJ | D91: 2122 | E91: 20122 | F91: Private-For-Profit Corporation | G91: Full Reporter | H91: 18351295 | I91: 225 | J91: 2 | L91: 0 | N91: 2 | P91: 2 | R91: 0 | T91: No
A92: Metropolitan Council | B92: St. Paul | C92: MN | D92: 5154 | E92: 50154 | F92: City, County or Local Government Unit or Department of Transportation | G92: Full Reporter | H92: 2650890 | I92: 223 | J92: 15 | L92: 0 | N92: 15 | P92: 13 | R92: 5 | T92: No
A93: Sacramento Regional Transit District | B93: Sacramento | C93: CA | D93: 9019 | E93: 90019 | F93: Independent Public Agency or Authority of Transit Service | G93: Full Reporter | H93: 1723634 | I93: 222 | J93: 62 | L93: 0 | N93: 62 | P93: 3 | R93: 0 | T93: No
A94: Fairfax Connector Bus System | B94: Fairfax | C94: VA | D94: 3068 | E94: 30068 | F94: City, County or Local Government Unit or Department of Transportation | G94: Full Reporter | H94: 4586770 | I94: 221 | J94: 15 | L94: 1 | N94: 16 | P94: 0 | R94: 0 | T94: No
A95: METRO Regional Transit Authority | B95: Akron | C95: OH | D95: 5010 | E95: 50010 | F95: Independent Public Agency or Authority of Transit Service | G95: Full Reporter | H95: 569499 | I95: 209 | J95: 2 | L95: 0 | N95: 2 | P95: 0 | R95: 0 | T95: No
A96: Blue Water Area Transportation Commission | B96: Port Huron | C96: MI | D96: 5148 | E96: 50148 | F96: Independent Public Agency or Authority of Transit Service | G96: Full Reporter | H96: 87106 | I96: 209 | J96: 2 | L96: 0 | N96: 2 | P96: 0 | R96: 0 | T96: No
A97: Fort Worth Transportation Authority | B97: Fort Worth | C97: TX | D97: 6007 | E97: 60007 | F97: Independent Public Agency or Authority of Transit Service | G97: Full Reporter | H97: 5121892 | I97: 207 | J97: 5 | L97: 0 | N97: 5 | P97: 3 | R97: 0 | T97: No
A98: Long Beach Transit | B98: Long Beach | C98: CA | D98: 9023 | E98: 90023 | F98: Other Publicly-Owned or Privately Chartered Corporation | G98: Full Reporter | H98: 12150996 | I98: 202 | J98: 0 | L98: 0 | N98: 0 | P98: 0 | R98: 0 | T98: No
A99: Hillsborough Area Regional Transit Authority | B99: Tampa | C99: FL | D99: 4041 | E99: 40041 | F99: Independent Public Agency or Authority of Transit Service | G99: Full Reporter | H99: 2441770 | I99: 201 | J99: 14 | L99: 0 | N99: 14 | P99: 1 | R99: 0 | T99: No
A100: Indianapolis and Marion County Public Transportation | B100: Indianapolis | C100: IN | D100: 5050 | E100: 50050 | F100: Independent Public Agency or Authority of Transit Service | G100: Full Reporter | H100: 1487483 | I100: 194 | J100: 0 | L100: 0 | N100: 0 | P100: 0 | R100: 0 | T100: No
A101: Southern California Regional Rail Authority dba: Metrolink | B101: Los Angeles | C101: CA | D101: 9151 | E101: 90151 | F101: Independent Public Agency or Authority of Transit Service | G101: Full Reporter | H101: 12150996 | I101: 192 | J101: 55 | L101: 0 | N101: 55 | P101: 25 | R101: 0 | T101: No
A102: Mass Transit Department - City of El Paso | B102: El Paso | C102: TX | D102: 6006 | E102: 60006 | F102: City, County or Local Government Unit or Department of Transportation | G102: Full Reporter | H102: 803086 | I102: 187 | J102: 8 | L102: 0 | N102: 8 | P102: 5 | R102: 0 | T102: No
A103: City of Albuquerque Transit Department | B103: Albuquerque | C103: NM | D103: 6019 | E103: 60019 | F103: City, County or Local Government Unit or Department of Transportation | G103: Full Reporter | H103: 741318 | I103: 187 | J103: 1 | L103: 0 | N103: 1 | P103: 0 | R103: 0 | T103: No
A104: Mass Transportation Authority | B104: Flint | C104: MI | D104: 5032 | E104: 50032 | F104: Independent Public Agency or Authority of Transit Service | G104: Full Reporter | H104: 356218 | I104: 185 | J104: 1 | L104: 0 | N104: 1 | P104: 0 | R104: 0 | T104: No
A105: Regional Transportation Commission of Washoe County | B105: Reno | C105: NV | D105: 9001 | E105: 90001 | F105: Independent Public Agency or Authority of Transit Service | G105: Full Reporter | H105: 392141 | I105: 181 | J105: 2 | L105: 0 | N105: 2 | P105: 0 | R105: 0 | T105: No
A106: Greater Dayton Regional Transit Authority | B106: Dayton | C106: OH | D106: 5017 | E106: 50017 | F106: Independent Public Agency or Authority of Transit Service | G106: Full Reporter | H106: 724091 | I106: 178 | J106: 9 | L106: 0 | N106: 9 | P106: 0 | R106: 0 | T106: No
A107: New Orleans Regional Transit Authority | B107: New Orleans | C107: LA | D107: 6032 | E107: 60032 | F107: Independent Public Agency or Authority of Transit Service | G107: Full Reporter | H107: 899703 | I107: 178 | J107: 14 | L107: 0 | N107: 14 | P107: 0 | R107: 0 | T107: No
A108: Toledo Area Regional Transit Authority | B108: Toledo | C108: OH | D108: 5022 | E108: 50022 | F108: Independent Public Agency or Authority of Transit Service | G108: Full Reporter | H108: 507643 | I108: 177 | J108: 5 | L108: 0 | N108: 5 | P108: 2 | R108: 1 | T108: No
A109: Capital Area Transportation Authority | B109: Lansing | C109: MI | D109: 5036 | E109: 50036 | F109: Independent Public Agency or Authority of Transit Service | G109: Full Reporter | H109: 313532 | I109: 172 | J109: 2 | L109: 0 | N109: 2 | P109: 0 | R109: 0 | T109: No
A110: Clark County Public Transportation Benefit Area Authority | B110: Vancouver | C110: WA | D110: 24 | E110: 24 | F110: Independent Public Agency or Authority of Transit Service | G110: Full Reporter | H110: 1849898 | I110: 171 | J110: 6 | L110: 0 | N110: 6 | P110: 0 | R110: 0 | T110: No
A111: Montachusett Regional Transit Authority | B111: Fitchburg | C111: MA | D111: 1061 | E111: 10061 | F111: Independent Public Agency or Authority of Transit Service | G111: Full Reporter | H111: 116960 | I111: 169 | J111: 2 | L111: 0 | N111: 2 | P111: 3 | R111: 0 | T111: No
A112: Lehigh and Northampton Transportation Authority | B112: Allentown | C112: PA | D112: 3010 | E112: 30010 | F112: Independent Public Agency or Authority of Transit Service | G112: Full Reporter | H112: 664651 | I112: 165 | J112: 2 | L112: 0 | N112: 2 | P112: 3 | R112: 0 | T112: No
A113: Research Triangle Regional Public Transportation Authority | B113: Research Triangle Park | C113: NC | D113: 4108 | E113: 40108 | F113: Independent Public Agency or Authority of Transit Service | G113: Full Reporter | H113: 347602 | I113: 164 | J113: 8 | L113: 0 | N113: 8 | P113: 0 | R113: 0 | T113: No
A114: Santa Monica's Big Blue Bus | B114: Santa Monica | C114: CA | D114: 9008 | E114: 90008 | F114: City, County or Local Government Unit or Department of Transportation | G114: Full Reporter | H114: 12150996 | I114: 163 | J114: 1 | L114: 0 | N114: 1 | P114: 0 | R114: 0 | T114: No
A115: CNY Centro, Inc. | B115: Syracuse | C115: NY | D115: 2018 | E115: 20018 | F115: Subsidiary Unit of a Transit Agency, Reporting Separately | G115: Full Reporter | H115: 412317 | I115: 162 | J115: 1 | L115: 0 | N115: 1 | P115: 0 | R115: 0 | T115: No
A116: Hudson Transit Lines, Inc. | B116: Mahwah | C116: NJ | D116: 2126 | E116: 20126 | F116: Private-For-Profit Corporation | G116: Full Reporter | H116: 18351295 | I116: 161 | J116: 4 | L116: 0 | N116: 4 | P116: 12 | R116: 0 | T116: No
A117: Mountain Metropolitan Transit | B117: Colorado Springs | C117: CO | D117: 8005 | E117: 80005 | F117: City, County or Local Government Unit or Department of Transportation | G117: Full Reporter | H117: 559409 | I117: 161 | J117: 1 | L117: 0 | N117: 1 | P117: 0 | R117: 0 | T117: No
A118: Madison County Transit District | B118: Granite City | C118: IL | D118: 5146 | E118: 50146 | F118: Independent Public Agency or Authority of Transit Service | G118: Full Reporter | H118: 2150706 | I118: 157 | J118: 5 | L118: 0 | N118: 5 | P118: 0 | R118: 0 | T118: No
A119: Wichita Transit | B119: Wichita | C119: KS | D119: 7015 | E119: 70015 | F119: City, County or Local Government Unit or Department of Transportation | G119: Full Reporter | H119: 472870 | I119: 156 | J119: 1 | L119: 0 | N119: 1 | P119: 0 | R119: 0 | T119: No
A120: Space Coast Area Transit | B120: Cocoa | C120: FL | D120: 4063 | E120: 40063 | F120: City, County or Local Government Unit or Department of Transportation | G120: Full Reporter | H120: 452791 | I120: 154 | J120: 0 | L120: 0 | N120: 0 | P120: 0 | R120: 0 | T120: No
A121: Ann Arbor Area Transportation Authority | B121: Ann Arbor | C121: MI | D121: 5040 | E121: 50040 | F121: Independent Public Agency or Authority of Transit Service | G121: Full Reporter | H121: 306022 | I121: 154 | J121: 2 | L121: 0 | N121: 2 | P121: 1 | R121: 0 | T121: No
A122: Memphis Area Transit Authority | B122: Memphis | C122: TN | D122: 4003 | E122: 40003 | F122: City, County or Local Government Unit or Department of Transportation | G122: Full Reporter | H122: 1060061 | I122: 150 | J122: 11 | L122: 0 | N122: 11 | P122: 2 | R122: 0 | T122: No
A123: Central Contra Costa Transit Authority | B123: Concord | C123: CA | D123: 9078 | E123: 90078 | F123: Independent Public Agency or Authority of Transit Service | G123: Full Reporter | H123: 615968 | I123: 143 | J123: 1 | L123: 0 | N123: 1 | P123: 3 | R123: 0 | T123: No
A124: Gainesville Regional Transit System | B124: Gainesville | C124: FL | D124: 4030 | E124: 40030 | F124: City, County or Local Government Unit or Department of Transportation | G124: Full Reporter | H124: 187781 | I124: 142 | J124: 1 | L124: 0 | N124: 1 | P124: 0 | R124: 0 | T124: No
A125: Golden Gate Bridge, Highway and Transportation District | B125: San Francisco | C125: CA | D125: 9016 | E125: 90016 | F125: Independent Public Agency or Authority of Transit Service | G125: Full Reporter | H125: 3281212 | I125: 141 | J125: 6 | L125: 0 | N125: 6 | P125: 0 | R125: 0 | T125: No
A126: York County Transportation Authority | B126: York | C126: PA | D126: 3027 | E126: 30027 | F126: Independent Public Agency or Authority of Transit Service | G126: Full Reporter | H126: 232045 | I126: 135 | J126: 3 | L126: 0 | N126: 3 | P126: 0 | R126: 0 | T126: No
A127: Peninsula Corridor Joint Powers Board dba: Caltrain | B127: San Carlos | C127: CA | D127: 9134 | E127: 90134 | F127: Independent Public Agency or Authority of Transit Service | G127: Full Reporter | H127: 3281212 | I127: 134 | J127: 26 | L127: 6 | N127: 32 | P127: 11 | R127: 4 | T127: No
A128: Fresno Area Express | B128: Fresno | C128: CA | D128: 9027 | E128: 90027 | F128: City, County or Local Government Unit or Department of Transportation | G128: Full Reporter | H128: 654628 | I128: 130 | J128: 1 | L128: 0 | N128: 1 | P128: 0 | R128: 0 | T128: No
A129: Minnesota Valley Transit Authority | B129: Burnsville | C129: MN | D129: 5222 | E129: 50519 | F129: Independent Public Agency or Authority of Transit Service | G129: Full Reporter | H129: 2650890 | I129: 127 | J129: 7 | L129: 0 | N129: 7 | P129: 6 | R129: 2 | T129: No
A130: County of Volusia, dba: VOTRAN | B130: South Daytona | C130: FL | D130: 4032 | E130: 40032 | F130: City, County or Local Government Unit or Department of Transportation | G130: Full Reporter | H130: 349064 | I130: 125 | J130: 2 | L130: 0 | N130: 2 | P130: 0 | R130: 0 | T130: =IF(OR(K130="Q",M130="Q",O130="Q",Q130="Q",S130="Q"),"Yes","No") -> No
A131: Metropolitan Bus Authority | B131: San Juan | C131: PR | D131: 4086 | E131: 40086 | F131: Independent Public Agency or Authority of Transit Service | G131: Full Reporter | H131: 2148346 | I131: 125 | J131: 8 | L131: 0 | N131: 8 | P131: 0 | R131: 0 | T131: No
A132: Transit Authority of Omaha | B132: Omaha | C132: NE | D132: 7002 | E132: 70002 | F132: Independent Public Agency or Authority of Transit Service | G132: Full Reporter | H132: 725008 | I132: 125 | J132: 1 | L132: 0 | N132: 1 | P132: 1 | R132: 0 | T132: No
A133: Lexington Transit Authority | B133: Lexington | C133: KY | D133: 4017 | E133: 40017 | F133: Independent Public Agency or Authority of Transit Service | G133: Full Reporter | H133: 290263 | I133: 120 | J133: 0 | L133: 1 | N133: 1 | P133: 1 | R133: 0 | T133: No
A134: Champaign-Urbana Mass Transit District | B134: Urbana | C134: IL | D134: 5060 | E134: 50060 | F134: Independent Public Agency or Authority of Transit Service | G134: Full Reporter | H134: 145361 | I134: 119 | J134: 1 | L134: 0 | N134: 1 | P134: 2 | R134: 0 | T134: No
A135: Cobb County Department of Transportation Authority | B135: Marietta | C135: GA | D135: 4078 | E135: 40078 | F135: City, County or Local Government Unit or Department of Transportation | G135: Full Reporter | H135: 4515419 | I135: 118 | J135: 4 | L135: 0 | N135: 4 | P135: 0 | R135: 0 | T135: No
A136: Brazos Transit District | B136: Bryan | C136: TX | D136: 6059 | E136: 60059 | F136: Independent Public Agency or Authority of Transit Service | G136: Full Reporter | H136: 171345 | I136: 118 | J136: 6 | L136: 0 | N136: 6 | P136: 0 | R136: 0 | T136: No
A137: Santa Cruz Metropolitan Transit District | B137: Santa Cruz | C137: CA | D137: 9006 | E137: 90006 | F137: Independent Public Agency or Authority of Transit Service | G137: Full Reporter | H137: 163703 | I137: 118 | J137: 7 | L137: 0 | N137: 7 | P137: 0 | R137: 0 | T137: No
A138: Rides Mass Transit District | B138: Harrisburg | C138: IL | D138: 5211 | E138: 50211 | F138: Independent Public Agency or Authority of Transit Service | G138: Full Reporter | H138: 67821 | I138: 117 | J138: 4 | L138: 0 | N138: 4 | P138: 0 | R138: 0 | T138: No
A139: Erie Metropolitan Transit Authority | B139: Erie | C139: PA | D139: 3013 | E139: 30013 | F139: Independent Public Agency or Authority of Transit Service | G139: Full Reporter | H139: 196611 | I139: 116 | J139: 1 | L139: 0 | N139: 1 | P139: 0 | R139: 0 | T139: No
A140: Prince George's County Transit | B140: Largo | C140: MD | D140: 3085 | E140: 30085 | F140: City, County or Local Government Unit or Department of Transportation | G140: Full Reporter | H140: 4586770 | I140: 116 | J140: 0 | L140: 0 | N140: 0 | P140: 0 | R140: 0 | T140: No
A141: Hill Country Transit District | B141: San Saba | C141: TX | D141: 6091 | E141: 60091 | F141: Independent Public Agency or Authority of Transit Service | G141: Full Reporter | H141: 217630 | I141: 115 | J141: 0 | L141: 0 | N141: 0 | P141: 0 | R141: 0 | T141: No
A142: Greater Attleboro-Taunton Regional Transit Authority | B142: Taunton | C142: MA | D142: 1064 | E142: 10064 | F142: Independent Public Agency or Authority of Transit Service | G142: Full Reporter | H142: 1190956 | I142: 113 | J142: 2 | L142: 0 | N142: 2 | P142: 0 | R142: 0 | T142: No
A143: Cumberland Dauphin-Harrisburg Transit Authority | B143: Harrisburg | C143: PA | D143: 3014 | E143: 30014 | F143: Independent Public Agency or Authority of Transit Service | G143: Full Reporter | H143: 444474 | I143: 113 | J143: 1 | L143: 0 | N143: 1 | P143: 0 | R143: 0 | T143: No
A144: Centre Area Transportation Authority | B144: State College | C144: PA | D144: 3054 | E144: 30054 | F144: Independent Public Agency or Authority of Transit Service | G144: Full Reporter | H144: 87454 | I144: 113 | J144: 1 | L144: 0 | N144: 1 | P144: 0 | R144: 0 | T144: No
A145: Transit Authority of Northern Kentucky | B145: Fort Wright | C145: KY | D145: 4019 | E145: 40019 | F145: Independent Public Agency or Authority of Transit Service | G145: Full Reporter | H145: 1624827 | I145: 109 | J145: 1 | L145: 0 | N145: 1 | P145: 0 | R145: 0 | T145: No
A146: Whatcom Transportation Authority | B146: Bellingham | C146: WA | D146: 21 | E146: 21 | F146: Independent Public Agency or Authority of Transit Service | G146: Full Reporter | H146: 114473 | I146: 107 | J146: 4 | L146: 0 | N146: 4 | P146: 0 | R146: 0 | T146: No
A147: Marin County Transit District | B147: San Rafael | C147: CA | D147: 9234 | E147: 90234 | F147: Independent Public Agency or Authority of Transit Service | G147: Full Reporter | H147: 3281212 | I147: 107 | J147: 1 | L147: 0 | N147: 1 | P147: 0 | R147: 0 | T147: No
A148: Lee County Transit | B148: Fort Myers | C148: FL | D148: 4028 | E148: 40028 | F148: City, County or Local Government Unit or Department of Transportation | G148: Full Reporter | H148: 530290 | I148: 104 | J148: 3 | L148: 0 | N148: 3 | P148: 0 | R148: 0 | T148: No
A149: Montebello Bus Lines | B149: Montebello | C149: CA | D149: 9041 | E149: 90041 | F149: City, County or Local Government Unit or Department of Transportation | G149: Full Reporter | H149: 12150996 | I149: 104 | J149: 2 | L149: 0 | N149: 2 | P149: 0 | R149: 0 | T149: No
A150: Westmoreland County Transit Authority | B150: Greensburg | C150: PA | D150: 3044 | E150: 30044 | F150: City, County or Local Government Unit or Department of Transportation | G150: Full Reporter | H150: 1733853 | I150: 103 | J150: 1 | L150: 0 | N150: 1 | P150: 0 | R150: 0 | T150: No
A151: Monterey-Salinas Transit | B151: Monterey | C151: CA | D151: 9062 | E151: 90062 | F151: Independent Public Agency or Authority of Transit Service | G151: Full Reporter | H151: 114237 | I151: 103 | J151: 16 | L151: 0 | N151: 16 | P151: 1 | R151: 1 | T151: No
A152: Corpus Christi Regional Transportation Authority | B152: Corpus Christi | C152: TX | D152: 6051 | E152: 60051 | F152: Independent Public Agency or Authority of Transit Service | G152: Full Reporter | H152: 320069 | I152: 102 | J152: 8 | L152: 0 | N152: 8 | P152: 0 | R152: 0 | T152: No
A153: San Joaquin Regional Transit District | B153: Stockton | C153: CA | D153: 9012 | E153: 90012 | F153: Independent Public Agency or Authority of Transit Service | G153: Full Reporter | H153: 370583 | I153: 102 | J153: 1 | L153: 0 | N153: 1 | P153: 0 | R153: 0 | T153: No
A154: Georgia Regional Transportation Authority | B154: Atlanta | C154: GA | D154: 4135 | E154: 40135 | F154: State Government Unit or Department of Transportation | G154: Full Reporter | H154: 4515419 | I154: 101 | J154: 10 | L154: 0 | N154: 10 | P154: 31 | R154: 76 | T154: No
A155: Sarasota County Area Transit | B155: Sarasota | C155: FL | D155: 4046 | E155: 40046 | F155: City, County or Local Government Unit or Department of Transportation | G155: Full Reporter | H155: 643260 | I155: 100 | J155: 4 | L155: 0 | N155: 4 | P155: 0 | R155: 0 | T155: No
A156: Charleston Area Regional Transportation Authority | B156: Charleston | C156: SC | D156: 4110 | E156: 40110 | F156: Independent Public Agency or Authority of Transit Service | G156: Full Reporter | H156: 548404 | I156: 100 | J156: 0 | L156: 0 | N156: 0 | P156: 0 | R156: 0 | T156: No
A157: Berks Area Regional Transportation Authority | B157: Reading | C157: PA | D157: 3024 | E157: 30024 | F157: Independent Public Agency or Authority of Transit Service | G157: Full Reporter | H157: 266254 | I157: 99 | J157: 2 | L157: 0 | N157: 2 | P157: 1 | R157: 0 | T157: No
A158: Suburban Transit Corporation | B158: New Brunswick | C158: NJ | D158: 2128 | E158: 20128 | F158: Private-For-Profit Corporation | G158: Full Reporter | H158: 18351295 | I158: 98 | J158: 3 | L158: 0 | N158: 3 | P158: 2 | R158: 0 | T158: No
A159: Connecticut Department of Transportation - CTTRANSIT New Haven Division | B159: Hartford | C159: CT | D159: 1055 | E159: 10055 | F159: State Government Unit or Department of Transportation | G159: Full Reporter | H159: 562839 | I159: 97 | J159: 0 | L159: 0 | N159: 0 | P159: 0 | R159: 0 | T159: No
A160: City of Alexandria | B160: Alexandria | C160: VA | D160: 3071 | E160: 30071 | F160: City, County or Local Government Unit or Department of Transportation | G160: Full Reporter | H160: 4586770 | I160: 97 | J160: 7 | L160: 0 | N160: 7 | P160: 0 | R160: 0 | T160: No
A161: Metropolitan Tulsa Transit Authority | B161: Tulsa | C161: OK | D161: 6018 | E161: 60018 | F161: City, County or Local Government Unit or Department of Transportation | G161: Full Reporter | H161: 655479 | I161: 96 | J161: 4 | L161: 0 | N161: 4 | P161: 0 | R161: 0 | T161: No
A162: Red Rose Transit Authority | B162: Lancaster | C162: PA | D162: 3018 | E162: 30018 | F162: Independent Public Agency or Authority of Transit Service | G162: Full Reporter | H162: 402004 | I162: 95 | J162: 1 | L162: 0 | N162: 1 | P162: 0 | R162: 0 | T162: No
A163: Denton County Transportation Authority | B163: Lewisville | C163: TX | D163: 6101 | E163: 60101 | F163: Independent Public Agency or Authority of Transit Service | G163: Full Reporter | H163: 366174 | I163: 94 | J163: 6 | L163: 0 | N163: 6 | P163: 0 | R163: 0 | T163: No
A164: MetroWest Regional Transit Authority | B164: Framingham | C164: MA | D164: 1118 | E164: 10118 | F164: Independent Public Agency or Authority of Transit Service | G164: Full Reporter | H164: 4181019 | I164: 93 | J164: 1 | L164: 0 | N164: 1 | P164: 0 | R164: 0 | T164: No
A165: Birmingham-Jefferson County Transit Authority | B165: Birmingham | C165: AL | D165: 4042 | E165: 40042 | F165: Independent Public Agency or Authority of Transit Service | G165: Full Reporter | H165: 749495 | I165: 93 | J165: 1 | L165: 0 | N165: 1 | P165: 1 | R165: 0 | T165: No
A166: Norwalk Transit District | B166: Norwalk | C166: CT | D166: 1057 | E166: 10057 | F166: Independent Public Agency or Authority of Transit Service | G166: Full Reporter | H166: 923311 | I166: 92 | J166: 1 | L166: 0 | N166: 1 | P166: 0 | R166: 0 | T166: No
A167: Chapel Hill Transit | B167: Chapel Hill | C167: NC | D167: 4051 | E167: 40051 | F167: City, County or Local Government Unit or Department of Transportation | G167: Full Reporter | H167: 347602 | I167: 92 | J167: 0 | L167: 0 | N167: 0 | P167: 0 | R167: 0 | T167: No
A168: Santa Barbara Metropolitan Transit District | B168: Santa Barbara | C168: CA | D168: 9020 | E168: 90020 | F168: Independent Public Agency or Authority of Transit Service | G168: Full Reporter | H168: 195861 | I168: 91 | J168: 1 | L168: 0 | N168: 1 | P168: 0 | R168: 0 | T168: No
A169: County of Maui - Dept. of Transportation | B169: Wailuku | C169: HI | D169: 9241 | E169: 90241 | F169: City, County or Local Government Unit or Department of Transportation | G169: Full Reporter | H169: 55934 | I169: 91 | J169: 1 | L169: 0 | N169: 1 | P169: 0 | R169: 0 | T169: No
A170: Virginia Railway Express | B170: Alexandria | C170: VA | D170: 3073 | E170: 30073 | F170: Independent Public Agency or Authority of Transit Service | G170: Full Reporter | H170: 4586770 | I170: 90 | J170: 18 | L170: 0 | N170: 18 | P170: 5 | R170: 0 | T170: No
A171: Municipality of Anchorage - Public Transportation Department | B171: Anchorage | C171: AK | D171: 12 | E171: 12 | F171: City, County or Local Government Unit or Department of Transportation | G171: Full Reporter | H171: 251243 | I171: 89 | J171: 3 | L171: 0 | N171: 3 | P171: 0 | R171: 0 | T171: No
A172: City Transit Management Company, Inc. | B172: Lubbock | C172: TX | D172: 6010 | E172: 60010 | F172: City, County or Local Government Unit or Department of Transportation | G172: Full Reporter | H172: 237356 | I172: 89 | J172: 1 | L172: 0 | N172: 1 | P172: 0 | R172: 0 | T172: No
A173: Santa Clarita Transit | B173: Santa Clarita | C173: CA | D173: 9171 | E173: 90171 | F173: City, County or Local Government Unit or Department of Transportation | G173: Full Reporter | H173: 258653 | I173: 89 | J173: 6 | L173: 0 | N173: 6 | P173: 0 | R173: 0 | T173: No
A174: Worcester Regional Transit Authority | B174: Worcester | C174: MA | D174: 1014 | E174: 10014 | F174: Independent Public Agency or Authority of Transit Service | G174: Full Reporter | H174: 486514 | I174: 88 | J174: 1 | L174: 0 | N174: 1 | P174: 0 | R174: 0 | T174: No
A175: Middlesex County Area Transit | B175: New Brunswick | C175: NJ | D175: 2196 | E175: 20196 | F175: City, County or Local Government Unit or Department of Transportation | G175: Full Reporter | H175: 18351295 | I175: 88 | J175: 0 | L175: 0 | N175: 0 | P175: 0 | R175: 0 | T175: No
A176: Durham Area Transit Authority | B176: Durham | C176: NC | D176: 4087 | E176: 40087 | F176: City, County or Local Government Unit or Department of Transportation | G176: Full Reporter | H176: 347602 | I176: 88 | J176: 1 | L176: 0 | N176: 1 | P176: 1 | R176: 0 | T176: No
A177: Rio Metro Regional Transit District | B177: Albuquerque | C177: NM | D177: 6111 | E177: 60111 | F177: Independent Public Agency or Authority of Transit Service | G177: Full Reporter | H177: 741318 | I177: 88 | J177: 16 | L177: 0 | N177: 16 | P177: 0 | R177: 0 | T177: No
A178: Laketran | B178: Grand River | C178: OH | D178: 5117 | E178: 50117 | F178: Independent Public Agency or Authority of Transit Service | G178: Full Reporter | H178: 1780673 | I178: 87 | J178: 5 | L178: 0 | N178: 5 | P178: 0 | R178: 0 | T178: No
A179: Johnson County Kansas, aka: Johnson County Transit | B179: Olathe | C179: KS | D179: 7035 | E179: 70035 | F179: City, County or Local Government Unit or Department of Transportation | G179: Full Reporter | H179: 1519417 | I179: 87 | J179: 0 | L179: 0 | N179: 0 | P179: 0 | R179: 0 | T179: No
A180: Skagit Transit | B180: Burlington | C180: WA | D180: 44 | E180: 44 | F180: Independent Public Agency or Authority of Transit Service | G180: Full Reporter | H180: 62966 | I180: 86 | J180: 2 | L180: 0 | N180: 2 | P180: 0 | R180: 0 | T180: No
A181: Brockton Area Transit Authority | B181: Brockton | C181: MA | D181: 1004 | E181: 10004 | F181: Independent Public Agency or Authority of Transit Service | G181: Full Reporter | H181: 4181019 | I181: 86 | J181: 1 | L181: 0 | N181: 1 | P181: 0 | R181: 0 | T181: No
A182: City of Appleton - Valley Transit | B182: Appleton | C182: WI | D182: 5001 | E182: 50001 | F182: City, County or Local Government Unit or Department of Transportation | G182: Full Reporter | H182: 216154 | I182: 85 | J182: 1 | L182: 0 | N182: 1 | P182: 0 | R182: 0 | T182: No
A183: Greater Peoria Mass Transit District | B183: Peoria | C183: IL | D183: 5056 | E183: 50056 | F183: Independent Public Agency or Authority of Transit Service | G183: Full Reporter | H183: 266921 | I183: 85 | J183: 1 | L183: 0 | N183: 1 | P183: 1 | R183: 0 | T183: No
A184: City of Tallahassee | B184: Tallahassee | C184: FL | D184: 4036 | E184: 40036 | F184: City, County or Local Government Unit or Department of Transportation | G184: Full Reporter | H184: 240223 | I184: 84 | J184: 1 | L184: 0 | N184: 1 | P184: 0 | R184: 0 | T184: No
A185: Torrance Transit System | B185: Torrance | C185: CA | D185: 9010 | E185: 90010 | F185: City, County or Local Government Unit or Department of Transportation | G185: Full Reporter | H185: 12150996 | I185: 84 | J185: 2 | L185: 0 | N185: 2 | P185: 1 | R185: 0 | T185: No
A186: SunLine Transit Agency | B186: Thousand Palms | C186: CA | D186: 9079 | E186: 90079 | F186: Independent Public Agency or Authority of Transit Service | G186: Full Reporter | H186: 345580 | I186: 84 | J186: 1 | L186: 0 | N186: 1 | P186: 0 | R186: 0 | T186: No
A187: Loudoun County Commuter Bus Service - Office of Transportation Services | B187: Leesburg | C187: VA | D187: 3081 | E187: 30081 | F187: City, County or Local Government Unit or Department of Transportation | G187: Full Reporter | H187: 4586770 | I187: 83 | J187: 0 | L187: 0 | N187: 0 | P187: 0 | R187: 0 | T187: No
A188: Ames Transit Agency dba CyRide | B188: Ames | C188: IA | D188: 7041 | E188: 70041 | F188: City, County or Local Government Unit or Department of Transportation | G188: Full Reporter | H188: 60438 | I188: 81 | J188: 1 | L188: 0 | N188: 1 | P188: 0 | R188: 0 | T188: No
A189: Golden Empire Transit District | B189: Bakersfield | C189: CA | D189: 9004 | E189: 90004 | F189: Independent Public Agency or Authority of Transit Service | G189: Full Reporter | H189: 523994 | I189: 81 | J189: 3 | L189: 0 | N189: 3 | P189: 0 | R189: 0 | T189: No
A190: Knoxville Area Transit | B190: Knoxville | C190: TN | D190: 4002 | E190: 40002 | F190: City, County or Local Government Unit or Department of Transportation | G190: Full Reporter | H190: 558696 | I190: 80 | J190: 1 | L190: 0 | N190: 1 | P190: 2 | R190: 1 | T190: No
A191: Hampton Jitney, Inc. | B191: Southampton | C191: NY | D191: 2217 | E191: 20217 | F191: Private-For-Profit Corporation | G191: Full Reporter | H191: 18351295 | I191: 79 | J191: 2 | L191: 0 | N191: 2 | P191: 0 | R191: 0 | T191: No
A192: Greensboro Transit Authority | B192: Greensboro | C192: NC | D192: 4093 | E192: 40093 | F192: City, County or Local Government Unit or Department of Transportation | G192: Full Reporter | H192: 311810 | I192: 79 | J192: 1 | L192: 0 | N192: 1 | P192: 2 | R192: 1 | T192: No
A193: Port Authority Transit Corporation | B193: Lindenwold | C193: NJ | D193: 2075 | E193: 20075 | F193: Independent Public Agency or Authority of Transit Service | G193: Full Reporter | H193: 5441567 | I193: 78 | J193: 7 | L193: 6 | N193: 13 | P193: 11 | R193: 14 | T193: No
A194: Rockland Coaches, Inc. | B194: Westwood | C194: NJ | D194: 2149 | E194: 20149 | F194: Private-For-Profit Corporation | G194: Full Reporter | H194: 18351295 | I194: 78 | J194: 2 | L194: 0 | N194: 2 | P194: 0 | R194: 0 | T194: =IF(OR(K194="Q",M194="Q",O194="Q",Q194="Q",S194="Q"),"Yes","No") -> No
A195: Luzerne County Transportation Authority | B195: Kingston | C195: PA | D195: 3015 | E195: 30015 | F195: Independent Public Agency or Authority of Transit Service | G195: Full Reporter | H195: 381502 | I195: 77 | J195: 1 | L195: 0 | N195: 1 | P195: 0 | R195: 0 | T195: No
A196: Central Oklahoma Transportation and Parking Authority | B196: Oklahoma City | C196: OK | D196: 6017 | E196: 60017 | F196: City, County or Local Government Unit or Department of Transportation | G196: Full Reporter | H196: 861505 | I196: 77 | J196: 5 | L196: 0 | N196: 5 | P196: 0 | R196: 0 | T196: No
A197: Capital Area Transit System | B197: Baton Rouge | C197: LA | D197: 6022 | E197: 60022 | F197: Independent Public Agency or Authority of Transit Service | G197: Full Reporter | H197: 594309 | I197: 77 | J197: 1 | L197: 0 | N197: 1 | P197: 0 | R197: 0 | T197: No
A198: Ms Coast Transportation Authority | B198: Gulfport | C198: MS | D198: 4014 | E198: 40014 | F198: Independent Public Agency or Authority of Transit Service | G198: Full Reporter | H198: 208948 | I198: 76 | J198: 8 | L198: 0 | N198: 8 | P198: 1 | R198: 0 | T198: No
A199: Chatham Area Transit Authority | B199: Savannah | C199: GA | D199: 4025 | E199: 40025 | F199: Independent Public Agency or Authority of Transit Service | G199: Full Reporter | H199: 260677 | I199: 76 | J199: 2 | L199: 0 | N199: 2 | P199: 0 | R199: 0 | T199: No
A200: Lowell Regional Transit Authority | B200: Lowell | C200: MA | D200: 1005 | E200: 10005 | F200: Independent Public Agency or Authority of Transit Service | G200: Full Reporter | H200: 4181019 | I200: 75 | J200: 1 | L200: 0 | N200: 1 | P200: 2 | R200: 0 | T200: No
... 593 more rows

Sheet Summary Tables
A1: To bring up the accessible control panel, press ctrl + a. Some screen reading functionality will not work while the sheet is protected. To unprotect the sheet press alt h o p and enter the password ntd. | F1: National Totals | N1: =IF(N4=1,0,1) -> 0
F2: VOMS | G2: ADA Accessible | H2: Non-ADA Accessible | I2: Total Stations | J2: Elevators | K2: Escalators | N2: Include Questionable Data
F3: =IF($N$1,SUMIFS(Stations!L:L,Stations!$W:$W,"=No"),SUM(Stations!L:L)) -> 70910 | G3: =IF($N$1,SUMIFS(Stations!M:M,Stations!$W:$W,"=No"),SUM(Stations!M:M)) -> 4212 | H3: =IF($N$1,SUMIFS(Stations!O:O,Stations!$W:$W,"=No"),SUM(Stations!O:O)) -> 1033 | I3: =IF($N$1,SUMIFS(Stations!Q:Q,Stations!$W:$W,"=No"),SUM(Stations!Q:Q)) -> 5245 | J3: =IF($N$1,SUMIFS(Stations!S:S,Stations!$W:$W,"=No"),SUM(Stations!S:S)) -> 2846 | K3: =IF($N$1,SUMIFS(Stations!U:U,Stations!$W:$W,"=No"),SUM(Stations!U:U)) -> 2678 | N3: Exclude Questionable Data
N4: 1
A5: By Urbanized Area Size
D6: enter bins here | E6: Column1 | F6: VOMS | G6: ADA Accessible | H6: Non-ADA Accessible | I6: Total Stations | J6: Elevators | K6: Escalators
A7: under | B7: =D7 -> 200000 | D7: 200000 | E7: =IFERROR(IF(A7="between",A7&" "&FIXED(B7,0,0)&" "&C7&" "&FIXED(D7,0,0),A7&" "&FIXED(B7,0,0)),"invalid bin") -> under 200,000 | F7: =IF($N$1,SUMIFS(Stations!L:L,Stations!$H:$H,"<"&$D7,Stations!$W:$W,"=No"),SUMIFS(Stations!L:L,Stations!$H:$H,"<"&$D7)) -> 4960 | G7: =IF($N$1,SUMIFS(Stations!M:M,Stations!$H:$H,"<"&$D7,Stations!$W:$W,"=No"),SUMIFS(Stations!M:M,Stations!$H:$H,"<"&$D7)) -> 323 | H7: =IF($N$1,SUMIFS(Stations!O:O,Stations!$H:$H,"<"&$D7,Stations!$W:$W,"=No"),SUMIFS(Stations!O:O,Stations!$H:$H,"<"&$D7)) -> 3 | I7: =IF($N$1,SUMIFS(Stations!Q:Q,Stations!$H:$H,"<"&$D7,Stations!$W:$W,"=No"),SUMIFS(Stations!Q:Q,Stations!$H:$H,"<"&$D7)) -> 326 | J7: =IF($N$1,SUMIFS(Stations!S:S,Stations!$H:$H,"<"&$D7,Stations!$W:$W,"=No"),SUMIFS(Stations!S:S,Stations!$H:$H,"<"&$D7)) -> 68 | K7: =IF($N$1,SUMIFS(Stations!U:U,Stations!$H:$H,"<"&$D7,Stations!$W:$W,"=No"),SUMIFS(Stations!U:U,Stations!$H:$H,"<"&$D7)) -> 2
A8: =IF(D8<>"","between","over") -> between | B8: =D7 -> 200000 | C8: =IF(D8<>"","and","") -> and | D8: 1000000 | E8: =IFERROR(IF(A8="between",A8&" "&FIXED(B8,0,0)&" "&C8&" "&FIXED(D8,0,0),A8&" "&FIXED(B8,0,0)),"invalid bin") -> between 200,000 and 1,000,000 | F8: =IF($N$1,IF($A8="between",SUMIFS(Stations!L:L,Stations!$H:$H,">="&$B8,Stations!$H:$H,"<"&$D8,Stations!$W:$W,"=No"),SUMIFS(Stations!L:L,Stations!$H:$H,">="&$B8,Stations!$W:$W,"=No")),IF($A8="between",SUMIFS(Stations!L:L,Stations!$H:$H,">="&$B8,Stations!$H:$H,"<"&$D8),SUMIFS(Stations!L:L,Stations!$H:$H,">="&$B8))) -> 9208 | G8: =IF($N$1,IF($A8="between",SUMIFS(Stations!M:M,Stations!$H:$H,">="&$B8,Stations!$H:$H,"<"&$D8,Stations!$W:$W,"=No"),SUMIFS(Stations!M:M,Stations!$H:$H,">="&$B8,Stations!$W:$W,"=No")),IF($A8="between",SUMIFS(Stations!M:M,Stations!$H:$H,">="&$B8,Stations!$H:$H,"<"&$D8),SUMIFS(Stations!M:M,Stations!$H:$H,">="&$B8))) -> 400 | H8: =IF($N$1,IF($A8="between",SUMIFS(Stations!O:O,Stations!$H:$H,">="&$B8,Stations!$H:$H,"<"&$D8,Stations!$W:$W,"=No"),SUMIFS(Stations!O:O,Stations!$H:$H,">="&$B8,Stations!$W:$W,"=No")),IF($A8="between",SUMIFS(Stations!O:O,Stations!$H:$H,">="&$B8,Stations!$H:$H,"<"&$D8),SUMIFS(Stations!O:O,Stations!$H:$H,">="&$B8))) -> 4 | I8: =IF($N$1,IF($A8="between",SUMIFS(Stations!Q:Q,Stations!$H:$H,">="&$B8,Stations!$H:$H,"<"&$D8,Stations!$W:$W,"=No"),SUMIFS(Stations!Q:Q,Stations!$H:$H,">="&$B8,Stations!$W:$W,"=No")),IF($A8="between",SUMIFS(Stations!Q:Q,Stations!$H:$H,">="&$B8,Stations!$H:$H,"<"&$D8),SUMIFS(Stations!Q:Q,Stations!$H:$H,">="&$B8))) -> 404 | J8: =IF($N$1,IF($A8="between",SUMIFS(Stations!S:S,Stations!$H:$H,">="&$B8,Stations!$H:$H,"<"&$D8,Stations!$W:$W,"=No"),SUMIFS(Stations!S:S,Stations!$H:$H,">="&$B8,Stations!$W:$W,"=No")),IF($A8="between",SUMIFS(Stations!S:S,Stations!$H:$H,">="&$B8,Stations!$H:$H,"<"&$D8),SUMIFS(Stations!S:S,Stations!$H:$H,">="&$B8))) -> 95 | K8: =IF($N$1,IF($A8="between",SUMIFS(Stations!U:U,Stations!$H:$H,">="&$B8,Stations!$H:$H,"<"&$D8,Stations!$W:$W,"=No"),SUMIFS(Stations!U:U,Stations!$H:$H,">="&$B8,Stations!$W:$W,"=No")),IF($A8="between",SUMIFS(Stations!U:U,Stations!$H:$H,">="&$B8,Stations!$H:$H,"<"&$D8),SUMIFS(Stations!U:U,Stations!$H:$H,">="&$B8))) -> 49
A9: =IF(OR(A8="over",A8=""),"",IF(D9="","over","between")) -> over | B9: =IF(D8="","",D8) -> 1000000 | C9: =IF(D9<>"","and","") ->  | E9: over 1,000,000 | F9: =IF($N$1,IF($A9="","",IF($A9="between",SUMIFS(Stations!L:L,Stations!$H:$H,">="&$B9,Stations!$H:$H,"<"&$D9,Stations!$W:$W,"=No"),SUMIFS(Stations!L:L,Stations!$H:$H,">="&$B9,Stations!$W:$W,"=No"))),IF($A9="","",IF($A9="between",SUMIFS(Stations!L:L,Stations!$H:$H,">="&$B9,Stations!$H:$H,"<"&$D9),SUMIFS(Stations!L:L,Stations!$H:$H,">="&$B9)))) -> 56742 | G9: =IF($N$1,IF($A9="","",IF($A9="between",SUMIFS(Stations!M:M,Stations!$H:$H,">="&$B9,Stations!$H:$H,"<"&$D9,Stations!$W:$W,"=No"),SUMIFS(Stations!M:M,Stations!$H:$H,">="&$B9,Stations!$W:$W,"=No"))),IF($A9="","",IF($A9="between",SUMIFS(Stations!M:M,Stations!$H:$H,">="&$B9,Stations!$H:$H,"<"&$D9),SUMIFS(Stations!M:M,Stations!$H:$H,">="&$B9)))) -> 3489 | H9: =IF($N$1,IF($A9="","",IF($A9="between",SUMIFS(Stations!O:O,Stations!$H:$H,">="&$B9,Stations!$H:$H,"<"&$D9,Stations!$W:$W,"=No"),SUMIFS(Stations!O:O,Stations!$H:$H,">="&$B9,Stations!$W:$W,"=No"))),IF($A9="","",IF($A9="between",SUMIFS(Stations!O:O,Stations!$H:$H,">="&$B9,Stations!$H:$H,"<"&$D9),SUMIFS(Stations!O:O,Stations!$H:$H,">="&$B9)))) -> 1026 | I9: =IF($N$1,IF($A9="","",IF($A9="between",SUMIFS(Stations!Q:Q,Stations!$H:$H,">="&$B9,Stations!$H:$H,"<"&$D9,Stations!$W:$W,"=No"),SUMIFS(Stations!Q:Q,Stations!$H:$H,">="&$B9,Stations!$W:$W,"=No"))),IF($A9="","",IF($A9="between",SUMIFS(Stations!Q:Q,Stations!$H:$H,">="&$B9,Stations!$H:$H,"<"&$D9),SUMIFS(Stations!Q:Q,Stations!$H:$H,">="&$B9)))) -> 4515 | J9: =IF($N$1,IF($A9="","",IF($A9="between",SUMIFS(Stations!S:S,Stations!$H:$H,">="&$B9,Stations!$H:$H,"<"&$D9,Stations!$W:$W,"=No"),SUMIFS(Stations!S:S,Stations!$H:$H,">="&$B9,Stations!$W:$W,"=No"))),IF($A9="","",IF($A9="between",SUMIFS(Stations!S:S,Stations!$H:$H,">="&$B9,Stations!$H:$H,"<"&$D9),SUMIFS(Stations!S:S,Stations!$H:$H,">="&$B9)))) -> 2683 | K9: =IF($N$1,IF($A9="","",IF($A9="between",SUMIFS(Stations!U:U,Stations!$H:$H,">="&$B9,Stations!$H:$H,"<"&$D9,Stations!$W:$W,"=No"),SUMIFS(Stations!U:U,Stations!$H:$H,">="&$B9,Stations!$W:$W,"=No"))),IF($A9="","",IF($A9="between",SUMIFS(Stations!U:U,Stations!$H:$H,">="&$B9,Stations!$H:$H,"<"&$D9),SUMIFS(Stations!U:U,Stations!$H:$H,">="&$B9)))) -> 2627
C10: =IF(D10<>"","and","") ->  | E10: invalid bin | F10: =IF($N$1,IF($A10="","",IF($A10="between",SUMIFS(Stations!L:L,Stations!$H:$H,">="&$B10,Stations!$H:$H,"<"&$D10,Stations!$W:$W,"=No"),SUMIFS(Stations!L:L,Stations!$H:$H,">="&$B10,Stations!$W:$W,"=No"))),IF($A10="","",IF($A10="between",SUMIFS(Stations!L:L,Stations!$H:$H,">="&$B10,Stations!$H:$H,"<"&$D10),SUMIFS(Stations!L:L,Stations!$H:$H,">="&$B10)))) ->  | G10: =IF($N$1,IF($A10="","",IF($A10="between",SUMIFS(Stations!M:M,Stations!$H:$H,">="&$B10,Stations!$H:$H,"<"&$D10,Stations!$W:$W,"=No"),SUMIFS(Stations!M:M,Stations!$H:$H,">="&$B10,Stations!$W:$W,"=No"))),IF($A10="","",IF($A10="between",SUMIFS(Stations!M:M,Stations!$H:$H,">="&$B10,Stations!$H:$H,"<"&$D10),SUMIFS(Stations!M:M,Stations!$H:$H,">="&$B10)))) ->  | H10: =IF($N$1,IF($A10="","",IF($A10="between",SUMIFS(Stations!O:O,Stations!$H:$H,">="&$B10,Stations!$H:$H,"<"&$D10,Stations!$W:$W,"=No"),SUMIFS(Stations!O:O,Stations!$H:$H,">="&$B10,Stations!$W:$W,"=No"))),IF($A10="","",IF($A10="between",SUMIFS(Stations!O:O,Stations!$H:$H,">="&$B10,Stations!$H:$H,"<"&$D10),SUMIFS(Stations!O:O,Stations!$H:$H,">="&$B10)))) ->  | I10: =IF($N$1,IF($A10="","",IF($A10="between",SUMIFS(Stations!Q:Q,Stations!$H:$H,">="&$B10,Stations!$H:$H,"<"&$D10,Stations!$W:$W,"=No"),SUMIFS(Stations!Q:Q,Stations!$H:$H,">="&$B10,Stations!$W:$W,"=No"))),IF($A10="","",IF($A10="between",SUMIFS(Stations!Q:Q,Stations!$H:$H,">="&$B10,Stations!$H:$H,"<"&$D10),SUMIFS(Stations!Q:Q,Stations!$H:$H,">="&$B10)))) ->  | J10: =IF($N$1,IF($A10="","",IF($A10="between",SUMIFS(Stations!S:S,Stations!$H:$H,">="&$B10,Stations!$H:$H,"<"&$D10,Stations!$W:$W,"=No"),SUMIFS(Stations!S:S,Stations!$H:$H,">="&$B10,Stations!$W:$W,"=No"))),IF($A10="","",IF($A10="between",SUMIFS(Stations!S:S,Stations!$H:$H,">="&$B10,Stations!$H:$H,"<"&$D10),SUMIFS(Stations!S:S,Stations!$H:$H,">="&$B10)))) ->  | K10: =IF($N$1,IF($A10="","",IF($A10="between",SUMIFS(Stations!U:U,Stations!$H:$H,">="&$B10,Stations!$H:$H,"<"&$D10,Stations!$W:$W,"=No"),SUMIFS(Stations!U:U,Stations!$H:$H,">="&$B10,Stations!$W:$W,"=No"))),IF($A10="","",IF($A10="between",SUMIFS(Stations!U:U,Stations!$H:$H,">="&$B10,Stations!$H:$H,"<"&$D10),SUMIFS(Stations!U:U,Stations!$H:$H,">="&$B10)))) -> 
E11: invalid bin | F11: =IF($N$1,IF($A11="","",IF($A11="between",SUMIFS(Stations!L:L,Stations!$H:$H,">="&$B11,Stations!$H:$H,"<"&$D11,Stations!$W:$W,"=No"),SUMIFS(Stations!L:L,Stations!$H:$H,">="&$B11,Stations!$W:$W,"=No"))),IF($A11="","",IF($A11="between",SUMIFS(Stations!L:L,Stations!$H:$H,">="&$B11,Stations!$H:$H,"<"&$D11),SUMIFS(Stations!L:L,Stations!$H:$H,">="&$B11)))) ->  | G11: =IF($N$1,IF($A11="","",IF($A11="between",SUMIFS(Stations!M:M,Stations!$H:$H,">="&$B11,Stations!$H:$H,"<"&$D11,Stations!$W:$W,"=No"),SUMIFS(Stations!M:M,Stations!$H:$H,">="&$B11,Stations!$W:$W,"=No"))),IF($A11="","",IF($A11="between",SUMIFS(Stations!M:M,Stations!$H:$H,">="&$B11,Stations!$H:$H,"<"&$D11),SUMIFS(Stations!M:M,Stations!$H:$H,">="&$B11)))) ->  | H11: =IF($N$1,IF($A11="","",IF($A11="between",SUMIFS(Stations!O:O,Stations!$H:$H,">="&$B11,Stations!$H:$H,"<"&$D11,Stations!$W:$W,"=No"),SUMIFS(Stations!O:O,Stations!$H:$H,">="&$B11,Stations!$W:$W,"=No"))),IF($A11="","",IF($A11="between",SUMIFS(Stations!O:O,Stations!$H:$H,">="&$B11,Stations!$H:$H,"<"&$D11),SUMIFS(Stations!O:O,Stations!$H:$H,">="&$B11)))) ->  | I11: =IF($N$1,IF($A11="","",IF($A11="between",SUMIFS(Stations!Q:Q,Stations!$H:$H,">="&$B11,Stations!$H:$H,"<"&$D11,Stations!$W:$W,"=No"),SUMIFS(Stations!Q:Q,Stations!$H:$H,">="&$B11,Stations!$W:$W,"=No"))),IF($A11="","",IF($A11="between",SUMIFS(Stations!Q:Q,Stations!$H:$H,">="&$B11,Stations!$H:$H,"<"&$D11),SUMIFS(Stations!Q:Q,Stations!$H:$H,">="&$B11)))) ->  | J11: =IF($N$1,IF($A11="","",IF($A11="between",SUMIFS(Stations!S:S,Stations!$H:$H,">="&$B11,Stations!$H:$H,"<"&$D11,Stations!$W:$W,"=No"),SUMIFS(Stations!S:S,Stations!$H:$H,">="&$B11,Stations!$W:$W,"=No"))),IF($A11="","",IF($A11="between",SUMIFS(Stations!S:S,Stations!$H:$H,">="&$B11,Stations!$H:$H,"<"&$D11),SUMIFS(Stations!S:S,Stations!$H:$H,">="&$B11)))) ->  | K11: =IF($N$1,IF($A11="","",IF($A11="between",SUMIFS(Stations!U:U,Stations!$H:$H,">="&$B11,Stations!$H:$H,"<"&$D11,Stations!$W:$W,"=No"),SUMIFS(Stations!U:U,Stations!$H:$H,">="&$B11,Stations!$W:$W,"=No"))),IF($A11="","",IF($A11="between",SUMIFS(Stations!U:U,Stations!$H:$H,">="&$B11,Stations!$H:$H,"<"&$D11),SUMIFS(Stations!U:U,Stations!$H:$H,">="&$B11)))) -> 
E12: invalid bin | F12: =IF($N$1,IF($A12="","",IF($A12="between",SUMIFS(Stations!L:L,Stations!$H:$H,">="&$B12,Stations!$H:$H,"<"&$D12,Stations!$W:$W,"=No"),SUMIFS(Stations!L:L,Stations!$H:$H,">="&$B12,Stations!$W:$W,"=No"))),IF($A12="","",IF($A12="between",SUMIFS(Stations!L:L,Stations!$H:$H,">="&$B12,Stations!$H:$H,"<"&$D12),SUMIFS(Stations!L:L,Stations!$H:$H,">="&$B12)))) ->  | G12: =IF($N$1,IF($A12="","",IF($A12="between",SUMIFS(Stations!M:M,Stations!$H:$H,">="&$B12,Stations!$H:$H,"<"&$D12,Stations!$W:$W,"=No"),SUMIFS(Stations!M:M,Stations!$H:$H,">="&$B12,Stations!$W:$W,"=No"))),IF($A12="","",IF($A12="between",SUMIFS(Stations!M:M,Stations!$H:$H,">="&$B12,Stations!$H:$H,"<"&$D12),SUMIFS(Stations!M:M,Stations!$H:$H,">="&$B12)))) ->  | H12: =IF($N$1,IF($A12="","",IF($A12="between",SUMIFS(Stations!O:O,Stations!$H:$H,">="&$B12,Stations!$H:$H,"<"&$D12,Stations!$W:$W,"=No"),SUMIFS(Stations!O:O,Stations!$H:$H,">="&$B12,Stations!$W:$W,"=No"))),IF($A12="","",IF($A12="between",SUMIFS(Stations!O:O,Stations!$H:$H,">="&$B12,Stations!$H:$H,"<"&$D12),SUMIFS(Stations!O:O,Stations!$H:$H,">="&$B12)))) ->  | I12: =IF($N$1,IF($A12="","",IF($A12="between",SUMIFS(Stations!Q:Q,Stations!$H:$H,">="&$B12,Stations!$H:$H,"<"&$D12,Stations!$W:$W,"=No"),SUMIFS(Stations!Q:Q,Stations!$H:$H,">="&$B12,Stations!$W:$W,"=No"))),IF($A12="","",IF($A12="between",SUMIFS(Stations!Q:Q,Stations!$H:$H,">="&$B12,Stations!$H:$H,"<"&$D12),SUMIFS(Stations!Q:Q,Stations!$H:$H,">="&$B12)))) ->  | J12: =IF($N$1,IF($A12="","",IF($A12="between",SUMIFS(Stations!S:S,Stations!$H:$H,">="&$B12,Stations!$H:$H,"<"&$D12,Stations!$W:$W,"=No"),SUMIFS(Stations!S:S,Stations!$H:$H,">="&$B12,Stations!$W:$W,"=No"))),IF($A12="","",IF($A12="between",SUMIFS(Stations!S:S,Stations!$H:$H,">="&$B12,Stations!$H:$H,"<"&$D12),SUMIFS(Stations!S:S,Stations!$H:$H,">="&$B12)))) ->  | K12: =IF($N$1,IF($A12="","",IF($A12="between",SUMIFS(Stations!U:U,Stations!$H:$H,">="&$B12,Stations!$H:$H,"<"&$D12,Stations!$W:$W,"=No"),SUMIFS(Stations!U:U,Stations!$H:$H,">="&$B12,Stations!$W:$W,"=No"))),IF($A12="","",IF($A12="between",SUMIFS(Stations!U:U,Stations!$H:$H,">="&$B12,Stations!$H:$H,"<"&$D12),SUMIFS(Stations!U:U,Stations!$H:$H,">="&$B12)))) -> 
E13: invalid bin | F13: =IF($N$1,IF($A13="","",IF($A13="between",SUMIFS(Stations!L:L,Stations!$H:$H,">="&$B13,Stations!$H:$H,"<"&$D13,Stations!$W:$W,"=No"),SUMIFS(Stations!L:L,Stations!$H:$H,">="&$B13,Stations!$W:$W,"=No"))),IF($A13="","",IF($A13="between",SUMIFS(Stations!L:L,Stations!$H:$H,">="&$B13,Stations!$H:$H,"<"&$D13),SUMIFS(Stations!L:L,Stations!$H:$H,">="&$B13)))) ->  | G13: =IF($N$1,IF($A13="","",IF($A13="between",SUMIFS(Stations!M:M,Stations!$H:$H,">="&$B13,Stations!$H:$H,"<"&$D13,Stations!$W:$W,"=No"),SUMIFS(Stations!M:M,Stations!$H:$H,">="&$B13,Stations!$W:$W,"=No"))),IF($A13="","",IF($A13="between",SUMIFS(Stations!M:M,Stations!$H:$H,">="&$B13,Stations!$H:$H,"<"&$D13),SUMIFS(Stations!M:M,Stations!$H:$H,">="&$B13)))) ->  | H13: =IF($N$1,IF($A13="","",IF($A13="between",SUMIFS(Stations!O:O,Stations!$H:$H,">="&$B13,Stations!$H:$H,"<"&$D13,Stations!$W:$W,"=No"),SUMIFS(Stations!O:O,Stations!$H:$H,">="&$B13,Stations!$W:$W,"=No"))),IF($A13="","",IF($A13="between",SUMIFS(Stations!O:O,Stations!$H:$H,">="&$B13,Stations!$H:$H,"<"&$D13),SUMIFS(Stations!O:O,Stations!$H:$H,">="&$B13)))) ->  | I13: =IF($N$1,IF($A13="","",IF($A13="between",SUMIFS(Stations!Q:Q,Stations!$H:$H,">="&$B13,Stations!$H:$H,"<"&$D13,Stations!$W:$W,"=No"),SUMIFS(Stations!Q:Q,Stations!$H:$H,">="&$B13,Stations!$W:$W,"=No"))),IF($A13="","",IF($A13="between",SUMIFS(Stations!Q:Q,Stations!$H:$H,">="&$B13,Stations!$H:$H,"<"&$D13),SUMIFS(Stations!Q:Q,Stations!$H:$H,">="&$B13)))) ->  | J13: =IF($N$1,IF($A13="","",IF($A13="between",SUMIFS(Stations!S:S,Stations!$H:$H,">="&$B13,Stations!$H:$H,"<"&$D13,Stations!$W:$W,"=No"),SUMIFS(Stations!S:S,Stations!$H:$H,">="&$B13,Stations!$W:$W,"=No"))),IF($A13="","",IF($A13="between",SUMIFS(Stations!S:S,Stations!$H:$H,">="&$B13,Stations!$H:$H,"<"&$D13),SUMIFS(Stations!S:S,Stations!$H:$H,">="&$B13)))) ->  | K13: =IF($N$1,IF($A13="","",IF($A13="between",SUMIFS(Stations!U:U,Stations!$H:$H,">="&$B13,Stations!$H:$H,"<"&$D13,Stations!$W:$W,"=No"),SUMIFS(Stations!U:U,Stations!$H:$H,">="&$B13,Stations!$W:$W,"=No"))),IF($A13="","",IF($A13="between",SUMIFS(Stations!U:U,Stations!$H:$H,">="&$B13,Stations!$H:$H,"<"&$D13),SUMIFS(Stations!U:U,Stations!$H:$H,">="&$B13)))) -> 
E14: invalid bin | F14: =IF($N$1,IF($A14="","",IF($A14="between",SUMIFS(Stations!L:L,Stations!$H:$H,">="&$B14,Stations!$H:$H,"<"&$D14,Stations!$W:$W,"=No"),SUMIFS(Stations!L:L,Stations!$H:$H,">="&$B14,Stations!$W:$W,"=No"))),IF($A14="","",IF($A14="between",SUMIFS(Stations!L:L,Stations!$H:$H,">="&$B14,Stations!$H:$H,"<"&$D14),SUMIFS(Stations!L:L,Stations!$H:$H,">="&$B14)))) ->  | G14: =IF($N$1,IF($A14="","",IF($A14="between",SUMIFS(Stations!M:M,Stations!$H:$H,">="&$B14,Stations!$H:$H,"<"&$D14,Stations!$W:$W,"=No"),SUMIFS(Stations!M:M,Stations!$H:$H,">="&$B14,Stations!$W:$W,"=No"))),IF($A14="","",IF($A14="between",SUMIFS(Stations!M:M,Stations!$H:$H,">="&$B14,Stations!$H:$H,"<"&$D14),SUMIFS(Stations!M:M,Stations!$H:$H,">="&$B14)))) ->  | H14: =IF($N$1,IF($A14="","",IF($A14="between",SUMIFS(Stations!O:O,Stations!$H:$H,">="&$B14,Stations!$H:$H,"<"&$D14,Stations!$W:$W,"=No"),SUMIFS(Stations!O:O,Stations!$H:$H,">="&$B14,Stations!$W:$W,"=No"))),IF($A14="","",IF($A14="between",SUMIFS(Stations!O:O,Stations!$H:$H,">="&$B14,Stations!$H:$H,"<"&$D14),SUMIFS(Stations!O:O,Stations!$H:$H,">="&$B14)))) ->  | I14: =IF($N$1,IF($A14="","",IF($A14="between",SUMIFS(Stations!Q:Q,Stations!$H:$H,">="&$B14,Stations!$H:$H,"<"&$D14,Stations!$W:$W,"=No"),SUMIFS(Stations!Q:Q,Stations!$H:$H,">="&$B14,Stations!$W:$W,"=No"))),IF($A14="","",IF($A14="between",SUMIFS(Stations!Q:Q,Stations!$H:$H,">="&$B14,Stations!$H:$H,"<"&$D14),SUMIFS(Stations!Q:Q,Stations!$H:$H,">="&$B14)))) ->  | J14: =IF($N$1,IF($A14="","",IF($A14="between",SUMIFS(Stations!S:S,Stations!$H:$H,">="&$B14,Stations!$H:$H,"<"&$D14,Stations!$W:$W,"=No"),SUMIFS(Stations!S:S,Stations!$H:$H,">="&$B14,Stations!$W:$W,"=No"))),IF($A14="","",IF($A14="between",SUMIFS(Stations!S:S,Stations!$H:$H,">="&$B14,Stations!$H:$H,"<"&$D14),SUMIFS(Stations!S:S,Stations!$H:$H,">="&$B14)))) ->  | K14: =IF($N$1,IF($A14="","",IF($A14="between",SUMIFS(Stations!U:U,Stations!$H:$H,">="&$B14,Stations!$H:$H,"<"&$D14,Stations!$W:$W,"=No"),SUMIFS(Stations!U:U,Stations!$H:$H,">="&$B14,Stations!$W:$W,"=No"))),IF($A14="","",IF($A14="between",SUMIFS(Stations!U:U,Stations!$H:$H,">="&$B14,Stations!$H:$H,"<"&$D14),SUMIFS(Stations!U:U,Stations!$H:$H,">="&$B14)))) -> 
E15: invalid bin | F15: =IF($N$1,IF($A15="","",IF($A15="between",SUMIFS(Stations!L:L,Stations!$H:$H,">="&$B15,Stations!$H:$H,"<"&$D15,Stations!$W:$W,"=No"),SUMIFS(Stations!L:L,Stations!$H:$H,">="&$B15,Stations!$W:$W,"=No"))),IF($A15="","",IF($A15="between",SUMIFS(Stations!L:L,Stations!$H:$H,">="&$B15,Stations!$H:$H,"<"&$D15),SUMIFS(Stations!L:L,Stations!$H:$H,">="&$B15)))) ->  | G15: =IF($N$1,IF($A15="","",IF($A15="between",SUMIFS(Stations!M:M,Stations!$H:$H,">="&$B15,Stations!$H:$H,"<"&$D15,Stations!$W:$W,"=No"),SUMIFS(Stations!M:M,Stations!$H:$H,">="&$B15,Stations!$W:$W,"=No"))),IF($A15="","",IF($A15="between",SUMIFS(Stations!M:M,Stations!$H:$H,">="&$B15,Stations!$H:$H,"<"&$D15),SUMIFS(Stations!M:M,Stations!$H:$H,">="&$B15)))) ->  | H15: =IF($N$1,IF($A15="","",IF($A15="between",SUMIFS(Stations!O:O,Stations!$H:$H,">="&$B15,Stations!$H:$H,"<"&$D15,Stations!$W:$W,"=No"),SUMIFS(Stations!O:O,Stations!$H:$H,">="&$B15,Stations!$W:$W,"=No"))),IF($A15="","",IF($A15="between",SUMIFS(Stations!O:O,Stations!$H:$H,">="&$B15,Stations!$H:$H,"<"&$D15),SUMIFS(Stations!O:O,Stations!$H:$H,">="&$B15)))) ->  | I15: =IF($N$1,IF($A15="","",IF($A15="between",SUMIFS(Stations!Q:Q,Stations!$H:$H,">="&$B15,Stations!$H:$H,"<"&$D15,Stations!$W:$W,"=No"),SUMIFS(Stations!Q:Q,Stations!$H:$H,">="&$B15,Stations!$W:$W,"=No"))),IF($A15="","",IF($A15="between",SUMIFS(Stations!Q:Q,Stations!$H:$H,">="&$B15,Stations!$H:$H,"<"&$D15),SUMIFS(Stations!Q:Q,Stations!$H:$H,">="&$B15)))) ->  | J15: =IF($N$1,IF($A15="","",IF($A15="between",SUMIFS(Stations!S:S,Stations!$H:$H,">="&$B15,Stations!$H:$H,"<"&$D15,Stations!$W:$W,"=No"),SUMIFS(Stations!S:S,Stations!$H:$H,">="&$B15,Stations!$W:$W,"=No"))),IF($A15="","",IF($A15="between",SUMIFS(Stations!S:S,Stations!$H:$H,">="&$B15,Stations!$H:$H,"<"&$D15),SUMIFS(Stations!S:S,Stations!$H:$H,">="&$B15)))) ->  | K15: =IF($N$1,IF($A15="","",IF($A15="between",SUMIFS(Stations!U:U,Stations!$H:$H,">="&$B15,Stations!$H:$H,"<"&$D15,Stations!$W:$W,"=No"),SUMIFS(Stations!U:U,Stations!$H:$H,">="&$B15,Stations!$W:$W,"=No"))),IF($A15="","",IF($A15="between",SUMIFS(Stations!U:U,Stations!$H:$H,">="&$B15,Stations!$H:$H,"<"&$D15),SUMIFS(Stations!U:U,Stations!$H:$H,">="&$B15)))) -> 
A19: By Mode/Type of Service
A20: Mode | B20: Type | C20: Description | D20: Column1 | E20: Column2 | F20: VOMS | G20: ADA Accessible | H20: Non-ADA Accessible | I20: Total Stations | J20: Elevators | K20: Escalators
A21: TR | B21: PT | C21: Aerial Tramway - Purchased Transportation | F21: =IF($N$1,SUMIFS(Stations!L:L,Stations!$J:$J,"="&$A21,Stations!$K:$K,"="&$B21,Stations!$W:$W,"=No"),SUMIFS(Stations!L:L,Stations!$J:$J,"="&$A21,Stations!$K:$K,"="&$B21)) -> 2 | G21: =IF($N$1,SUMIFS(Stations!M:M,Stations!$J:$J,"="&$A21,Stations!$K:$K,"="&$B21,Stations!$W:$W,"=No"),SUMIFS(Stations!M:M,Stations!$J:$J,"="&$A21,Stations!$K:$K,"="&$B21)) -> 2 | H21: =IF($N$1,SUMIFS(Stations!O:O,Stations!$J:$J,"="&$A21,Stations!$K:$K,"="&$B21,Stations!$W:$W,"=No"),SUMIFS(Stations!O:O,Stations!$J:$J,"="&$A21,Stations!$K:$K,"="&$B21)) -> 0 | I21: =IF($N$1,SUMIFS(Stations!Q:Q,Stations!$J:$J,"="&$A21,Stations!$K:$K,"="&$B21,Stations!$W:$W,"=No"),SUMIFS(Stations!Q:Q,Stations!$J:$J,"="&$A21,Stations!$K:$K,"="&$B21)) -> 2 | J21: =IF($N$1,SUMIFS(Stations!S:S,Stations!$J:$J,"="&$A21,Stations!$K:$K,"="&$B21,Stations!$W:$W,"=No"),SUMIFS(Stations!S:S,Stations!$J:$J,"="&$A21,Stations!$K:$K,"="&$B21)) -> 1 | K21: =IF($N$1,SUMIFS(Stations!U:U,Stations!$J:$J,"="&$A21,Stations!$K:$K,"="&$B21,Stations!$W:$W,"=No"),SUMIFS(Stations!U:U,Stations!$J:$J,"="&$A21,Stations!$K:$K,"="&$B21)) -> 0
A22: AR | B22: DO | C22: Alaska Railroad - Directly Operated | F22: =IF($N$1,SUMIFS(Stations!L:L,Stations!$J:$J,"="&$A22,Stations!$K:$K,"="&$B22,Stations!$W:$W,"=No"),SUMIFS(Stations!L:L,Stations!$J:$J,"="&$A22,Stations!$K:$K,"="&$B22)) -> 39 | G22: =IF($N$1,SUMIFS(Stations!M:M,Stations!$J:$J,"="&$A22,Stations!$K:$K,"="&$B22,Stations!$W:$W,"=No"),SUMIFS(Stations!M:M,Stations!$J:$J,"="&$A22,Stations!$K:$K,"="&$B22)) -> 11 | H22: =IF($N$1,SUMIFS(Stations!O:O,Stations!$J:$J,"="&$A22,Stations!$K:$K,"="&$B22,Stations!$W:$W,"=No"),SUMIFS(Stations!O:O,Stations!$J:$J,"="&$A22,Stations!$K:$K,"="&$B22)) -> 0 | I22: =IF($N$1,SUMIFS(Stations!Q:Q,Stations!$J:$J,"="&$A22,Stations!$K:$K,"="&$B22,Stations!$W:$W,"=No"),SUMIFS(Stations!Q:Q,Stations!$J:$J,"="&$A22,Stations!$K:$K,"="&$B22)) -> 11 | J22: =IF($N$1,SUMIFS(Stations!S:S,Stations!$J:$J,"="&$A22,Stations!$K:$K,"="&$B22,Stations!$W:$W,"=No"),SUMIFS(Stations!S:S,Stations!$J:$J,"="&$A22,Stations!$K:$K,"="&$B22)) -> 2 | K22: =IF($N$1,SUMIFS(Stations!U:U,Stations!$J:$J,"="&$A22,Stations!$K:$K,"="&$B22,Stations!$W:$W,"=No"),SUMIFS(Stations!U:U,Stations!$J:$J,"="&$A22,Stations!$K:$K,"="&$B22)) -> 2
A23: MB | B23: DO | C23: Bus - Directly Operated | F23: =IF($N$1,SUMIFS(Stations!L:L,Stations!$J:$J,"="&$A23,Stations!$K:$K,"="&$B23,Stations!$W:$W,"=No"),SUMIFS(Stations!L:L,Stations!$J:$J,"="&$A23,Stations!$K:$K,"="&$B23)) -> 39702 | G23: =IF($N$1,SUMIFS(Stations!M:M,Stations!$J:$J,"="&$A23,Stations!$K:$K,"="&$B23,Stations!$W:$W,"=No"),SUMIFS(Stations!M:M,Stations!$J:$J,"="&$A23,Stations!$K:$K,"="&$B23)) -> 1081 | H23: =IF($N$1,SUMIFS(Stations!O:O,Stations!$J:$J,"="&$A23,Stations!$K:$K,"="&$B23,Stations!$W:$W,"=No"),SUMIFS(Stations!O:O,Stations!$J:$J,"="&$A23,Stations!$K:$K,"="&$B23)) -> 36 | I23: =IF($N$1,SUMIFS(Stations!Q:Q,Stations!$J:$J,"="&$A23,Stations!$K:$K,"="&$B23,Stations!$W:$W,"=No"),SUMIFS(Stations!Q:Q,Stations!$J:$J,"="&$A23,Stations!$K:$K,"="&$B23)) -> 1117 | J23: =IF($N$1,SUMIFS(Stations!S:S,Stations!$J:$J,"="&$A23,Stations!$K:$K,"="&$B23,Stations!$W:$W,"=No"),SUMIFS(Stations!S:S,Stations!$J:$J,"="&$A23,Stations!$K:$K,"="&$B23)) -> 299 | K23: =IF($N$1,SUMIFS(Stations!U:U,Stations!$J:$J,"="&$A23,Stations!$K:$K,"="&$B23,Stations!$W:$W,"=No"),SUMIFS(Stations!U:U,Stations!$J:$J,"="&$A23,Stations!$K:$K,"="&$B23)) -> 130
A24: MB | B24: PT | C24: Bus - Purchased Transportation | F24: =IF($N$1,SUMIFS(Stations!L:L,Stations!$J:$J,"="&$A24,Stations!$K:$K,"="&$B24,Stations!$W:$W,"=No"),SUMIFS(Stations!L:L,Stations!$J:$J,"="&$A24,Stations!$K:$K,"="&$B24)) -> 8869 | G24: =IF($N$1,SUMIFS(Stations!M:M,Stations!$J:$J,"="&$A24,Stations!$K:$K,"="&$B24,Stations!$W:$W,"=No"),SUMIFS(Stations!M:M,Stations!$J:$J,"="&$A24,Stations!$K:$K,"="&$B24)) -> 363 | H24: =IF($N$1,SUMIFS(Stations!O:O,Stations!$J:$J,"="&$A24,Stations!$K:$K,"="&$B24,Stations!$W:$W,"=No"),SUMIFS(Stations!O:O,Stations!$J:$J,"="&$A24,Stations!$K:$K,"="&$B24)) -> 5 | I24: =IF($N$1,SUMIFS(Stations!Q:Q,Stations!$J:$J,"="&$A24,Stations!$K:$K,"="&$B24,Stations!$W:$W,"=No"),SUMIFS(Stations!Q:Q,Stations!$J:$J,"="&$A24,Stations!$K:$K,"="&$B24)) -> 368 | J24: =IF($N$1,SUMIFS(Stations!S:S,Stations!$J:$J,"="&$A24,Stations!$K:$K,"="&$B24,Stations!$W:$W,"=No"),SUMIFS(Stations!S:S,Stations!$J:$J,"="&$A24,Stations!$K:$K,"="&$B24)) -> 155 | K24: =IF($N$1,SUMIFS(Stations!U:U,Stations!$J:$J,"="&$A24,Stations!$K:$K,"="&$B24,Stations!$W:$W,"=No"),SUMIFS(Stations!U:U,Stations!$J:$J,"="&$A24,Stations!$K:$K,"="&$B24)) -> 75
A25: RB | B25: DO | C25: Bus Rapid Transit - Directly Operated | F25: =IF($N$1,SUMIFS(Stations!L:L,Stations!$J:$J,"="&$A25,Stations!$K:$K,"="&$B25,Stations!$W:$W,"=No"),SUMIFS(Stations!L:L,Stations!$J:$J,"="&$A25,Stations!$K:$K,"="&$B25)) -> 241 | G25: =IF($N$1,SUMIFS(Stations!M:M,Stations!$J:$J,"="&$A25,Stations!$K:$K,"="&$B25,Stations!$W:$W,"=No"),SUMIFS(Stations!M:M,Stations!$J:$J,"="&$A25,Stations!$K:$K,"="&$B25)) -> 29 | H25: =IF($N$1,SUMIFS(Stations!O:O,Stations!$J:$J,"="&$A25,Stations!$K:$K,"="&$B25,Stations!$W:$W,"=No"),SUMIFS(Stations!O:O,Stations!$J:$J,"="&$A25,Stations!$K:$K,"="&$B25)) -> 0 | I25: =IF($N$1,SUMIFS(Stations!Q:Q,Stations!$J:$J,"="&$A25,Stations!$K:$K,"="&$B25,Stations!$W:$W,"=No"),SUMIFS(Stations!Q:Q,Stations!$J:$J,"="&$A25,Stations!$K:$K,"="&$B25)) -> 29 | J25: =IF($N$1,SUMIFS(Stations!S:S,Stations!$J:$J,"="&$A25,Stations!$K:$K,"="&$B25,Stations!$W:$W,"=No"),SUMIFS(Stations!S:S,Stations!$J:$J,"="&$A25,Stations!$K:$K,"="&$B25)) -> 13 | K25: =IF($N$1,SUMIFS(Stations!U:U,Stations!$J:$J,"="&$A25,Stations!$K:$K,"="&$B25,Stations!$W:$W,"=No"),SUMIFS(Stations!U:U,Stations!$J:$J,"="&$A25,Stations!$K:$K,"="&$B25)) -> 11
A26: RB | B26: PT | C26: Bus Rapid Transit - Purchased Transportation | F26: =IF($N$1,SUMIFS(Stations!L:L,Stations!$J:$J,"="&$A26,Stations!$K:$K,"="&$B26,Stations!$W:$W,"=No"),SUMIFS(Stations!L:L,Stations!$J:$J,"="&$A26,Stations!$K:$K,"="&$B26)) -> 33 | G26: =IF($N$1,SUMIFS(Stations!M:M,Stations!$J:$J,"="&$A26,Stations!$K:$K,"="&$B26,Stations!$W:$W,"=No"),SUMIFS(Stations!M:M,Stations!$J:$J,"="&$A26,Stations!$K:$K,"="&$B26)) -> 1 | H26: =IF($N$1,SUMIFS(Stations!O:O,Stations!$J:$J,"="&$A26,Stations!$K:$K,"="&$B26,Stations!$W:$W,"=No"),SUMIFS(Stations!O:O,Stations!$J:$J,"="&$A26,Stations!$K:$K,"="&$B26)) -> 0 | I26: =IF($N$1,SUMIFS(Stations!Q:Q,Stations!$J:$J,"="&$A26,Stations!$K:$K,"="&$B26,Stations!$W:$W,"=No"),SUMIFS(Stations!Q:Q,Stations!$J:$J,"="&$A26,Stations!$K:$K,"="&$B26)) -> 1 | J26: =IF($N$1,SUMIFS(Stations!S:S,Stations!$J:$J,"="&$A26,Stations!$K:$K,"="&$B26,Stations!$W:$W,"=No"),SUMIFS(Stations!S:S,Stations!$J:$J,"="&$A26,Stations!$K:$K,"="&$B26)) -> 0 | K26: =IF($N$1,SUMIFS(Stations!U:U,Stations!$J:$J,"="&$A26,Stations!$K:$K,"="&$B26,Stations!$W:$W,"=No"),SUMIFS(Stations!U:U,Stations!$J:$J,"="&$A26,Stations!$K:$K,"="&$B26)) -> 0
A27: CC | B27: DO | C27: Cable Car - Directly Operated | F27: =IF($N$1,SUMIFS(Stations!L:L,Stations!$J:$J,"="&$A27,Stations!$K:$K,"="&$B27,Stations!$W:$W,"=No"),SUMIFS(Stations!L:L,Stations!$J:$J,"="&$A27,Stations!$K:$K,"="&$B27)) -> 27 | G27: =IF($N$1,SUMIFS(Stations!M:M,Stations!$J:$J,"="&$A27,Stations!$K:$K,"="&$B27,Stations!$W:$W,"=No"),SUMIFS(Stations!M:M,Stations!$J:$J,"="&$A27,Stations!$K:$K,"="&$B27)) -> 0 | H27: =IF($N$1,SUMIFS(Stations!O:O,Stations!$J:$J,"="&$A27,Stations!$K:$K,"="&$B27,Stations!$W:$W,"=No"),SUMIFS(Stations!O:O,Stations!$J:$J,"="&$A27,Stations!$K:$K,"="&$B27)) -> 0 | I27: =IF($N$1,SUMIFS(Stations!Q:Q,Stations!$J:$J,"="&$A27,Stations!$K:$K,"="&$B27,Stations!$W:$W,"=No"),SUMIFS(Stations!Q:Q,Stations!$J:$J,"="&$A27,Stations!$K:$K,"="&$B27)) -> 0 | J27: =IF($N$1,SUMIFS(Stations!S:S,Stations!$J:$J,"="&$A27,Stations!$K:$K,"="&$B27,Stations!$W:$W,"=No"),SUMIFS(Stations!S:S,Stations!$J:$J,"="&$A27,Stations!$K:$K,"="&$B27)) -> 0 | K27: =IF($N$1,SUMIFS(Stations!U:U,Stations!$J:$J,"="&$A27,Stations!$K:$K,"="&$B27,Stations!$W:$W,"=No"),SUMIFS(Stations!U:U,Stations!$J:$J,"="&$A27,Stations!$K:$K,"="&$B27)) -> 0
A28: CB | B28: DO | C28: Commuter Bus - Directly Operated | F28: =IF($N$1,SUMIFS(Stations!L:L,Stations!$J:$J,"="&$A28,Stations!$K:$K,"="&$B28,Stations!$W:$W,"=No"),SUMIFS(Stations!L:L,Stations!$J:$J,"="&$A28,Stations!$K:$K,"="&$B28)) -> 2475 | G28: =IF($N$1,SUMIFS(Stations!M:M,Stations!$J:$J,"="&$A28,Stations!$K:$K,"="&$B28,Stations!$W:$W,"=No"),SUMIFS(Stations!M:M,Stations!$J:$J,"="&$A28,Stations!$K:$K,"="&$B28)) -> 149 | H28: =IF($N$1,SUMIFS(Stations!O:O,Stations!$J:$J,"="&$A28,Stations!$K:$K,"="&$B28,Stations!$W:$W,"=No"),SUMIFS(Stations!O:O,Stations!$J:$J,"="&$A28,Stations!$K:$K,"="&$B28)) -> 3 | I28: =IF($N$1,SUMIFS(Stations!Q:Q,Stations!$J:$J,"="&$A28,Stations!$K:$K,"="&$B28,Stations!$W:$W,"=No"),SUMIFS(Stations!Q:Q,Stations!$J:$J,"="&$A28,Stations!$K:$K,"="&$B28)) -> 152 | J28: =IF($N$1,SUMIFS(Stations!S:S,Stations!$J:$J,"="&$A28,Stations!$K:$K,"="&$B28,Stations!$W:$W,"=No"),SUMIFS(Stations!S:S,Stations!$J:$J,"="&$A28,Stations!$K:$K,"="&$B28)) -> 51 | K28: =IF($N$1,SUMIFS(Stations!U:U,Stations!$J:$J,"="&$A28,Stations!$K:$K,"="&$B28,Stations!$W:$W,"=No"),SUMIFS(Stations!U:U,Stations!$J:$J,"="&$A28,Stations!$K:$K,"="&$B28)) -> 14
A29: CB | B29: PT | C29: Commuter Bus - Purchased Transportation | F29: =IF($N$1,SUMIFS(Stations!L:L,Stations!$J:$J,"="&$A29,Stations!$K:$K,"="&$B29,Stations!$W:$W,"=No"),SUMIFS(Stations!L:L,Stations!$J:$J,"="&$A29,Stations!$K:$K,"="&$B29)) -> 1352 | G29: =IF($N$1,SUMIFS(Stations!M:M,Stations!$J:$J,"="&$A29,Stations!$K:$K,"="&$B29,Stations!$W:$W,"=No"),SUMIFS(Stations!M:M,Stations!$J:$J,"="&$A29,Stations!$K:$K,"="&$B29)) -> 86 | H29: =IF($N$1,SUMIFS(Stations!O:O,Stations!$J:$J,"="&$A29,Stations!$K:$K,"="&$B29,Stations!$W:$W,"=No"),SUMIFS(Stations!O:O,Stations!$J:$J,"="&$A29,Stations!$K:$K,"="&$B29)) -> 0 | I29: =IF($N$1,SUMIFS(Stations!Q:Q,Stations!$J:$J,"="&$A29,Stations!$K:$K,"="&$B29,Stations!$W:$W,"=No"),SUMIFS(Stations!Q:Q,Stations!$J:$J,"="&$A29,Stations!$K:$K,"="&$B29)) -> 86 | J29: =IF($N$1,SUMIFS(Stations!S:S,Stations!$J:$J,"="&$A29,Stations!$K:$K,"="&$B29,Stations!$W:$W,"=No"),SUMIFS(Stations!S:S,Stations!$J:$J,"="&$A29,Stations!$K:$K,"="&$B29)) -> 52 | K29: =IF($N$1,SUMIFS(Stations!U:U,Stations!$J:$J,"="&$A29,Stations!$K:$K,"="&$B29,Stations!$W:$W,"=No"),SUMIFS(Stations!U:U,Stations!$J:$J,"="&$A29,Stations!$K:$K,"="&$B29)) -> 79
A30: CR | B30: DO | C30: Commuter Rail - Directly Operated | F30: =IF($N$1,SUMIFS(Stations!L:L,Stations!$J:$J,"="&$A30,Stations!$K:$K,"="&$B30,Stations!$W:$W,"=No"),SUMIFS(Stations!L:L,Stations!$J:$J,"="&$A30,Stations!$K:$K,"="&$B30)) -> 4981 | G30: =IF($N$1,SUMIFS(Stations!M:M,Stations!$J:$J,"="&$A30,Stations!$K:$K,"="&$B30,Stations!$W:$W,"=No"),SUMIFS(Stations!M:M,Stations!$J:$J,"="&$A30,Stations!$K:$K,"="&$B30)) -> 505 | H30: =IF($N$1,SUMIFS(Stations!O:O,Stations!$J:$J,"="&$A30,Stations!$K:$K,"="&$B30,Stations!$W:$W,"=No"),SUMIFS(Stations!O:O,Stations!$J:$J,"="&$A30,Stations!$K:$K,"="&$B30)) -> 326 | I30: =IF($N$1,SUMIFS(Stations!Q:Q,Stations!$J:$J,"="&$A30,Stations!$K:$K,"="&$B30,Stations!$W:$W,"=No"),SUMIFS(Stations!Q:Q,Stations!$J:$J,"="&$A30,Stations!$K:$K,"="&$B30)) -> 831 | J30: =IF($N$1,SUMIFS(Stations!S:S,Stations!$J:$J,"="&$A30,Stations!$K:$K,"="&$B30,Stations!$W:$W,"=No"),SUMIFS(Stations!S:S,Stations!$J:$J,"="&$A30,Stations!$K:$K,"="&$B30)) -> 358 | K30: =IF($N$1,SUMIFS(Stations!U:U,Stations!$J:$J,"="&$A30,Stations!$K:$K,"="&$B30,Stations!$W:$W,"=No"),SUMIFS(Stations!U:U,Stations!$J:$J,"="&$A30,Stations!$K:$K,"="&$B30)) -> 185
A31: CR | B31: PT | C31: Commuter Rail - Purchased Transportation | F31: =IF($N$1,SUMIFS(Stations!L:L,Stations!$J:$J,"="&$A31,Stations!$K:$K,"="&$B31,Stations!$W:$W,"=No"),SUMIFS(Stations!L:L,Stations!$J:$J,"="&$A31,Stations!$K:$K,"="&$B31)) -> 1297 | G31: =IF($N$1,SUMIFS(Stations!M:M,Stations!$J:$J,"="&$A31,Stations!$K:$K,"="&$B31,Stations!$W:$W,"=No"),SUMIFS(Stations!M:M,Stations!$J:$J,"="&$A31,Stations!$K:$K,"="&$B31)) -> 349 | H31: =IF($N$1,SUMIFS(Stations!O:O,Stations!$J:$J,"="&$A31,Stations!$K:$K,"="&$B31,Stations!$W:$W,"=No"),SUMIFS(Stations!O:O,Stations!$J:$J,"="&$A31,Stations!$K:$K,"="&$B31)) -> 66 | I31: =IF($N$1,SUMIFS(Stations!Q:Q,Stations!$J:$J,"="&$A31,Stations!$K:$K,"="&$B31,Stations!$W:$W,"=No"),SUMIFS(Stations!Q:Q,Stations!$J:$J,"="&$A31,Stations!$K:$K,"="&$B31)) -> 415 | J31: =IF($N$1,SUMIFS(Stations!S:S,Stations!$J:$J,"="&$A31,Stations!$K:$K,"="&$B31,Stations!$W:$W,"=No"),SUMIFS(Stations!S:S,Stations!$J:$J,"="&$A31,Stations!$K:$K,"="&$B31)) -> 132 | K31: =IF($N$1,SUMIFS(Stations!U:U,Stations!$J:$J,"="&$A31,Stations!$K:$K,"="&$B31,Stations!$W:$W,"=No"),SUMIFS(Stations!U:U,Stations!$J:$J,"="&$A31,Stations!$K:$K,"="&$B31)) -> 25
A32: FB | B32: DO | C32: Ferryboat - Directly Operated | F32: =IF($N$1,SUMIFS(Stations!L:L,Stations!$J:$J,"="&$A32,Stations!$K:$K,"="&$B32,Stations!$W:$W,"=No"),SUMIFS(Stations!L:L,Stations!$J:$J,"="&$A32,Stations!$K:$K,"="&$B32)) -> 79 | G32: =IF($N$1,SUMIFS(Stations!M:M,Stations!$J:$J,"="&$A32,Stations!$K:$K,"="&$B32,Stations!$W:$W,"=No"),SUMIFS(Stations!M:M,Stations!$J:$J,"="&$A32,Stations!$K:$K,"="&$B32)) -> 56 | H32: =IF($N$1,SUMIFS(Stations!O:O,Stations!$J:$J,"="&$A32,Stations!$K:$K,"="&$B32,Stations!$W:$W,"=No"),SUMIFS(Stations!O:O,Stations!$J:$J,"="&$A32,Stations!$K:$K,"="&$B32)) -> 3 | I32: =IF($N$1,SUMIFS(Stations!Q:Q,Stations!$J:$J,"="&$A32,Stations!$K:$K,"="&$B32,Stations!$W:$W,"=No"),SUMIFS(Stations!Q:Q,Stations!$J:$J,"="&$A32,Stations!$K:$K,"="&$B32)) -> 59 | J32: =IF($N$1,SUMIFS(Stations!S:S,Stations!$J:$J,"="&$A32,Stations!$K:$K,"="&$B32,Stations!$W:$W,"=No"),SUMIFS(Stations!S:S,Stations!$J:$J,"="&$A32,Stations!$K:$K,"="&$B32)) -> 10 | K32: =IF($N$1,SUMIFS(Stations!U:U,Stations!$J:$J,"="&$A32,Stations!$K:$K,"="&$B32,Stations!$W:$W,"=No"),SUMIFS(Stations!U:U,Stations!$J:$J,"="&$A32,Stations!$K:$K,"="&$B32)) -> 6
A33: FB | B33: PT | C33: Ferryboat - Purchased Transportation | F33: =IF($N$1,SUMIFS(Stations!L:L,Stations!$J:$J,"="&$A33,Stations!$K:$K,"="&$B33,Stations!$W:$W,"=No"),SUMIFS(Stations!L:L,Stations!$J:$J,"="&$A33,Stations!$K:$K,"="&$B33)) -> 44 | G33: =IF($N$1,SUMIFS(Stations!M:M,Stations!$J:$J,"="&$A33,Stations!$K:$K,"="&$B33,Stations!$W:$W,"=No"),SUMIFS(Stations!M:M,Stations!$J:$J,"="&$A33,Stations!$K:$K,"="&$B33)) -> 37 | H33: =IF($N$1,SUMIFS(Stations!O:O,Stations!$J:$J,"="&$A33,Stations!$K:$K,"="&$B33,Stations!$W:$W,"=No"),SUMIFS(Stations!O:O,Stations!$J:$J,"="&$A33,Stations!$K:$K,"="&$B33)) -> 2 | I33: =IF($N$1,SUMIFS(Stations!Q:Q,Stations!$J:$J,"="&$A33,Stations!$K:$K,"="&$B33,Stations!$W:$W,"=No"),SUMIFS(Stations!Q:Q,Stations!$J:$J,"="&$A33,Stations!$K:$K,"="&$B33)) -> 39 | J33: =IF($N$1,SUMIFS(Stations!S:S,Stations!$J:$J,"="&$A33,Stations!$K:$K,"="&$B33,Stations!$W:$W,"=No"),SUMIFS(Stations!S:S,Stations!$J:$J,"="&$A33,Stations!$K:$K,"="&$B33)) -> 7 | K33: =IF($N$1,SUMIFS(Stations!U:U,Stations!$J:$J,"="&$A33,Stations!$K:$K,"="&$B33,Stations!$W:$W,"=No"),SUMIFS(Stations!U:U,Stations!$J:$J,"="&$A33,Stations!$K:$K,"="&$B33)) -> 0
A34: HR | B34: DO | C34: Heavy Rail - Directly Operated | F34: =IF($N$1,SUMIFS(Stations!L:L,Stations!$J:$J,"="&$A34,Stations!$K:$K,"="&$B34,Stations!$W:$W,"=No"),SUMIFS(Stations!L:L,Stations!$J:$J,"="&$A34,Stations!$K:$K,"="&$B34)) -> 9396 | G34: =IF($N$1,SUMIFS(Stations!M:M,Stations!$J:$J,"="&$A34,Stations!$K:$K,"="&$B34,Stations!$W:$W,"=No"),SUMIFS(Stations!M:M,Stations!$J:$J,"="&$A34,Stations!$K:$K,"="&$B34)) -> 552 | H34: =IF($N$1,SUMIFS(Stations!O:O,Stations!$J:$J,"="&$A34,Stations!$K:$K,"="&$B34,Stations!$W:$W,"=No"),SUMIFS(Stations!O:O,Stations!$J:$J,"="&$A34,Stations!$K:$K,"="&$B34)) -> 483 | I34: =IF($N$1,SUMIFS(Stations!Q:Q,Stations!$J:$J,"="&$A34,Stations!$K:$K,"="&$B34,Stations!$W:$W,"=No"),SUMIFS(Stations!Q:Q,Stations!$J:$J,"="&$A34,Stations!$K:$K,"="&$B34)) -> 1035 | J34: =IF($N$1,SUMIFS(Stations!S:S,Stations!$J:$J,"="&$A34,Stations!$K:$K,"="&$B34,Stations!$W:$W,"=No"),SUMIFS(Stations!S:S,Stations!$J:$J,"="&$A34,Stations!$K:$K,"="&$B34)) -> 1273 | K34: =IF($N$1,SUMIFS(Stations!U:U,Stations!$J:$J,"="&$A34,Stations!$K:$K,"="&$B34,Stations!$W:$W,"=No"),SUMIFS(Stations!U:U,Stations!$J:$J,"="&$A34,Stations!$K:$K,"="&$B34)) -> 1781
A35: HR | B35: PT | C35: Heavy Rail - Purchased Transportation | F35: =IF($N$1,SUMIFS(Stations!L:L,Stations!$J:$J,"="&$A35,Stations!$K:$K,"="&$B35,Stations!$W:$W,"=No"),SUMIFS(Stations!L:L,Stations!$J:$J,"="&$A35,Stations!$K:$K,"="&$B35)) -> 32 | G35: =IF($N$1,SUMIFS(Stations!M:M,Stations!$J:$J,"="&$A35,Stations!$K:$K,"="&$B35,Stations!$W:$W,"=No"),SUMIFS(Stations!M:M,Stations!$J:$J,"="&$A35,Stations!$K:$K,"="&$B35)) -> 16 | H35: =IF($N$1,SUMIFS(Stations!O:O,Stations!$J:$J,"="&$A35,Stations!$K:$K,"="&$B35,Stations!$W:$W,"=No"),SUMIFS(Stations!O:O,Stations!$J:$J,"="&$A35,Stations!$K:$K,"="&$B35)) -> 0 | I35: =IF($N$1,SUMIFS(Stations!Q:Q,Stations!$J:$J,"="&$A35,Stations!$K:$K,"="&$B35,Stations!$W:$W,"=No"),SUMIFS(Stations!Q:Q,Stations!$J:$J,"="&$A35,Stations!$K:$K,"="&$B35)) -> 16 | J35: =IF($N$1,SUMIFS(Stations!S:S,Stations!$J:$J,"="&$A35,Stations!$K:$K,"="&$B35,Stations!$W:$W,"=No"),SUMIFS(Stations!S:S,Stations!$J:$J,"="&$A35,Stations!$K:$K,"="&$B35)) -> 33 | K35: =IF($N$1,SUMIFS(Stations!U:U,Stations!$J:$J,"="&$A35,Stations!$K:$K,"="&$B35,Stations!$W:$W,"=No"),SUMIFS(Stations!U:U,Stations!$J:$J,"="&$A35,Stations!$K:$K,"="&$B35)) -> 51
A36: YR | B36: PT | C36: Hybrid Rail - Purchased Transportation | F36: =IF($N$1,SUMIFS(Stations!L:L,Stations!$J:$J,"="&$A36,Stations!$K:$K,"="&$B36,Stations!$W:$W,"=No"),SUMIFS(Stations!L:L,Stations!$J:$J,"="&$A36,Stations!$K:$K,"="&$B36)) -> 40 | G36: =IF($N$1,SUMIFS(Stations!M:M,Stations!$J:$J,"="&$A36,Stations!$K:$K,"="&$B36,Stations!$W:$W,"=No"),SUMIFS(Stations!M:M,Stations!$J:$J,"="&$A36,Stations!$K:$K,"="&$B36)) -> 55 | H36: =IF($N$1,SUMIFS(Stations!O:O,Stations!$J:$J,"="&$A36,Stations!$K:$K,"="&$B36,Stations!$W:$W,"=No"),SUMIFS(Stations!O:O,Stations!$J:$J,"="&$A36,Stations!$K:$K,"="&$B36)) -> 0 | I36: =IF($N$1,SUMIFS(Stations!Q:Q,Stations!$J:$J,"="&$A36,Stations!$K:$K,"="&$B36,Stations!$W:$W,"=No"),SUMIFS(Stations!Q:Q,Stations!$J:$J,"="&$A36,Stations!$K:$K,"="&$B36)) -> 55 | J36: =IF($N$1,SUMIFS(Stations!S:S,Stations!$J:$J,"="&$A36,Stations!$K:$K,"="&$B36,Stations!$W:$W,"=No"),SUMIFS(Stations!S:S,Stations!$J:$J,"="&$A36,Stations!$K:$K,"="&$B36)) -> 1 | K36: =IF($N$1,SUMIFS(Stations!U:U,Stations!$J:$J,"="&$A36,Stations!$K:$K,"="&$B36,Stations!$W:$W,"=No"),SUMIFS(Stations!U:U,Stations!$J:$J,"="&$A36,Stations!$K:$K,"="&$B36)) -> 0
A37: IP | B37: DO | C37: Inclined Plane - Directly Operated | F37: =IF($N$1,SUMIFS(Stations!L:L,Stations!$J:$J,"="&$A37,Stations!$K:$K,"="&$B37,Stations!$W:$W,"=No"),SUMIFS(Stations!L:L,Stations!$J:$J,"="&$A37,Stations!$K:$K,"="&$B37)) -> 6 | G37: =IF($N$1,SUMIFS(Stations!M:M,Stations!$J:$J,"="&$A37,Stations!$K:$K,"="&$B37,Stations!$W:$W,"=No"),SUMIFS(Stations!M:M,Stations!$J:$J,"="&$A37,Stations!$K:$K,"="&$B37)) -> 6 | H37: =IF($N$1,SUMIFS(Stations!O:O,Stations!$J:$J,"="&$A37,Stations!$K:$K,"="&$B37,Stations!$W:$W,"=No"),SUMIFS(Stations!O:O,Stations!$J:$J,"="&$A37,Stations!$K:$K,"="&$B37)) -> 0 | I37: =IF($N$1,SUMIFS(Stations!Q:Q,Stations!$J:$J,"="&$A37,Stations!$K:$K,"="&$B37,Stations!$W:$W,"=No"),SUMIFS(Stations!Q:Q,Stations!$J:$J,"="&$A37,Stations!$K:$K,"="&$B37)) -> 6 | J37: =IF($N$1,SUMIFS(Stations!S:S,Stations!$J:$J,"="&$A37,Stations!$K:$K,"="&$B37,Stations!$W:$W,"=No"),SUMIFS(Stations!S:S,Stations!$J:$J,"="&$A37,Stations!$K:$K,"="&$B37)) -> 3 | K37: =IF($N$1,SUMIFS(Stations!U:U,Stations!$J:$J,"="&$A37,Stations!$K:$K,"="&$B37,Stations!$W:$W,"=No"),SUMIFS(Stations!U:U,Stations!$J:$J,"="&$A37,Stations!$K:$K,"="&$B37)) -> 0
A38: LR | B38: DO | C38: Light Rail - Directly Operated | F38: =IF($N$1,SUMIFS(Stations!L:L,Stations!$J:$J,"="&$A38,Stations!$K:$K,"="&$B38,Stations!$W:$W,"=No"),SUMIFS(Stations!L:L,Stations!$J:$J,"="&$A38,Stations!$K:$K,"="&$B38)) -> 1460 | G38: =IF($N$1,SUMIFS(Stations!M:M,Stations!$J:$J,"="&$A38,Stations!$K:$K,"="&$B38,Stations!$W:$W,"=No"),SUMIFS(Stations!M:M,Stations!$J:$J,"="&$A38,Stations!$K:$K,"="&$B38)) -> 715 | H38: =IF($N$1,SUMIFS(Stations!O:O,Stations!$J:$J,"="&$A38,Stations!$K:$K,"="&$B38,Stations!$W:$W,"=No"),SUMIFS(Stations!O:O,Stations!$J:$J,"="&$A38,Stations!$K:$K,"="&$B38)) -> 66 | I38: =IF($N$1,SUMIFS(Stations!Q:Q,Stations!$J:$J,"="&$A38,Stations!$K:$K,"="&$B38,Stations!$W:$W,"=No"),SUMIFS(Stations!Q:Q,Stations!$J:$J,"="&$A38,Stations!$K:$K,"="&$B38)) -> 781 | J38: =IF($N$1,SUMIFS(Stations!S:S,Stations!$J:$J,"="&$A38,Stations!$K:$K,"="&$B38,Stations!$W:$W,"=No"),SUMIFS(Stations!S:S,Stations!$J:$J,"="&$A38,Stations!$K:$K,"="&$B38)) -> 360 | K38: =IF($N$1,SUMIFS(Stations!U:U,Stations!$J:$J,"="&$A38,Stations!$K:$K,"="&$B38,Stations!$W:$W,"=No"),SUMIFS(Stations!U:U,Stations!$J:$J,"="&$A38,Stations!$K:$K,"="&$B38)) -> 208
A39: LR | B39: PT | C39: Light Rail - Purchased Transportation | F39: =IF($N$1,SUMIFS(Stations!L:L,Stations!$J:$J,"="&$A39,Stations!$K:$K,"="&$B39,Stations!$W:$W,"=No"),SUMIFS(Stations!L:L,Stations!$J:$J,"="&$A39,Stations!$K:$K,"="&$B39)) -> 70 | G39: =IF($N$1,SUMIFS(Stations!M:M,Stations!$J:$J,"="&$A39,Stations!$K:$K,"="&$B39,Stations!$W:$W,"=No"),SUMIFS(Stations!M:M,Stations!$J:$J,"="&$A39,Stations!$K:$K,"="&$B39)) -> 57 | H39: =IF($N$1,SUMIFS(Stations!O:O,Stations!$J:$J,"="&$A39,Stations!$K:$K,"="&$B39,Stations!$W:$W,"=No"),SUMIFS(Stations!O:O,Stations!$J:$J,"="&$A39,Stations!$K:$K,"="&$B39)) -> 0 | I39: =IF($N$1,SUMIFS(Stations!Q:Q,Stations!$J:$J,"="&$A39,Stations!$K:$K,"="&$B39,Stations!$W:$W,"=No"),SUMIFS(Stations!Q:Q,Stations!$J:$J,"="&$A39,Stations!$K:$K,"="&$B39)) -> 57 | J39: =IF($N$1,SUMIFS(Stations!S:S,Stations!$J:$J,"="&$A39,Stations!$K:$K,"="&$B39,Stations!$W:$W,"=No"),SUMIFS(Stations!S:S,Stations!$J:$J,"="&$A39,Stations!$K:$K,"="&$B39)) -> 15 | K39: =IF($N$1,SUMIFS(Stations!U:U,Stations!$J:$J,"="&$A39,Stations!$K:$K,"="&$B39,Stations!$W:$W,"=No"),SUMIFS(Stations!U:U,Stations!$J:$J,"="&$A39,Stations!$K:$K,"="&$B39)) -> 0
A40: MG | B40: DO | C40: Monorail/Automated Guideway - Directly Operated | F40: =IF($N$1,SUMIFS(Stations!L:L,Stations!$J:$J,"="&$A40,Stations!$K:$K,"="&$B40,Stations!$W:$W,"=No"),SUMIFS(Stations!L:L,Stations!$J:$J,"="&$A40,Stations!$K:$K,"="&$B40)) -> 126 | G40: =IF($N$1,SUMIFS(Stations!M:M,Stations!$J:$J,"="&$A40,Stations!$K:$K,"="&$B40,Stations!$W:$W,"=No"),SUMIFS(Stations!M:M,Stations!$J:$J,"="&$A40,Stations!$K:$K,"="&$B40)) -> 56 | H40: =IF($N$1,SUMIFS(Stations!O:O,Stations!$J:$J,"="&$A40,Stations!$K:$K,"="&$B40,Stations!$W:$W,"=No"),SUMIFS(Stations!O:O,Stations!$J:$J,"="&$A40,Stations!$K:$K,"="&$B40)) -> 0 | I40: =IF($N$1,SUMIFS(Stations!Q:Q,Stations!$J:$J,"="&$A40,Stations!$K:$K,"="&$B40,Stations!$W:$W,"=No"),SUMIFS(Stations!Q:Q,Stations!$J:$J,"="&$A40,Stations!$K:$K,"="&$B40)) -> 56 | J40: =IF($N$1,SUMIFS(Stations!S:S,Stations!$J:$J,"="&$A40,Stations!$K:$K,"="&$B40,Stations!$W:$W,"=No"),SUMIFS(Stations!S:S,Stations!$J:$J,"="&$A40,Stations!$K:$K,"="&$B40)) -> 56 | K40: =IF($N$1,SUMIFS(Stations!U:U,Stations!$J:$J,"="&$A40,Stations!$K:$K,"="&$B40,Stations!$W:$W,"=No"),SUMIFS(Stations!U:U,Stations!$J:$J,"="&$A40,Stations!$K:$K,"="&$B40)) -> 73
A41: MG | B41: PT | C41: Monorail/Automated Guideway - Purchased Transportation | F41: =IF($N$1,SUMIFS(Stations!L:L,Stations!$J:$J,"="&$A41,Stations!$K:$K,"="&$B41,Stations!$W:$W,"=No"),SUMIFS(Stations!L:L,Stations!$J:$J,"="&$A41,Stations!$K:$K,"="&$B41)) -> 36 | G41: =IF($N$1,SUMIFS(Stations!M:M,Stations!$J:$J,"="&$A41,Stations!$K:$K,"="&$B41,Stations!$W:$W,"=No"),SUMIFS(Stations!M:M,Stations!$J:$J,"="&$A41,Stations!$K:$K,"="&$B41)) -> 10 | H41: =IF($N$1,SUMIFS(Stations!O:O,Stations!$J:$J,"="&$A41,Stations!$K:$K,"="&$B41,Stations!$W:$W,"=No"),SUMIFS(Stations!O:O,Stations!$J:$J,"="&$A41,Stations!$K:$K,"="&$B41)) -> 0 | I41: =IF($N$1,SUMIFS(Stations!Q:Q,Stations!$J:$J,"="&$A41,Stations!$K:$K,"="&$B41,Stations!$W:$W,"=No"),SUMIFS(Stations!Q:Q,Stations!$J:$J,"="&$A41,Stations!$K:$K,"="&$B41)) -> 10 | J41: =IF($N$1,SUMIFS(Stations!S:S,Stations!$J:$J,"="&$A41,Stations!$K:$K,"="&$B41,Stations!$W:$W,"=No"),SUMIFS(Stations!S:S,Stations!$J:$J,"="&$A41,Stations!$K:$K,"="&$B41)) -> 14 | K41: =IF($N$1,SUMIFS(Stations!U:U,Stations!$J:$J,"="&$A41,Stations!$K:$K,"="&$B41,Stations!$W:$W,"=No"),SUMIFS(Stations!U:U,Stations!$J:$J,"="&$A41,Stations!$K:$K,"="&$B41)) -> 26
A42: SR | B42: DO | C42: Street Car Rail - Directly Operated | F42: =IF($N$1,SUMIFS(Stations!L:L,Stations!$J:$J,"="&$A42,Stations!$K:$K,"="&$B42,Stations!$W:$W,"=No"),SUMIFS(Stations!L:L,Stations!$J:$J,"="&$A42,Stations!$K:$K,"="&$B42)) -> 173 | G42: =IF($N$1,SUMIFS(Stations!M:M,Stations!$J:$J,"="&$A42,Stations!$K:$K,"="&$B42,Stations!$W:$W,"=No"),SUMIFS(Stations!M:M,Stations!$J:$J,"="&$A42,Stations!$K:$K,"="&$B42)) -> 45 | H42: =IF($N$1,SUMIFS(Stations!O:O,Stations!$J:$J,"="&$A42,Stations!$K:$K,"="&$B42,Stations!$W:$W,"=No"),SUMIFS(Stations!O:O,Stations!$J:$J,"="&$A42,Stations!$K:$K,"="&$B42)) -> 43 | I42: =IF($N$1,SUMIFS(Stations!Q:Q,Stations!$J:$J,"="&$A42,Stations!$K:$K,"="&$B42,Stations!$W:$W,"=No"),SUMIFS(Stations!Q:Q,Stations!$J:$J,"="&$A42,Stations!$K:$K,"="&$B42)) -> 88 | J42: =IF($N$1,SUMIFS(Stations!S:S,Stations!$J:$J,"="&$A42,Stations!$K:$K,"="&$B42,Stations!$W:$W,"=No"),SUMIFS(Stations!S:S,Stations!$J:$J,"="&$A42,Stations!$K:$K,"="&$B42)) -> 4 | K42: =IF($N$1,SUMIFS(Stations!U:U,Stations!$J:$J,"="&$A42,Stations!$K:$K,"="&$B42,Stations!$W:$W,"=No"),SUMIFS(Stations!U:U,Stations!$J:$J,"="&$A42,Stations!$K:$K,"="&$B42)) -> 1
A43: SR | B43: PT | C43: Street Car Rail - Purchased Transportation | F43: =IF($N$1,SUMIFS(Stations!L:L,Stations!$J:$J,"="&$A43,Stations!$K:$K,"="&$B43,Stations!$W:$W,"=No"),SUMIFS(Stations!L:L,Stations!$J:$J,"="&$A43,Stations!$K:$K,"="&$B43)) -> 39 | G43: =IF($N$1,SUMIFS(Stations!M:M,Stations!$J:$J,"="&$A43,Stations!$K:$K,"="&$B43,Stations!$W:$W,"=No"),SUMIFS(Stations!M:M,Stations!$J:$J,"="&$A43,Stations!$K:$K,"="&$B43)) -> 12 | H43: =IF($N$1,SUMIFS(Stations!O:O,Stations!$J:$J,"="&$A43,Stations!$K:$K,"="&$B43,Stations!$W:$W,"=No"),SUMIFS(Stations!O:O,Stations!$J:$J,"="&$A43,Stations!$K:$K,"="&$B43)) -> 0 | I43: =IF($N$1,SUMIFS(Stations!Q:Q,Stations!$J:$J,"="&$A43,Stations!$K:$K,"="&$B43,Stations!$W:$W,"=No"),SUMIFS(Stations!Q:Q,Stations!$J:$J,"="&$A43,Stations!$K:$K,"="&$B43)) -> 12 | J43: =IF($N$1,SUMIFS(Stations!S:S,Stations!$J:$J,"="&$A43,Stations!$K:$K,"="&$B43,Stations!$W:$W,"=No"),SUMIFS(Stations!S:S,Stations!$J:$J,"="&$A43,Stations!$K:$K,"="&$B43)) -> 0 | K43: =IF($N$1,SUMIFS(Stations!U:U,Stations!$J:$J,"="&$A43,Stations!$K:$K,"="&$B43,Stations!$W:$W,"=No"),SUMIFS(Stations!U:U,Stations!$J:$J,"="&$A43,Stations!$K:$K,"="&$B43)) -> 0
A44: TB | B44: DO | C44: Trolleybus - Directly Operated | F44: =IF($N$1,SUMIFS(Stations!L:L,Stations!$J:$J,"="&$A44,Stations!$K:$K,"="&$B44,Stations!$W:$W,"=No"),SUMIFS(Stations!L:L,Stations!$J:$J,"="&$A44,Stations!$K:$K,"="&$B44)) -> 391 | G44: =IF($N$1,SUMIFS(Stations!M:M,Stations!$J:$J,"="&$A44,Stations!$K:$K,"="&$B44,Stations!$W:$W,"=No"),SUMIFS(Stations!M:M,Stations!$J:$J,"="&$A44,Stations!$K:$K,"="&$B44)) -> 19 | H44: =IF($N$1,SUMIFS(Stations!O:O,Stations!$J:$J,"="&$A44,Stations!$K:$K,"="&$B44,Stations!$W:$W,"=No"),SUMIFS(Stations!O:O,Stations!$J:$J,"="&$A44,Stations!$K:$K,"="&$B44)) -> 0 | I44: =IF($N$1,SUMIFS(Stations!Q:Q,Stations!$J:$J,"="&$A44,Stations!$K:$K,"="&$B44,Stations!$W:$W,"=No"),SUMIFS(Stations!Q:Q,Stations!$J:$J,"="&$A44,Stations!$K:$K,"="&$B44)) -> 19 | J44: =IF($N$1,SUMIFS(Stations!S:S,Stations!$J:$J,"="&$A44,Stations!$K:$K,"="&$B44,Stations!$W:$W,"=No"),SUMIFS(Stations!S:S,Stations!$J:$J,"="&$A44,Stations!$K:$K,"="&$B44)) -> 7 | K44: =IF($N$1,SUMIFS(Stations!U:U,Stations!$J:$J,"="&$A44,Stations!$K:$K,"="&$B44,Stations!$W:$W,"=No"),SUMIFS(Stations!U:U,Stations!$J:$J,"="&$A44,Stations!$K:$K,"="&$B44)) -> 11
A46: By Agency Size (Vehicles)
D47: enter bins below | E47: Column1 | F47: VOMS | G47: ADA Accessible | H47: Non-ADA Accessible | I47: Total Stations | J47: Elevators | K47: Escalators
A48: under | B48: =D48 -> 10 | D48: 10 | E48: =IFERROR(IF(A48="between",A48&" "&FIXED(B48,0,0)&" "&C48&" "&FIXED(D48,0,0),A48&" "&FIXED(B48,0,0)),"invalid bin") -> under 10 | F48: =IF($N$1,SUMIFS(Stations!L:L,Stations!$I:$I,"<"&$D48,Stations!$W:$W,"=No"),SUMIFS(Stations!L:L,Stations!$I:$I,"<"&$D48)) -> 645 | G48: =IF($N$1,SUMIFS(Stations!M:M,Stations!$I:$I,"<"&$D48,Stations!$W:$W,"=No"),SUMIFS(Stations!M:M,Stations!$I:$I,"<"&$D48)) -> 107 | H48: =IF($N$1,SUMIFS(Stations!O:O,Stations!$I:$I,"<"&$D48,Stations!$W:$W,"=No"),SUMIFS(Stations!O:O,Stations!$I:$I,"<"&$D48)) -> 4 | I48: =IF($N$1,SUMIFS(Stations!Q:Q,Stations!$I:$I,"<"&$D48,Stations!$W:$W,"=No"),SUMIFS(Stations!Q:Q,Stations!$I:$I,"<"&$D48)) -> 111 | J48: =IF($N$1,SUMIFS(Stations!S:S,Stations!$I:$I,"<"&$D48,Stations!$W:$W,"=No"),SUMIFS(Stations!S:S,Stations!$I:$I,"<"&$D48)) -> 14 | K48: =IF($N$1,SUMIFS(Stations!U:U,Stations!$I:$I,"<"&$D48,Stations!$W:$W,"=No"),SUMIFS(Stations!U:U,Stations!$I:$I,"<"&$D48)) -> 3
A49: =IF(D49<>"","between","over") -> between | B49: =D48 -> 10 | C49: =IF(D49<>"","and","") -> and | D49: 25 | E49: =IFERROR(IF(A49="between",A49&" "&FIXED(B49,0,0)&" "&C49&" "&FIXED(D49,0,0),A49&" "&FIXED(B49,0,0)),"invalid bin") -> between 10 and 25 | F49: =IF($N$1,IF($A49="between",SUMIFS(Stations!L:L,Stations!$I:$I,">="&$B49,Stations!$I:$I,"<"&$D49,Stations!$W:$W,"=No"),SUMIFS(Stations!L:L,Stations!$I:$I,">="&$B49,Stations!$W:$W,"=No")),IF($A49="between",SUMIFS(Stations!L:L,Stations!$I:$I,">="&$B49,Stations!$I:$I,"<"&$D49),SUMIFS(Stations!L:L,Stations!$I:$I,">="&$B49))) -> 2068 | G49: =IF($N$1,IF($A49="between",SUMIFS(Stations!M:M,Stations!$I:$I,">="&$B49,Stations!$I:$I,"<"&$D49,Stations!$W:$W,"=No"),SUMIFS(Stations!M:M,Stations!$I:$I,">="&$B49,Stations!$W:$W,"=No")),IF($A49="between",SUMIFS(Stations!M:M,Stations!$I:$I,">="&$B49,Stations!$I:$I,"<"&$D49),SUMIFS(Stations!M:M,Stations!$I:$I,">="&$B49))) -> 219 | H49: =IF($N$1,IF($A49="between",SUMIFS(Stations!O:O,Stations!$I:$I,">="&$B49,Stations!$I:$I,"<"&$D49,Stations!$W:$W,"=No"),SUMIFS(Stations!O:O,Stations!$I:$I,">="&$B49,Stations!$W:$W,"=No")),IF($A49="between",SUMIFS(Stations!O:O,Stations!$I:$I,">="&$B49,Stations!$I:$I,"<"&$D49),SUMIFS(Stations!O:O,Stations!$I:$I,">="&$B49))) -> 2 | I49: =IF($N$1,IF($A49="between",SUMIFS(Stations!Q:Q,Stations!$I:$I,">="&$B49,Stations!$I:$I,"<"&$D49,Stations!$W:$W,"=No"),SUMIFS(Stations!Q:Q,Stations!$I:$I,">="&$B49,Stations!$W:$W,"=No")),IF($A49="between",SUMIFS(Stations!Q:Q,Stations!$I:$I,">="&$B49,Stations!$I:$I,"<"&$D49),SUMIFS(Stations!Q:Q,Stations!$I:$I,">="&$B49))) -> 221 | J49: =IF($N$1,IF($A49="between",SUMIFS(Stations!S:S,Stations!$I:$I,">="&$B49,Stations!$I:$I,"<"&$D49,Stations!$W:$W,"=No"),SUMIFS(Stations!S:S,Stations!$I:$I,">="&$B49,Stations!$W:$W,"=No")),IF($A49="between",SUMIFS(Stations!S:S,Stations!$I:$I,">="&$B49,Stations!$I:$I,"<"&$D49),SUMIFS(Stations!S:S,Stations!$I:$I,">="&$B49))) -> 54 | K49: =IF($N$1,IF($A49="between",SUMIFS(Stations!U:U,Stations!$I:$I,">="&$B49,Stations!$I:$I,"<"&$D49,Stations!$W:$W,"=No"),SUMIFS(Stations!U:U,Stations!$I:$I,">="&$B49,Stations!$W:$W,"=No")),IF($A49="between",SUMIFS(Stations!U:U,Stations!$I:$I,">="&$B49,Stations!$I:$I,"<"&$D49),SUMIFS(Stations!U:U,Stations!$I:$I,">="&$B49))) -> 25
A50: =IF(OR(A49="over",A49=""),"",IF(D50="","over","between")) -> between | B50: =IF(D49="","",D49) -> 25 | C50: =IF(D50<>"","and","") -> and | D50: 50 | E50: between 25 and 50 | F50: =IF($N$1,IF($A50="","",IF($A50="between",SUMIFS(Stations!L:L,Stations!$I:$I,">="&$B50,Stations!$I:$I,"<"&$D50,Stations!$W:$W,"=No"),SUMIFS(Stations!L:L,Stations!$I:$I,">="&$B50,Stations!$W:$W,"=No"))),IF($A50="","",IF($A50="between",SUMIFS(Stations!L:L,Stations!$I:$I,">="&$B50,Stations!$I:$I,"<"&$D50),SUMIFS(Stations!L:L,Stations!$I:$I,">="&$B50)))) -> 3388 | G50: =IF($N$1,IF($A50="","",IF($A50="between",SUMIFS(Stations!M:M,Stations!$I:$I,">="&$B50,Stations!$I:$I,"<"&$D50,Stations!$W:$W,"=No"),SUMIFS(Stations!M:M,Stations!$I:$I,">="&$B50,Stations!$W:$W,"=No"))),IF($A50="","",IF($A50="between",SUMIFS(Stations!M:M,Stations!$I:$I,">="&$B50,Stations!$I:$I,"<"&$D50),SUMIFS(Stations!M:M,Stations!$I:$I,">="&$B50)))) -> 285 | H50: =IF($N$1,IF($A50="","",IF($A50="between",SUMIFS(Stations!O:O,Stations!$I:$I,">="&$B50,Stations!$I:$I,"<"&$D50,Stations!$W:$W,"=No"),SUMIFS(Stations!O:O,Stations!$I:$I,">="&$B50,Stations!$W:$W,"=No"))),IF($A50="","",IF($A50="between",SUMIFS(Stations!O:O,Stations!$I:$I,">="&$B50,Stations!$I:$I,"<"&$D50),SUMIFS(Stations!O:O,Stations!$I:$I,">="&$B50)))) -> 29 | I50: =IF($N$1,IF($A50="","",IF($A50="between",SUMIFS(Stations!Q:Q,Stations!$I:$I,">="&$B50,Stations!$I:$I,"<"&$D50,Stations!$W:$W,"=No"),SUMIFS(Stations!Q:Q,Stations!$I:$I,">="&$B50,Stations!$W:$W,"=No"))),IF($A50="","",IF($A50="between",SUMIFS(Stations!Q:Q,Stations!$I:$I,">="&$B50,Stations!$I:$I,"<"&$D50),SUMIFS(Stations!Q:Q,Stations!$I:$I,">="&$B50)))) -> 314 | J50: =IF($N$1,IF($A50="","",IF($A50="between",SUMIFS(Stations!S:S,Stations!$I:$I,">="&$B50,Stations!$I:$I,"<"&$D50,Stations!$W:$W,"=No"),SUMIFS(Stations!S:S,Stations!$I:$I,">="&$B50,Stations!$W:$W,"=No"))),IF($A50="","",IF($A50="between",SUMIFS(Stations!S:S,Stations!$I:$I,">="&$B50,Stations!$I:$I,"<"&$D50),SUMIFS(Stations!S:S,Stations!$I:$I,">="&$B50)))) -> 95 | K50: =IF($N$1,IF($A50="","",IF($A50="between",SUMIFS(Stations!U:U,Stations!$I:$I,">="&$B50,Stations!$I:$I,"<"&$D50,Stations!$W:$W,"=No"),SUMIFS(Stations!U:U,Stations!$I:$I,">="&$B50,Stations!$W:$W,"=No"))),IF($A50="","",IF($A50="between",SUMIFS(Stations!U:U,Stations!$I:$I,">="&$B50,Stations!$I:$I,"<"&$D50),SUMIFS(Stations!U:U,Stations!$I:$I,">="&$B50)))) -> 69
A51: between | B51: 50 | C51: =IF(D51<>"","and","") -> and | D51: 100 | E51: between 50 and 100 | F51: =IF($N$1,IF($A51="","",IF($A51="between",SUMIFS(Stations!L:L,Stations!$I:$I,">="&$B51,Stations!$I:$I,"<"&$D51,Stations!$W:$W,"=No"),SUMIFS(Stations!L:L,Stations!$I:$I,">="&$B51,Stations!$W:$W,"=No"))),IF($A51="","",IF($A51="between",SUMIFS(Stations!L:L,Stations!$I:$I,">="&$B51,Stations!$I:$I,"<"&$D51),SUMIFS(Stations!L:L,Stations!$I:$I,">="&$B51)))) -> 5151 | G51: =IF($N$1,IF($A51="","",IF($A51="between",SUMIFS(Stations!M:M,Stations!$I:$I,">="&$B51,Stations!$I:$I,"<"&$D51,Stations!$W:$W,"=No"),SUMIFS(Stations!M:M,Stations!$I:$I,">="&$B51,Stations!$W:$W,"=No"))),IF($A51="","",IF($A51="between",SUMIFS(Stations!M:M,Stations!$I:$I,">="&$B51,Stations!$I:$I,"<"&$D51),SUMIFS(Stations!M:M,Stations!$I:$I,">="&$B51)))) -> 286 | H51: =IF($N$1,IF($A51="","",IF($A51="between",SUMIFS(Stations!O:O,Stations!$I:$I,">="&$B51,Stations!$I:$I,"<"&$D51,Stations!$W:$W,"=No"),SUMIFS(Stations!O:O,Stations!$I:$I,">="&$B51,Stations!$W:$W,"=No"))),IF($A51="","",IF($A51="between",SUMIFS(Stations!O:O,Stations!$I:$I,">="&$B51,Stations!$I:$I,"<"&$D51),SUMIFS(Stations!O:O,Stations!$I:$I,">="&$B51)))) -> 12 | I51: =IF($N$1,IF($A51="","",IF($A51="between",SUMIFS(Stations!Q:Q,Stations!$I:$I,">="&$B51,Stations!$I:$I,"<"&$D51,Stations!$W:$W,"=No"),SUMIFS(Stations!Q:Q,Stations!$I:$I,">="&$B51,Stations!$W:$W,"=No"))),IF($A51="","",IF($A51="between",SUMIFS(Stations!Q:Q,Stations!$I:$I,">="&$B51,Stations!$I:$I,"<"&$D51),SUMIFS(Stations!Q:Q,Stations!$I:$I,">="&$B51)))) -> 298 | J51: =IF($N$1,IF($A51="","",IF($A51="between",SUMIFS(Stations!S:S,Stations!$I:$I,">="&$B51,Stations!$I:$I,"<"&$D51,Stations!$W:$W,"=No"),SUMIFS(Stations!S:S,Stations!$I:$I,">="&$B51,Stations!$W:$W,"=No"))),IF($A51="","",IF($A51="between",SUMIFS(Stations!S:S,Stations!$I:$I,">="&$B51,Stations!$I:$I,"<"&$D51),SUMIFS(Stations!S:S,Stations!$I:$I,">="&$B51)))) -> 144 | K51: =IF($N$1,IF($A51="","",IF($A51="between",SUMIFS(Stations!U:U,Stations!$I:$I,">="&$B51,Stations!$I:$I,"<"&$D51,Stations!$W:$W,"=No"),SUMIFS(Stations!U:U,Stations!$I:$I,">="&$B51,Stations!$W:$W,"=No"))),IF($A51="","",IF($A51="between",SUMIFS(Stations!U:U,Stations!$I:$I,">="&$B51,Stations!$I:$I,"<"&$D51),SUMIFS(Stations!U:U,Stations!$I:$I,">="&$B51)))) -> 97
A52: between | B52: 100 | C52: and | D52: 250 | E52: between 100 and 250 | F52: =IF($N$1,IF($A52="","",IF($A52="between",SUMIFS(Stations!L:L,Stations!$I:$I,">="&$B52,Stations!$I:$I,"<"&$D52,Stations!$W:$W,"=No"),SUMIFS(Stations!L:L,Stations!$I:$I,">="&$B52,Stations!$W:$W,"=No"))),IF($A52="","",IF($A52="between",SUMIFS(Stations!L:L,Stations!$I:$I,">="&$B52,Stations!$I:$I,"<"&$D52),SUMIFS(Stations!L:L,Stations!$I:$I,">="&$B52)))) -> 7351 | G52: =IF($N$1,IF($A52="","",IF($A52="between",SUMIFS(Stations!M:M,Stations!$I:$I,">="&$B52,Stations!$I:$I,"<"&$D52,Stations!$W:$W,"=No"),SUMIFS(Stations!M:M,Stations!$I:$I,">="&$B52,Stations!$W:$W,"=No"))),IF($A52="","",IF($A52="between",SUMIFS(Stations!M:M,Stations!$I:$I,">="&$B52,Stations!$I:$I,"<"&$D52),SUMIFS(Stations!M:M,Stations!$I:$I,">="&$B52)))) -> 441 | H52: =IF($N$1,IF($A52="","",IF($A52="between",SUMIFS(Stations!O:O,Stations!$I:$I,">="&$B52,Stations!$I:$I,"<"&$D52,Stations!$W:$W,"=No"),SUMIFS(Stations!O:O,Stations!$I:$I,">="&$B52,Stations!$W:$W,"=No"))),IF($A52="","",IF($A52="between",SUMIFS(Stations!O:O,Stations!$I:$I,">="&$B52,Stations!$I:$I,"<"&$D52),SUMIFS(Stations!O:O,Stations!$I:$I,">="&$B52)))) -> 8 | I52: =IF($N$1,IF($A52="","",IF($A52="between",SUMIFS(Stations!Q:Q,Stations!$I:$I,">="&$B52,Stations!$I:$I,"<"&$D52,Stations!$W:$W,"=No"),SUMIFS(Stations!Q:Q,Stations!$I:$I,">="&$B52,Stations!$W:$W,"=No"))),IF($A52="","",IF($A52="between",SUMIFS(Stations!Q:Q,Stations!$I:$I,">="&$B52,Stations!$I:$I,"<"&$D52),SUMIFS(Stations!Q:Q,Stations!$I:$I,">="&$B52)))) -> 449 | J52: =IF($N$1,IF($A52="","",IF($A52="between",SUMIFS(Stations!S:S,Stations!$I:$I,">="&$B52,Stations!$I:$I,"<"&$D52,Stations!$W:$W,"=No"),SUMIFS(Stations!S:S,Stations!$I:$I,">="&$B52,Stations!$W:$W,"=No"))),IF($A52="","",IF($A52="between",SUMIFS(Stations!S:S,Stations!$I:$I,">="&$B52,Stations!$I:$I,"<"&$D52),SUMIFS(Stations!S:S,Stations!$I:$I,">="&$B52)))) -> 147 | K52: =IF($N$1,IF($A52="","",IF($A52="between",SUMIFS(Stations!U:U,Stations!$I:$I,">="&$B52,Stations!$I:$I,"<"&$D52,Stations!$W:$W,"=No"),SUMIFS(Stations!U:U,Stations!$I:$I,">="&$B52,Stations!$W:$W,"=No"))),IF($A52="","",IF($A52="between",SUMIFS(Stations!U:U,Stations!$I:$I,">="&$B52,Stations!$I:$I,"<"&$D52),SUMIFS(Stations!U:U,Stations!$I:$I,">="&$B52)))) -> 107
A53: between | B53: 250 | C53: and | D53: 500 | E53: between 250 and 500 | F53: =IF($N$1,IF($A53="","",IF($A53="between",SUMIFS(Stations!L:L,Stations!$I:$I,">="&$B53,Stations!$I:$I,"<"&$D53,Stations!$W:$W,"=No"),SUMIFS(Stations!L:L,Stations!$I:$I,">="&$B53,Stations!$W:$W,"=No"))),IF($A53="","",IF($A53="between",SUMIFS(Stations!L:L,Stations!$I:$I,">="&$B53,Stations!$I:$I,"<"&$D53),SUMIFS(Stations!L:L,Stations!$I:$I,">="&$B53)))) -> 8624 | G53: =IF($N$1,IF($A53="","",IF($A53="between",SUMIFS(Stations!M:M,Stations!$I:$I,">="&$B53,Stations!$I:$I,"<"&$D53,Stations!$W:$W,"=No"),SUMIFS(Stations!M:M,Stations!$I:$I,">="&$B53,Stations!$W:$W,"=No"))),IF($A53="","",IF($A53="between",SUMIFS(Stations!M:M,Stations!$I:$I,">="&$B53,Stations!$I:$I,"<"&$D53),SUMIFS(Stations!M:M,Stations!$I:$I,">="&$B53)))) -> 307 | H53: =IF($N$1,IF($A53="","",IF($A53="between",SUMIFS(Stations!O:O,Stations!$I:$I,">="&$B53,Stations!$I:$I,"<"&$D53,Stations!$W:$W,"=No"),SUMIFS(Stations!O:O,Stations!$I:$I,">="&$B53,Stations!$W:$W,"=No"))),IF($A53="","",IF($A53="between",SUMIFS(Stations!O:O,Stations!$I:$I,">="&$B53,Stations!$I:$I,"<"&$D53),SUMIFS(Stations!O:O,Stations!$I:$I,">="&$B53)))) -> 7 | I53: =IF($N$1,IF($A53="","",IF($A53="between",SUMIFS(Stations!Q:Q,Stations!$I:$I,">="&$B53,Stations!$I:$I,"<"&$D53,Stations!$W:$W,"=No"),SUMIFS(Stations!Q:Q,Stations!$I:$I,">="&$B53,Stations!$W:$W,"=No"))),IF($A53="","",IF($A53="between",SUMIFS(Stations!Q:Q,Stations!$I:$I,">="&$B53,Stations!$I:$I,"<"&$D53),SUMIFS(Stations!Q:Q,Stations!$I:$I,">="&$B53)))) -> 314 | J53: =IF($N$1,IF($A53="","",IF($A53="between",SUMIFS(Stations!S:S,Stations!$I:$I,">="&$B53,Stations!$I:$I,"<"&$D53,Stations!$W:$W,"=No"),SUMIFS(Stations!S:S,Stations!$I:$I,">="&$B53,Stations!$W:$W,"=No"))),IF($A53="","",IF($A53="between",SUMIFS(Stations!S:S,Stations!$I:$I,">="&$B53,Stations!$I:$I,"<"&$D53),SUMIFS(Stations!S:S,Stations!$I:$I,">="&$B53)))) -> 163 | K53: =IF($N$1,IF($A53="","",IF($A53="between",SUMIFS(Stations!U:U,Stations!$I:$I,">="&$B53,Stations!$I:$I,"<"&$D53,Stations!$W:$W,"=No"),SUMIFS(Stations!U:U,Stations!$I:$I,">="&$B53,Stations!$W:$W,"=No"))),IF($A53="","",IF($A53="between",SUMIFS(Stations!U:U,Stations!$I:$I,">="&$B53,Stations!$I:$I,"<"&$D53),SUMIFS(Stations!U:U,Stations!$I:$I,">="&$B53)))) -> 127
A54: between | B54: 500 | C54: and | D54: 1000 | E54: between 500 and 1,000 | F54: =IF($N$1,IF($A54="","",IF($A54="between",SUMIFS(Stations!L:L,Stations!$I:$I,">="&$B54,Stations!$I:$I,"<"&$D54,Stations!$W:$W,"=No"),SUMIFS(Stations!L:L,Stations!$I:$I,">="&$B54,Stations!$W:$W,"=No"))),IF($A54="","",IF($A54="between",SUMIFS(Stations!L:L,Stations!$I:$I,">="&$B54,Stations!$I:$I,"<"&$D54),SUMIFS(Stations!L:L,Stations!$I:$I,">="&$B54)))) -> 7804 | G54: =IF($N$1,IF($A54="","",IF($A54="between",SUMIFS(Stations!M:M,Stations!$I:$I,">="&$B54,Stations!$I:$I,"<"&$D54,Stations!$W:$W,"=No"),SUMIFS(Stations!M:M,Stations!$I:$I,">="&$B54,Stations!$W:$W,"=No"))),IF($A54="","",IF($A54="between",SUMIFS(Stations!M:M,Stations!$I:$I,">="&$B54,Stations!$I:$I,"<"&$D54),SUMIFS(Stations!M:M,Stations!$I:$I,">="&$B54)))) -> 506 | H54: =IF($N$1,IF($A54="","",IF($A54="between",SUMIFS(Stations!O:O,Stations!$I:$I,">="&$B54,Stations!$I:$I,"<"&$D54,Stations!$W:$W,"=No"),SUMIFS(Stations!O:O,Stations!$I:$I,">="&$B54,Stations!$W:$W,"=No"))),IF($A54="","",IF($A54="between",SUMIFS(Stations!O:O,Stations!$I:$I,">="&$B54,Stations!$I:$I,"<"&$D54),SUMIFS(Stations!O:O,Stations!$I:$I,">="&$B54)))) -> 27 | I54: =IF($N$1,IF($A54="","",IF($A54="between",SUMIFS(Stations!Q:Q,Stations!$I:$I,">="&$B54,Stations!$I:$I,"<"&$D54,Stations!$W:$W,"=No"),SUMIFS(Stations!Q:Q,Stations!$I:$I,">="&$B54,Stations!$W:$W,"=No"))),IF($A54="","",IF($A54="between",SUMIFS(Stations!Q:Q,Stations!$I:$I,">="&$B54,Stations!$I:$I,"<"&$D54),SUMIFS(Stations!Q:Q,Stations!$I:$I,">="&$B54)))) -> 533 | J54: =IF($N$1,IF($A54="","",IF($A54="between",SUMIFS(Stations!S:S,Stations!$I:$I,">="&$B54,Stations!$I:$I,"<"&$D54,Stations!$W:$W,"=No"),SUMIFS(Stations!S:S,Stations!$I:$I,">="&$B54,Stations!$W:$W,"=No"))),IF($A54="","",IF($A54="between",SUMIFS(Stations!S:S,Stations!$I:$I,">="&$B54,Stations!$I:$I,"<"&$D54),SUMIFS(Stations!S:S,Stations!$I:$I,">="&$B54)))) -> 407 | K54: =IF($N$1,IF($A54="","",IF($A54="between",SUMIFS(Stations!U:U,Stations!$I:$I,">="&$B54,Stations!$I:$I,"<"&$D54,Stations!$W:$W,"=No"),SUMIFS(Stations!U:U,Stations!$I:$I,">="&$B54,Stations!$W:$W,"=No"))),IF($A54="","",IF($A54="between",SUMIFS(Stations!U:U,Stations!$I:$I,">="&$B54,Stations!$I:$I,"<"&$D54),SUMIFS(Stations!U:U,Stations!$I:$I,">="&$B54)))) -> 403
A55: between | B55: 1000 | C55: and | D55: 2000 | E55: between 1,000 and 2,000 | F55: =IF($N$1,IF($A55="","",IF($A55="between",SUMIFS(Stations!L:L,Stations!$I:$I,">="&$B55,Stations!$I:$I,"<"&$D55,Stations!$W:$W,"=No"),SUMIFS(Stations!L:L,Stations!$I:$I,">="&$B55,Stations!$W:$W,"=No"))),IF($A55="","",IF($A55="between",SUMIFS(Stations!L:L,Stations!$I:$I,">="&$B55,Stations!$I:$I,"<"&$D55),SUMIFS(Stations!L:L,Stations!$I:$I,">="&$B55)))) -> 10330 | G55: =IF($N$1,IF($A55="","",IF($A55="between",SUMIFS(Stations!M:M,Stations!$I:$I,">="&$B55,Stations!$I:$I,"<"&$D55,Stations!$W:$W,"=No"),SUMIFS(Stations!M:M,Stations!$I:$I,">="&$B55,Stations!$W:$W,"=No"))),IF($A55="","",IF($A55="between",SUMIFS(Stations!M:M,Stations!$I:$I,">="&$B55,Stations!$I:$I,"<"&$D55),SUMIFS(Stations!M:M,Stations!$I:$I,">="&$B55)))) -> 900 | H55: =IF($N$1,IF($A55="","",IF($A55="between",SUMIFS(Stations!O:O,Stations!$I:$I,">="&$B55,Stations!$I:$I,"<"&$D55,Stations!$W:$W,"=No"),SUMIFS(Stations!O:O,Stations!$I:$I,">="&$B55,Stations!$W:$W,"=No"))),IF($A55="","",IF($A55="between",SUMIFS(Stations!O:O,Stations!$I:$I,">="&$B55,Stations!$I:$I,"<"&$D55),SUMIFS(Stations!O:O,Stations!$I:$I,">="&$B55)))) -> 201 | I55: =IF($N$1,IF($A55="","",IF($A55="between",SUMIFS(Stations!Q:Q,Stations!$I:$I,">="&$B55,Stations!$I:$I,"<"&$D55,Stations!$W:$W,"=No"),SUMIFS(Stations!Q:Q,Stations!$I:$I,">="&$B55,Stations!$W:$W,"=No"))),IF($A55="","",IF($A55="between",SUMIFS(Stations!Q:Q,Stations!$I:$I,">="&$B55,Stations!$I:$I,"<"&$D55),SUMIFS(Stations!Q:Q,Stations!$I:$I,">="&$B55)))) -> 1101 | J55: =IF($N$1,IF($A55="","",IF($A55="between",SUMIFS(Stations!S:S,Stations!$I:$I,">="&$B55,Stations!$I:$I,"<"&$D55,Stations!$W:$W,"=No"),SUMIFS(Stations!S:S,Stations!$I:$I,">="&$B55,Stations!$W:$W,"=No"))),IF($A55="","",IF($A55="between",SUMIFS(Stations!S:S,Stations!$I:$I,">="&$B55,Stations!$I:$I,"<"&$D55),SUMIFS(Stations!S:S,Stations!$I:$I,">="&$B55)))) -> 528 | K55: =IF($N$1,IF($A55="","",IF($A55="between",SUMIFS(Stations!U:U,Stations!$I:$I,">="&$B55,Stations!$I:$I,"<"&$D55,Stations!$W:$W,"=No"),SUMIFS(Stations!U:U,Stations!$I:$I,">="&$B55,Stations!$W:$W,"=No"))),IF($A55="","",IF($A55="between",SUMIFS(Stations!U:U,Stations!$I:$I,">="&$B55,Stations!$I:$I,"<"&$D55),SUMIFS(Stations!U:U,Stations!$I:$I,">="&$B55)))) -> 329
A56: over | B56: 2000 | E56: over 2,000 | F56: =IF($N$1,IF($A56="","",IF($A56="between",SUMIFS(Stations!L:L,Stations!$I:$I,">="&$B56,Stations!$I:$I,"<"&$D56,Stations!$W:$W,"=No"),SUMIFS(Stations!L:L,Stations!$I:$I,">="&$B56,Stations!$W:$W,"=No"))),IF($A56="","",IF($A56="between",SUMIFS(Stations!L:L,Stations!$I:$I,">="&$B56,Stations!$I:$I,"<"&$D56),SUMIFS(Stations!L:L,Stations!$I:$I,">="&$B56)))) -> 25549 | G56: =IF($N$1,IF($A56="","",IF($A56="between",SUMIFS(Stations!M:M,Stations!$I:$I,">="&$B56,Stations!$I:$I,"<"&$D56,Stations!$W:$W,"=No"),SUMIFS(Stations!M:M,Stations!$I:$I,">="&$B56,Stations!$W:$W,"=No"))),IF($A56="","",IF($A56="between",SUMIFS(Stations!M:M,Stations!$I:$I,">="&$B56,Stations!$I:$I,"<"&$D56),SUMIFS(Stations!M:M,Stations!$I:$I,">="&$B56)))) -> 1161 | H56: =IF($N$1,IF($A56="","",IF($A56="between",SUMIFS(Stations!O:O,Stations!$I:$I,">="&$B56,Stations!$I:$I,"<"&$D56,Stations!$W:$W,"=No"),SUMIFS(Stations!O:O,Stations!$I:$I,">="&$B56,Stations!$W:$W,"=No"))),IF($A56="","",IF($A56="between",SUMIFS(Stations!O:O,Stations!$I:$I,">="&$B56,Stations!$I:$I,"<"&$D56),SUMIFS(Stations!O:O,Stations!$I:$I,">="&$B56)))) -> 743 | I56: =IF($N$1,IF($A56="","",IF($A56="between",SUMIFS(Stations!Q:Q,Stations!$I:$I,">="&$B56,Stations!$I:$I,"<"&$D56,Stations!$W:$W,"=No"),SUMIFS(Stations!Q:Q,Stations!$I:$I,">="&$B56,Stations!$W:$W,"=No"))),IF($A56="","",IF($A56="between",SUMIFS(Stations!Q:Q,Stations!$I:$I,">="&$B56,Stations!$I:$I,"<"&$D56),SUMIFS(Stations!Q:Q,Stations!$I:$I,">="&$B56)))) -> 1904 | J56: =IF($N$1,IF($A56="","",IF($A56="between",SUMIFS(Stations!S:S,Stations!$I:$I,">="&$B56,Stations!$I:$I,"<"&$D56,Stations!$W:$W,"=No"),SUMIFS(Stations!S:S,Stations!$I:$I,">="&$B56,Stations!$W:$W,"=No"))),IF($A56="","",IF($A56="between",SUMIFS(Stations!S:S,Stations!$I:$I,">="&$B56,Stations!$I:$I,"<"&$D56),SUMIFS(Stations!S:S,Stations!$I:$I,">="&$B56)))) -> 1294 | K56: =IF($N$1,IF($A56="","",IF($A56="between",SUMIFS(Stations!U:U,Stations!$I:$I,">="&$B56,Stations!$I:$I,"<"&$D56,Stations!$W:$W,"=No"),SUMIFS(Stations!U:U,Stations!$I:$I,">="&$B56,Stations!$W:$W,"=No"))),IF($A56="","",IF($A56="between",SUMIFS(Stations!U:U,Stations!$I:$I,">="&$B56,Stations!$I:$I,"<"&$D56),SUMIFS(Stations!U:U,Stations!$I:$I,">="&$B56)))) -> 1518
A59: By State
C60: Abbreviation | D60: State | E60: Column1 | F60: VOMS | G60: ADA Accessible | H60: Non-ADA Accessible | I60: Total Stations | J60: Elevators | K60: Escalators
C61: AK | D61: Alaska | F61: =IF($N$1,SUMIFS(Stations!L:L,Stations!$C:$C,"="&$C61,Stations!$W:$W,"=No"),SUMIFS(Stations!L:L,Stations!$C:$C,"="&$C61)) -> 103 | G61: =IF($N$1,SUMIFS(Stations!M:M,Stations!$C:$C,"="&$C61,Stations!$W:$W,"=No"),SUMIFS(Stations!M:M,Stations!$C:$C,"="&$C61)) -> 15 | H61: =IF($N$1,SUMIFS(Stations!O:O,Stations!$C:$C,"="&$C61,Stations!$W:$W,"=No"),SUMIFS(Stations!O:O,Stations!$C:$C,"="&$C61)) -> 0 | I61: =IF($N$1,SUMIFS(Stations!Q:Q,Stations!$C:$C,"="&$C61,Stations!$W:$W,"=No"),SUMIFS(Stations!Q:Q,Stations!$C:$C,"="&$C61)) -> 15 | J61: =IF($N$1,SUMIFS(Stations!S:S,Stations!$C:$C,"="&$C61,Stations!$W:$W,"=No"),SUMIFS(Stations!S:S,Stations!$C:$C,"="&$C61)) -> 2 | K61: =IF($N$1,SUMIFS(Stations!U:U,Stations!$C:$C,"="&$C61,Stations!$W:$W,"=No"),SUMIFS(Stations!U:U,Stations!$C:$C,"="&$C61)) -> 2
C62: AL | D62: Alabama | F62: =IF($N$1,SUMIFS(Stations!L:L,Stations!$C:$C,"="&$C62,Stations!$W:$W,"=No"),SUMIFS(Stations!L:L,Stations!$C:$C,"="&$C62)) -> 149 | G62: =IF($N$1,SUMIFS(Stations!M:M,Stations!$C:$C,"="&$C62,Stations!$W:$W,"=No"),SUMIFS(Stations!M:M,Stations!$C:$C,"="&$C62)) -> 9 | H62: =IF($N$1,SUMIFS(Stations!O:O,Stations!$C:$C,"="&$C62,Stations!$W:$W,"=No"),SUMIFS(Stations!O:O,Stations!$C:$C,"="&$C62)) -> 0 | I62: =IF($N$1,SUMIFS(Stations!Q:Q,Stations!$C:$C,"="&$C62,Stations!$W:$W,"=No"),SUMIFS(Stations!Q:Q,Stations!$C:$C,"="&$C62)) -> 9 | J62: =IF($N$1,SUMIFS(Stations!S:S,Stations!$C:$C,"="&$C62,Stations!$W:$W,"=No"),SUMIFS(Stations!S:S,Stations!$C:$C,"="&$C62)) -> 6 | K62: =IF($N$1,SUMIFS(Stations!U:U,Stations!$C:$C,"="&$C62,Stations!$W:$W,"=No"),SUMIFS(Stations!U:U,Stations!$C:$C,"="&$C62)) -> 1
C63: AR | D63: Arkansas | F63: =IF($N$1,SUMIFS(Stations!L:L,Stations!$C:$C,"="&$C63,Stations!$W:$W,"=No"),SUMIFS(Stations!L:L,Stations!$C:$C,"="&$C63)) -> 113 | G63: =IF($N$1,SUMIFS(Stations!M:M,Stations!$C:$C,"="&$C63,Stations!$W:$W,"=No"),SUMIFS(Stations!M:M,Stations!$C:$C,"="&$C63)) -> 5 | H63: =IF($N$1,SUMIFS(Stations!O:O,Stations!$C:$C,"="&$C63,Stations!$W:$W,"=No"),SUMIFS(Stations!O:O,Stations!$C:$C,"="&$C63)) -> 0 | I63: =IF($N$1,SUMIFS(Stations!Q:Q,Stations!$C:$C,"="&$C63,Stations!$W:$W,"=No"),SUMIFS(Stations!Q:Q,Stations!$C:$C,"="&$C63)) -> 5 | J63: =IF($N$1,SUMIFS(Stations!S:S,Stations!$C:$C,"="&$C63,Stations!$W:$W,"=No"),SUMIFS(Stations!S:S,Stations!$C:$C,"="&$C63)) -> 2 | K63: =IF($N$1,SUMIFS(Stations!U:U,Stations!$C:$C,"="&$C63,Stations!$W:$W,"=No"),SUMIFS(Stations!U:U,Stations!$C:$C,"="&$C63)) -> 0
C64: AS | D64: American Samoa | F64: =IF($N$1,SUMIFS(Stations!L:L,Stations!$C:$C,"="&$C64,Stations!$W:$W,"=No"),SUMIFS(Stations!L:L,Stations!$C:$C,"="&$C64)) -> 0 | G64: =IF($N$1,SUMIFS(Stations!M:M,Stations!$C:$C,"="&$C64,Stations!$W:$W,"=No"),SUMIFS(Stations!M:M,Stations!$C:$C,"="&$C64)) -> 0 | H64: =IF($N$1,SUMIFS(Stations!O:O,Stations!$C:$C,"="&$C64,Stations!$W:$W,"=No"),SUMIFS(Stations!O:O,Stations!$C:$C,"="&$C64)) -> 0 | I64: =IF($N$1,SUMIFS(Stations!Q:Q,Stations!$C:$C,"="&$C64,Stations!$W:$W,"=No"),SUMIFS(Stations!Q:Q,Stations!$C:$C,"="&$C64)) -> 0 | J64: =IF($N$1,SUMIFS(Stations!S:S,Stations!$C:$C,"="&$C64,Stations!$W:$W,"=No"),SUMIFS(Stations!S:S,Stations!$C:$C,"="&$C64)) -> 0 | K64: =IF($N$1,SUMIFS(Stations!U:U,Stations!$C:$C,"="&$C64,Stations!$W:$W,"=No"),SUMIFS(Stations!U:U,Stations!$C:$C,"="&$C64)) -> 0
C65: AZ | D65: Arizona | F65: =IF($N$1,SUMIFS(Stations!L:L,Stations!$C:$C,"="&$C65,Stations!$W:$W,"=No"),SUMIFS(Stations!L:L,Stations!$C:$C,"="&$C65)) -> 1072 | G65: =IF($N$1,SUMIFS(Stations!M:M,Stations!$C:$C,"="&$C65,Stations!$W:$W,"=No"),SUMIFS(Stations!M:M,Stations!$C:$C,"="&$C65)) -> 47 | H65: =IF($N$1,SUMIFS(Stations!O:O,Stations!$C:$C,"="&$C65,Stations!$W:$W,"=No"),SUMIFS(Stations!O:O,Stations!$C:$C,"="&$C65)) -> 0 | I65: =IF($N$1,SUMIFS(Stations!Q:Q,Stations!$C:$C,"="&$C65,Stations!$W:$W,"=No"),SUMIFS(Stations!Q:Q,Stations!$C:$C,"="&$C65)) -> 47 | J65: =IF($N$1,SUMIFS(Stations!S:S,Stations!$C:$C,"="&$C65,Stations!$W:$W,"=No"),SUMIFS(Stations!S:S,Stations!$C:$C,"="&$C65)) -> 0 | K65: =IF($N$1,SUMIFS(Stations!U:U,Stations!$C:$C,"="&$C65,Stations!$W:$W,"=No"),SUMIFS(Stations!U:U,Stations!$C:$C,"="&$C65)) -> 0
C66: CA | D66: California | F66: =IF($N$1,SUMIFS(Stations!L:L,Stations!$C:$C,"="&$C66,Stations!$W:$W,"=No"),SUMIFS(Stations!L:L,Stations!$C:$C,"="&$C66)) -> 10247 | G66: =IF($N$1,SUMIFS(Stations!M:M,Stations!$C:$C,"="&$C66,Stations!$W:$W,"=No"),SUMIFS(Stations!M:M,Stations!$C:$C,"="&$C66)) -> 720 | H66: =IF($N$1,SUMIFS(Stations!O:O,Stations!$C:$C,"="&$C66,Stations!$W:$W,"=No"),SUMIFS(Stations!O:O,Stations!$C:$C,"="&$C66)) -> 6 | I66: =IF($N$1,SUMIFS(Stations!Q:Q,Stations!$C:$C,"="&$C66,Stations!$W:$W,"=No"),SUMIFS(Stations!Q:Q,Stations!$C:$C,"="&$C66)) -> 726 | J66: =IF($N$1,SUMIFS(Stations!S:S,Stations!$C:$C,"="&$C66,Stations!$W:$W,"=No"),SUMIFS(Stations!S:S,Stations!$C:$C,"="&$C66)) -> 479 | K66: =IF($N$1,SUMIFS(Stations!U:U,Stations!$C:$C,"="&$C66,Stations!$W:$W,"=No"),SUMIFS(Stations!U:U,Stations!$C:$C,"="&$C66)) -> 417
C67: CO | D67: Colorado | F67: =IF($N$1,SUMIFS(Stations!L:L,Stations!$C:$C,"="&$C67,Stations!$W:$W,"=No"),SUMIFS(Stations!L:L,Stations!$C:$C,"="&$C67)) -> 1107 | G67: =IF($N$1,SUMIFS(Stations!M:M,Stations!$C:$C,"="&$C67,Stations!$W:$W,"=No"),SUMIFS(Stations!M:M,Stations!$C:$C,"="&$C67)) -> 62 | H67: =IF($N$1,SUMIFS(Stations!O:O,Stations!$C:$C,"="&$C67,Stations!$W:$W,"=No"),SUMIFS(Stations!O:O,Stations!$C:$C,"="&$C67)) -> 0 | I67: =IF($N$1,SUMIFS(Stations!Q:Q,Stations!$C:$C,"="&$C67,Stations!$W:$W,"=No"),SUMIFS(Stations!Q:Q,Stations!$C:$C,"="&$C67)) -> 62 | J67: =IF($N$1,SUMIFS(Stations!S:S,Stations!$C:$C,"="&$C67,Stations!$W:$W,"=No"),SUMIFS(Stations!S:S,Stations!$C:$C,"="&$C67)) -> 76 | K67: =IF($N$1,SUMIFS(Stations!U:U,Stations!$C:$C,"="&$C67,Stations!$W:$W,"=No"),SUMIFS(Stations!U:U,Stations!$C:$C,"="&$C67)) -> 16
C68: CT | D68: Connecticut | F68: =IF($N$1,SUMIFS(Stations!L:L,Stations!$C:$C,"="&$C68,Stations!$W:$W,"=No"),SUMIFS(Stations!L:L,Stations!$C:$C,"="&$C68)) -> 645 | G68: =IF($N$1,SUMIFS(Stations!M:M,Stations!$C:$C,"="&$C68,Stations!$W:$W,"=No"),SUMIFS(Stations!M:M,Stations!$C:$C,"="&$C68)) -> 12 | H68: =IF($N$1,SUMIFS(Stations!O:O,Stations!$C:$C,"="&$C68,Stations!$W:$W,"=No"),SUMIFS(Stations!O:O,Stations!$C:$C,"="&$C68)) -> 1 | I68: =IF($N$1,SUMIFS(Stations!Q:Q,Stations!$C:$C,"="&$C68,Stations!$W:$W,"=No"),SUMIFS(Stations!Q:Q,Stations!$C:$C,"="&$C68)) -> 13 | J68: =IF($N$1,SUMIFS(Stations!S:S,Stations!$C:$C,"="&$C68,Stations!$W:$W,"=No"),SUMIFS(Stations!S:S,Stations!$C:$C,"="&$C68)) -> 5 | K68: =IF($N$1,SUMIFS(Stations!U:U,Stations!$C:$C,"="&$C68,Stations!$W:$W,"=No"),SUMIFS(Stations!U:U,Stations!$C:$C,"="&$C68)) -> 1
C69: DC | D69: District of Columbia | F69: =IF($N$1,SUMIFS(Stations!L:L,Stations!$C:$C,"="&$C69,Stations!$W:$W,"=No"),SUMIFS(Stations!L:L,Stations!$C:$C,"="&$C69)) -> 2348 | G69: =IF($N$1,SUMIFS(Stations!M:M,Stations!$C:$C,"="&$C69,Stations!$W:$W,"=No"),SUMIFS(Stations!M:M,Stations!$C:$C,"="&$C69)) -> 91 | H69: =IF($N$1,SUMIFS(Stations!O:O,Stations!$C:$C,"="&$C69,Stations!$W:$W,"=No"),SUMIFS(Stations!O:O,Stations!$C:$C,"="&$C69)) -> 0 | I69: =IF($N$1,SUMIFS(Stations!Q:Q,Stations!$C:$C,"="&$C69,Stations!$W:$W,"=No"),SUMIFS(Stations!Q:Q,Stations!$C:$C,"="&$C69)) -> 91 | J69: =IF($N$1,SUMIFS(Stations!S:S,Stations!$C:$C,"="&$C69,Stations!$W:$W,"=No"),SUMIFS(Stations!S:S,Stations!$C:$C,"="&$C69)) -> 275 | K69: =IF($N$1,SUMIFS(Stations!U:U,Stations!$C:$C,"="&$C69,Stations!$W:$W,"=No"),SUMIFS(Stations!U:U,Stations!$C:$C,"="&$C69)) -> 613
C70: DE | D70: Delaware | F70: =IF($N$1,SUMIFS(Stations!L:L,Stations!$C:$C,"="&$C70,Stations!$W:$W,"=No"),SUMIFS(Stations!L:L,Stations!$C:$C,"="&$C70)) -> 196 | G70: =IF($N$1,SUMIFS(Stations!M:M,Stations!$C:$C,"="&$C70,Stations!$W:$W,"=No"),SUMIFS(Stations!M:M,Stations!$C:$C,"="&$C70)) -> 7 | H70: =IF($N$1,SUMIFS(Stations!O:O,Stations!$C:$C,"="&$C70,Stations!$W:$W,"=No"),SUMIFS(Stations!O:O,Stations!$C:$C,"="&$C70)) -> 0 | I70: =IF($N$1,SUMIFS(Stations!Q:Q,Stations!$C:$C,"="&$C70,Stations!$W:$W,"=No"),SUMIFS(Stations!Q:Q,Stations!$C:$C,"="&$C70)) -> 7 | J70: =IF($N$1,SUMIFS(Stations!S:S,Stations!$C:$C,"="&$C70,Stations!$W:$W,"=No"),SUMIFS(Stations!S:S,Stations!$C:$C,"="&$C70)) -> 2 | K70: =IF($N$1,SUMIFS(Stations!U:U,Stations!$C:$C,"="&$C70,Stations!$W:$W,"=No"),SUMIFS(Stations!U:U,Stations!$C:$C,"="&$C70)) -> 2
C71: FL | D71: Florida | F71: =IF($N$1,SUMIFS(Stations!L:L,Stations!$C:$C,"="&$C71,Stations!$W:$W,"=No"),SUMIFS(Stations!L:L,Stations!$C:$C,"="&$C71)) -> 2691 | G71: =IF($N$1,SUMIFS(Stations!M:M,Stations!$C:$C,"="&$C71,Stations!$W:$W,"=No"),SUMIFS(Stations!M:M,Stations!$C:$C,"="&$C71)) -> 137 | H71: =IF($N$1,SUMIFS(Stations!O:O,Stations!$C:$C,"="&$C71,Stations!$W:$W,"=No"),SUMIFS(Stations!O:O,Stations!$C:$C,"="&$C71)) -> 0 | I71: =IF($N$1,SUMIFS(Stations!Q:Q,Stations!$C:$C,"="&$C71,Stations!$W:$W,"=No"),SUMIFS(Stations!Q:Q,Stations!$C:$C,"="&$C71)) -> 137 | J71: =IF($N$1,SUMIFS(Stations!S:S,Stations!$C:$C,"="&$C71,Stations!$W:$W,"=No"),SUMIFS(Stations!S:S,Stations!$C:$C,"="&$C71)) -> 126 | K71: =IF($N$1,SUMIFS(Stations!U:U,Stations!$C:$C,"="&$C71,Stations!$W:$W,"=No"),SUMIFS(Stations!U:U,Stations!$C:$C,"="&$C71)) -> 107
C72: GA | D72: Georgia | F72: =IF($N$1,SUMIFS(Stations!L:L,Stations!$C:$C,"="&$C72,Stations!$W:$W,"=No"),SUMIFS(Stations!L:L,Stations!$C:$C,"="&$C72)) -> 1153 | G72: =IF($N$1,SUMIFS(Stations!M:M,Stations!$C:$C,"="&$C72,Stations!$W:$W,"=No"),SUMIFS(Stations!M:M,Stations!$C:$C,"="&$C72)) -> 78 | H72: =IF($N$1,SUMIFS(Stations!O:O,Stations!$C:$C,"="&$C72,Stations!$W:$W,"=No"),SUMIFS(Stations!O:O,Stations!$C:$C,"="&$C72)) -> 0 | I72: =IF($N$1,SUMIFS(Stations!Q:Q,Stations!$C:$C,"="&$C72,Stations!$W:$W,"=No"),SUMIFS(Stations!Q:Q,Stations!$C:$C,"="&$C72)) -> 78 | J72: =IF($N$1,SUMIFS(Stations!S:S,Stations!$C:$C,"="&$C72,Stations!$W:$W,"=No"),SUMIFS(Stations!S:S,Stations!$C:$C,"="&$C72)) -> 139 | K72: =IF($N$1,SUMIFS(Stations!U:U,Stations!$C:$C,"="&$C72,Stations!$W:$W,"=No"),SUMIFS(Stations!U:U,Stations!$C:$C,"="&$C72)) -> 230
C73: GU | D73: Guam | F73: =IF($N$1,SUMIFS(Stations!L:L,Stations!$C:$C,"="&$C73,Stations!$W:$W,"=No"),SUMIFS(Stations!L:L,Stations!$C:$C,"="&$C73)) -> 0 | G73: =IF($N$1,SUMIFS(Stations!M:M,Stations!$C:$C,"="&$C73,Stations!$W:$W,"=No"),SUMIFS(Stations!M:M,Stations!$C:$C,"="&$C73)) -> 0 | H73: =IF($N$1,SUMIFS(Stations!O:O,Stations!$C:$C,"="&$C73,Stations!$W:$W,"=No"),SUMIFS(Stations!O:O,Stations!$C:$C,"="&$C73)) -> 0 | I73: =IF($N$1,SUMIFS(Stations!Q:Q,Stations!$C:$C,"="&$C73,Stations!$W:$W,"=No"),SUMIFS(Stations!Q:Q,Stations!$C:$C,"="&$C73)) -> 0 | J73: =IF($N$1,SUMIFS(Stations!S:S,Stations!$C:$C,"="&$C73,Stations!$W:$W,"=No"),SUMIFS(Stations!S:S,Stations!$C:$C,"="&$C73)) -> 0 | K73: =IF($N$1,SUMIFS(Stations!U:U,Stations!$C:$C,"="&$C73,Stations!$W:$W,"=No"),SUMIFS(Stations!U:U,Stations!$C:$C,"="&$C73)) -> 0
C74: HI | D74: Hawaii | F74: =IF($N$1,SUMIFS(Stations!L:L,Stations!$C:$C,"="&$C74,Stations!$W:$W,"=No"),SUMIFS(Stations!L:L,Stations!$C:$C,"="&$C74)) -> 467 | G74: =IF($N$1,SUMIFS(Stations!M:M,Stations!$C:$C,"="&$C74,Stations!$W:$W,"=No"),SUMIFS(Stations!M:M,Stations!$C:$C,"="&$C74)) -> 2 | H74: =IF($N$1,SUMIFS(Stations!O:O,Stations!$C:$C,"="&$C74,Stations!$W:$W,"=No"),SUMIFS(Stations!O:O,Stations!$C:$C,"="&$C74)) -> 0 | I74: =IF($N$1,SUMIFS(Stations!Q:Q,Stations!$C:$C,"="&$C74,Stations!$W:$W,"=No"),SUMIFS(Stations!Q:Q,Stations!$C:$C,"="&$C74)) -> 2 | J74: =IF($N$1,SUMIFS(Stations!S:S,Stations!$C:$C,"="&$C74,Stations!$W:$W,"=No"),SUMIFS(Stations!S:S,Stations!$C:$C,"="&$C74)) -> 0 | K74: =IF($N$1,SUMIFS(Stations!U:U,Stations!$C:$C,"="&$C74,Stations!$W:$W,"=No"),SUMIFS(Stations!U:U,Stations!$C:$C,"="&$C74)) -> 0
C75: IA | D75: Iowa | F75: =IF($N$1,SUMIFS(Stations!L:L,Stations!$C:$C,"="&$C75,Stations!$W:$W,"=No"),SUMIFS(Stations!L:L,Stations!$C:$C,"="&$C75)) -> 341 | G75: =IF($N$1,SUMIFS(Stations!M:M,Stations!$C:$C,"="&$C75,Stations!$W:$W,"=No"),SUMIFS(Stations!M:M,Stations!$C:$C,"="&$C75)) -> 11 | H75: =IF($N$1,SUMIFS(Stations!O:O,Stations!$C:$C,"="&$C75,Stations!$W:$W,"=No"),SUMIFS(Stations!O:O,Stations!$C:$C,"="&$C75)) -> 0 | I75: =IF($N$1,SUMIFS(Stations!Q:Q,Stations!$C:$C,"="&$C75,Stations!$W:$W,"=No"),SUMIFS(Stations!Q:Q,Stations!$C:$C,"="&$C75)) -> 11 | J75: =IF($N$1,SUMIFS(Stations!S:S,Stations!$C:$C,"="&$C75,Stations!$W:$W,"=No"),SUMIFS(Stations!S:S,Stations!$C:$C,"="&$C75)) -> 6 | K75: =IF($N$1,SUMIFS(Stations!U:U,Stations!$C:$C,"="&$C75,Stations!$W:$W,"=No"),SUMIFS(Stations!U:U,Stations!$C:$C,"="&$C75)) -> 0
C76: ID | D76: Idaho | F76: =IF($N$1,SUMIFS(Stations!L:L,Stations!$C:$C,"="&$C76,Stations!$W:$W,"=No"),SUMIFS(Stations!L:L,Stations!$C:$C,"="&$C76)) -> 74 | G76: =IF($N$1,SUMIFS(Stations!M:M,Stations!$C:$C,"="&$C76,Stations!$W:$W,"=No"),SUMIFS(Stations!M:M,Stations!$C:$C,"="&$C76)) -> 2 | H76: =IF($N$1,SUMIFS(Stations!O:O,Stations!$C:$C,"="&$C76,Stations!$W:$W,"=No"),SUMIFS(Stations!O:O,Stations!$C:$C,"="&$C76)) -> 1 | I76: =IF($N$1,SUMIFS(Stations!Q:Q,Stations!$C:$C,"="&$C76,Stations!$W:$W,"=No"),SUMIFS(Stations!Q:Q,Stations!$C:$C,"="&$C76)) -> 3 | J76: =IF($N$1,SUMIFS(Stations!S:S,Stations!$C:$C,"="&$C76,Stations!$W:$W,"=No"),SUMIFS(Stations!S:S,Stations!$C:$C,"="&$C76)) -> 0 | K76: =IF($N$1,SUMIFS(Stations!U:U,Stations!$C:$C,"="&$C76,Stations!$W:$W,"=No"),SUMIFS(Stations!U:U,Stations!$C:$C,"="&$C76)) -> 0
C77: IL | D77: Illinois | F77: =IF($N$1,SUMIFS(Stations!L:L,Stations!$C:$C,"="&$C77,Stations!$W:$W,"=No"),SUMIFS(Stations!L:L,Stations!$C:$C,"="&$C77)) -> 4937 | G77: =IF($N$1,SUMIFS(Stations!M:M,Stations!$C:$C,"="&$C77,Stations!$W:$W,"=No"),SUMIFS(Stations!M:M,Stations!$C:$C,"="&$C77)) -> 455 | H77: =IF($N$1,SUMIFS(Stations!O:O,Stations!$C:$C,"="&$C77,Stations!$W:$W,"=No"),SUMIFS(Stations!O:O,Stations!$C:$C,"="&$C77)) -> 141 | I77: =IF($N$1,SUMIFS(Stations!Q:Q,Stations!$C:$C,"="&$C77,Stations!$W:$W,"=No"),SUMIFS(Stations!Q:Q,Stations!$C:$C,"="&$C77)) -> 596 | J77: =IF($N$1,SUMIFS(Stations!S:S,Stations!$C:$C,"="&$C77,Stations!$W:$W,"=No"),SUMIFS(Stations!S:S,Stations!$C:$C,"="&$C77)) -> 216 | K77: =IF($N$1,SUMIFS(Stations!U:U,Stations!$C:$C,"="&$C77,Stations!$W:$W,"=No"),SUMIFS(Stations!U:U,Stations!$C:$C,"="&$C77)) -> 208
C78: IN | D78: Indiana | F78: =IF($N$1,SUMIFS(Stations!L:L,Stations!$C:$C,"="&$C78,Stations!$W:$W,"=No"),SUMIFS(Stations!L:L,Stations!$C:$C,"="&$C78)) -> 467 | G78: =IF($N$1,SUMIFS(Stations!M:M,Stations!$C:$C,"="&$C78,Stations!$W:$W,"=No"),SUMIFS(Stations!M:M,Stations!$C:$C,"="&$C78)) -> 28 | H78: =IF($N$1,SUMIFS(Stations!O:O,Stations!$C:$C,"="&$C78,Stations!$W:$W,"=No"),SUMIFS(Stations!O:O,Stations!$C:$C,"="&$C78)) -> 6 | I78: =IF($N$1,SUMIFS(Stations!Q:Q,Stations!$C:$C,"="&$C78,Stations!$W:$W,"=No"),SUMIFS(Stations!Q:Q,Stations!$C:$C,"="&$C78)) -> 34 | J78: =IF($N$1,SUMIFS(Stations!S:S,Stations!$C:$C,"="&$C78,Stations!$W:$W,"=No"),SUMIFS(Stations!S:S,Stations!$C:$C,"="&$C78)) -> 4 | K78: =IF($N$1,SUMIFS(Stations!U:U,Stations!$C:$C,"="&$C78,Stations!$W:$W,"=No"),SUMIFS(Stations!U:U,Stations!$C:$C,"="&$C78)) -> 8
C79: KS | D79: Kansas | F79: =IF($N$1,SUMIFS(Stations!L:L,Stations!$C:$C,"="&$C79,Stations!$W:$W,"=No"),SUMIFS(Stations!L:L,Stations!$C:$C,"="&$C79)) -> 162 | G79: =IF($N$1,SUMIFS(Stations!M:M,Stations!$C:$C,"="&$C79,Stations!$W:$W,"=No"),SUMIFS(Stations!M:M,Stations!$C:$C,"="&$C79)) -> 4 | H79: =IF($N$1,SUMIFS(Stations!O:O,Stations!$C:$C,"="&$C79,Stations!$W:$W,"=No"),SUMIFS(Stations!O:O,Stations!$C:$C,"="&$C79)) -> 0 | I79: =IF($N$1,SUMIFS(Stations!Q:Q,Stations!$C:$C,"="&$C79,Stations!$W:$W,"=No"),SUMIFS(Stations!Q:Q,Stations!$C:$C,"="&$C79)) -> 4 | J79: =IF($N$1,SUMIFS(Stations!S:S,Stations!$C:$C,"="&$C79,Stations!$W:$W,"=No"),SUMIFS(Stations!S:S,Stations!$C:$C,"="&$C79)) -> 0 | K79: =IF($N$1,SUMIFS(Stations!U:U,Stations!$C:$C,"="&$C79,Stations!$W:$W,"=No"),SUMIFS(Stations!U:U,Stations!$C:$C,"="&$C79)) -> 0
C80: KY | D80: Kentucky | F80: =IF($N$1,SUMIFS(Stations!L:L,Stations!$C:$C,"="&$C80,Stations!$W:$W,"=No"),SUMIFS(Stations!L:L,Stations!$C:$C,"="&$C80)) -> 348 | G80: =IF($N$1,SUMIFS(Stations!M:M,Stations!$C:$C,"="&$C80,Stations!$W:$W,"=No"),SUMIFS(Stations!M:M,Stations!$C:$C,"="&$C80)) -> 4 | H80: =IF($N$1,SUMIFS(Stations!O:O,Stations!$C:$C,"="&$C80,Stations!$W:$W,"=No"),SUMIFS(Stations!O:O,Stations!$C:$C,"="&$C80)) -> 1 | I80: =IF($N$1,SUMIFS(Stations!Q:Q,Stations!$C:$C,"="&$C80,Stations!$W:$W,"=No"),SUMIFS(Stations!Q:Q,Stations!$C:$C,"="&$C80)) -> 5 | J80: =IF($N$1,SUMIFS(Stations!S:S,Stations!$C:$C,"="&$C80,Stations!$W:$W,"=No"),SUMIFS(Stations!S:S,Stations!$C:$C,"="&$C80)) -> 1 | K80: =IF($N$1,SUMIFS(Stations!U:U,Stations!$C:$C,"="&$C80,Stations!$W:$W,"=No"),SUMIFS(Stations!U:U,Stations!$C:$C,"="&$C80)) -> 0
C81: LA | D81: Lousiana | F81: =IF($N$1,SUMIFS(Stations!L:L,Stations!$C:$C,"="&$C81,Stations!$W:$W,"=No"),SUMIFS(Stations!L:L,Stations!$C:$C,"="&$C81)) -> 323 | G81: =IF($N$1,SUMIFS(Stations!M:M,Stations!$C:$C,"="&$C81,Stations!$W:$W,"=No"),SUMIFS(Stations!M:M,Stations!$C:$C,"="&$C81)) -> 27 | H81: =IF($N$1,SUMIFS(Stations!O:O,Stations!$C:$C,"="&$C81,Stations!$W:$W,"=No"),SUMIFS(Stations!O:O,Stations!$C:$C,"="&$C81)) -> 0 | I81: =IF($N$1,SUMIFS(Stations!Q:Q,Stations!$C:$C,"="&$C81,Stations!$W:$W,"=No"),SUMIFS(Stations!Q:Q,Stations!$C:$C,"="&$C81)) -> 27 | J81: =IF($N$1,SUMIFS(Stations!S:S,Stations!$C:$C,"="&$C81,Stations!$W:$W,"=No"),SUMIFS(Stations!S:S,Stations!$C:$C,"="&$C81)) -> 2 | K81: =IF($N$1,SUMIFS(Stations!U:U,Stations!$C:$C,"="&$C81,Stations!$W:$W,"=No"),SUMIFS(Stations!U:U,Stations!$C:$C,"="&$C81)) -> 0
C82: MA | D82: Massachusetts | F82: =IF($N$1,SUMIFS(Stations!L:L,Stations!$C:$C,"="&$C82,Stations!$W:$W,"=No"),SUMIFS(Stations!L:L,Stations!$C:$C,"="&$C82)) -> 2347 | G82: =IF($N$1,SUMIFS(Stations!M:M,Stations!$C:$C,"="&$C82,Stations!$W:$W,"=No"),SUMIFS(Stations!M:M,Stations!$C:$C,"="&$C82)) -> 317 | H82: =IF($N$1,SUMIFS(Stations!O:O,Stations!$C:$C,"="&$C82,Stations!$W:$W,"=No"),SUMIFS(Stations!O:O,Stations!$C:$C,"="&$C82)) -> 73 | I82: =IF($N$1,SUMIFS(Stations!Q:Q,Stations!$C:$C,"="&$C82,Stations!$W:$W,"=No"),SUMIFS(Stations!Q:Q,Stations!$C:$C,"="&$C82)) -> 390 | J82: =IF($N$1,SUMIFS(Stations!S:S,Stations!$C:$C,"="&$C82,Stations!$W:$W,"=No"),SUMIFS(Stations!S:S,Stations!$C:$C,"="&$C82)) -> 208 | K82: =IF($N$1,SUMIFS(Stations!U:U,Stations!$C:$C,"="&$C82,Stations!$W:$W,"=No"),SUMIFS(Stations!U:U,Stations!$C:$C,"="&$C82)) -> 206
C83: MD | D83: Maryland | F83: =IF($N$1,SUMIFS(Stations!L:L,Stations!$C:$C,"="&$C83,Stations!$W:$W,"=No"),SUMIFS(Stations!L:L,Stations!$C:$C,"="&$C83)) -> 1539 | G83: =IF($N$1,SUMIFS(Stations!M:M,Stations!$C:$C,"="&$C83,Stations!$W:$W,"=No"),SUMIFS(Stations!M:M,Stations!$C:$C,"="&$C83)) -> 82 | H83: =IF($N$1,SUMIFS(Stations!O:O,Stations!$C:$C,"="&$C83,Stations!$W:$W,"=No"),SUMIFS(Stations!O:O,Stations!$C:$C,"="&$C83)) -> 18 | I83: =IF($N$1,SUMIFS(Stations!Q:Q,Stations!$C:$C,"="&$C83,Stations!$W:$W,"=No"),SUMIFS(Stations!Q:Q,Stations!$C:$C,"="&$C83)) -> 100 | J83: =IF($N$1,SUMIFS(Stations!S:S,Stations!$C:$C,"="&$C83,Stations!$W:$W,"=No"),SUMIFS(Stations!S:S,Stations!$C:$C,"="&$C83)) -> 41 | K83: =IF($N$1,SUMIFS(Stations!U:U,Stations!$C:$C,"="&$C83,Stations!$W:$W,"=No"),SUMIFS(Stations!U:U,Stations!$C:$C,"="&$C83)) -> 84
C84: ME | D84: Maine | F84: =IF($N$1,SUMIFS(Stations!L:L,Stations!$C:$C,"="&$C84,Stations!$W:$W,"=No"),SUMIFS(Stations!L:L,Stations!$C:$C,"="&$C84)) -> 98 | G84: =IF($N$1,SUMIFS(Stations!M:M,Stations!$C:$C,"="&$C84,Stations!$W:$W,"=No"),SUMIFS(Stations!M:M,Stations!$C:$C,"="&$C84)) -> 17 | H84: =IF($N$1,SUMIFS(Stations!O:O,Stations!$C:$C,"="&$C84,Stations!$W:$W,"=No"),SUMIFS(Stations!O:O,Stations!$C:$C,"="&$C84)) -> 0 | I84: =IF($N$1,SUMIFS(Stations!Q:Q,Stations!$C:$C,"="&$C84,Stations!$W:$W,"=No"),SUMIFS(Stations!Q:Q,Stations!$C:$C,"="&$C84)) -> 17 | J84: =IF($N$1,SUMIFS(Stations!S:S,Stations!$C:$C,"="&$C84,Stations!$W:$W,"=No"),SUMIFS(Stations!S:S,Stations!$C:$C,"="&$C84)) -> 2 | K84: =IF($N$1,SUMIFS(Stations!U:U,Stations!$C:$C,"="&$C84,Stations!$W:$W,"=No"),SUMIFS(Stations!U:U,Stations!$C:$C,"="&$C84)) -> 1
C85: MI | D85: Michigan | F85: =IF($N$1,SUMIFS(Stations!L:L,Stations!$C:$C,"="&$C85,Stations!$W:$W,"=No"),SUMIFS(Stations!L:L,Stations!$C:$C,"="&$C85)) -> 1029 | G85: =IF($N$1,SUMIFS(Stations!M:M,Stations!$C:$C,"="&$C85,Stations!$W:$W,"=No"),SUMIFS(Stations!M:M,Stations!$C:$C,"="&$C85)) -> 33 | H85: =IF($N$1,SUMIFS(Stations!O:O,Stations!$C:$C,"="&$C85,Stations!$W:$W,"=No"),SUMIFS(Stations!O:O,Stations!$C:$C,"="&$C85)) -> 0 | I85: =IF($N$1,SUMIFS(Stations!Q:Q,Stations!$C:$C,"="&$C85,Stations!$W:$W,"=No"),SUMIFS(Stations!Q:Q,Stations!$C:$C,"="&$C85)) -> 33 | J85: =IF($N$1,SUMIFS(Stations!S:S,Stations!$C:$C,"="&$C85,Stations!$W:$W,"=No"),SUMIFS(Stations!S:S,Stations!$C:$C,"="&$C85)) -> 12 | K85: =IF($N$1,SUMIFS(Stations!U:U,Stations!$C:$C,"="&$C85,Stations!$W:$W,"=No"),SUMIFS(Stations!U:U,Stations!$C:$C,"="&$C85)) -> 18
C86: MN | D86: Minnesota | F86: =IF($N$1,SUMIFS(Stations!L:L,Stations!$C:$C,"="&$C86,Stations!$W:$W,"=No"),SUMIFS(Stations!L:L,Stations!$C:$C,"="&$C86)) -> 1341 | G86: =IF($N$1,SUMIFS(Stations!M:M,Stations!$C:$C,"="&$C86,Stations!$W:$W,"=No"),SUMIFS(Stations!M:M,Stations!$C:$C,"="&$C86)) -> 117 | H86: =IF($N$1,SUMIFS(Stations!O:O,Stations!$C:$C,"="&$C86,Stations!$W:$W,"=No"),SUMIFS(Stations!O:O,Stations!$C:$C,"="&$C86)) -> 0 | I86: =IF($N$1,SUMIFS(Stations!Q:Q,Stations!$C:$C,"="&$C86,Stations!$W:$W,"=No"),SUMIFS(Stations!Q:Q,Stations!$C:$C,"="&$C86)) -> 117 | J86: =IF($N$1,SUMIFS(Stations!S:S,Stations!$C:$C,"="&$C86,Stations!$W:$W,"=No"),SUMIFS(Stations!S:S,Stations!$C:$C,"="&$C86)) -> 87 | K86: =IF($N$1,SUMIFS(Stations!U:U,Stations!$C:$C,"="&$C86,Stations!$W:$W,"=No"),SUMIFS(Stations!U:U,Stations!$C:$C,"="&$C86)) -> 34
C87: MO | D87: Missouri | F87: =IF($N$1,SUMIFS(Stations!L:L,Stations!$C:$C,"="&$C87,Stations!$W:$W,"=No"),SUMIFS(Stations!L:L,Stations!$C:$C,"="&$C87)) -> 651 | G87: =IF($N$1,SUMIFS(Stations!M:M,Stations!$C:$C,"="&$C87,Stations!$W:$W,"=No"),SUMIFS(Stations!M:M,Stations!$C:$C,"="&$C87)) -> 70 | H87: =IF($N$1,SUMIFS(Stations!O:O,Stations!$C:$C,"="&$C87,Stations!$W:$W,"=No"),SUMIFS(Stations!O:O,Stations!$C:$C,"="&$C87)) -> 0 | I87: =IF($N$1,SUMIFS(Stations!Q:Q,Stations!$C:$C,"="&$C87,Stations!$W:$W,"=No"),SUMIFS(Stations!Q:Q,Stations!$C:$C,"="&$C87)) -> 70 | J87: =IF($N$1,SUMIFS(Stations!S:S,Stations!$C:$C,"="&$C87,Stations!$W:$W,"=No"),SUMIFS(Stations!S:S,Stations!$C:$C,"="&$C87)) -> 19 | K87: =IF($N$1,SUMIFS(Stations!U:U,Stations!$C:$C,"="&$C87,Stations!$W:$W,"=No"),SUMIFS(Stations!U:U,Stations!$C:$C,"="&$C87)) -> 8
C88: MP | D88: Northern Marianas | F88: =IF($N$1,SUMIFS(Stations!L:L,Stations!$C:$C,"="&$C88,Stations!$W:$W,"=No"),SUMIFS(Stations!L:L,Stations!$C:$C,"="&$C88)) -> 0 | G88: =IF($N$1,SUMIFS(Stations!M:M,Stations!$C:$C,"="&$C88,Stations!$W:$W,"=No"),SUMIFS(Stations!M:M,Stations!$C:$C,"="&$C88)) -> 0 | H88: =IF($N$1,SUMIFS(Stations!O:O,Stations!$C:$C,"="&$C88,Stations!$W:$W,"=No"),SUMIFS(Stations!O:O,Stations!$C:$C,"="&$C88)) -> 0 | I88: =IF($N$1,SUMIFS(Stations!Q:Q,Stations!$C:$C,"="&$C88,Stations!$W:$W,"=No"),SUMIFS(Stations!Q:Q,Stations!$C:$C,"="&$C88)) -> 0 | J88: =IF($N$1,SUMIFS(Stations!S:S,Stations!$C:$C,"="&$C88,Stations!$W:$W,"=No"),SUMIFS(Stations!S:S,Stations!$C:$C,"="&$C88)) -> 0 | K88: =IF($N$1,SUMIFS(Stations!U:U,Stations!$C:$C,"="&$C88,Stations!$W:$W,"=No"),SUMIFS(Stations!U:U,Stations!$C:$C,"="&$C88)) -> 0
C89: MS | D89: Mississippi | F89: =IF($N$1,SUMIFS(Stations!L:L,Stations!$C:$C,"="&$C89,Stations!$W:$W,"=No"),SUMIFS(Stations!L:L,Stations!$C:$C,"="&$C89)) -> 35 | G89: =IF($N$1,SUMIFS(Stations!M:M,Stations!$C:$C,"="&$C89,Stations!$W:$W,"=No"),SUMIFS(Stations!M:M,Stations!$C:$C,"="&$C89)) -> 10 | H89: =IF($N$1,SUMIFS(Stations!O:O,Stations!$C:$C,"="&$C89,Stations!$W:$W,"=No"),SUMIFS(Stations!O:O,Stations!$C:$C,"="&$C89)) -> 0 | I89: =IF($N$1,SUMIFS(Stations!Q:Q,Stations!$C:$C,"="&$C89,Stations!$W:$W,"=No"),SUMIFS(Stations!Q:Q,Stations!$C:$C,"="&$C89)) -> 10 | J89: =IF($N$1,SUMIFS(Stations!S:S,Stations!$C:$C,"="&$C89,Stations!$W:$W,"=No"),SUMIFS(Stations!S:S,Stations!$C:$C,"="&$C89)) -> 2 | K89: =IF($N$1,SUMIFS(Stations!U:U,Stations!$C:$C,"="&$C89,Stations!$W:$W,"=No"),SUMIFS(Stations!U:U,Stations!$C:$C,"="&$C89)) -> 0
C90: MT | D90: Montana | F90: =IF($N$1,SUMIFS(Stations!L:L,Stations!$C:$C,"="&$C90,Stations!$W:$W,"=No"),SUMIFS(Stations!L:L,Stations!$C:$C,"="&$C90)) -> 73 | G90: =IF($N$1,SUMIFS(Stations!M:M,Stations!$C:$C,"="&$C90,Stations!$W:$W,"=No"),SUMIFS(Stations!M:M,Stations!$C:$C,"="&$C90)) -> 4 | H90: =IF($N$1,SUMIFS(Stations!O:O,Stations!$C:$C,"="&$C90,Stations!$W:$W,"=No"),SUMIFS(Stations!O:O,Stations!$C:$C,"="&$C90)) -> 0 | I90: =IF($N$1,SUMIFS(Stations!Q:Q,Stations!$C:$C,"="&$C90,Stations!$W:$W,"=No"),SUMIFS(Stations!Q:Q,Stations!$C:$C,"="&$C90)) -> 4 | J90: =IF($N$1,SUMIFS(Stations!S:S,Stations!$C:$C,"="&$C90,Stations!$W:$W,"=No"),SUMIFS(Stations!S:S,Stations!$C:$C,"="&$C90)) -> 1 | K90: =IF($N$1,SUMIFS(Stations!U:U,Stations!$C:$C,"="&$C90,Stations!$W:$W,"=No"),SUMIFS(Stations!U:U,Stations!$C:$C,"="&$C90)) -> 0
C91: NC | D91: North Carolina | F91: =IF($N$1,SUMIFS(Stations!L:L,Stations!$C:$C,"="&$C91,Stations!$W:$W,"=No"),SUMIFS(Stations!L:L,Stations!$C:$C,"="&$C91)) -> 849 | G91: =IF($N$1,SUMIFS(Stations!M:M,Stations!$C:$C,"="&$C91,Stations!$W:$W,"=No"),SUMIFS(Stations!M:M,Stations!$C:$C,"="&$C91)) -> 48 | H91: =IF($N$1,SUMIFS(Stations!O:O,Stations!$C:$C,"="&$C91,Stations!$W:$W,"=No"),SUMIFS(Stations!O:O,Stations!$C:$C,"="&$C91)) -> 1 | I91: =IF($N$1,SUMIFS(Stations!Q:Q,Stations!$C:$C,"="&$C91,Stations!$W:$W,"=No"),SUMIFS(Stations!Q:Q,Stations!$C:$C,"="&$C91)) -> 49 | J91: =IF($N$1,SUMIFS(Stations!S:S,Stations!$C:$C,"="&$C91,Stations!$W:$W,"=No"),SUMIFS(Stations!S:S,Stations!$C:$C,"="&$C91)) -> 15 | K91: =IF($N$1,SUMIFS(Stations!U:U,Stations!$C:$C,"="&$C91,Stations!$W:$W,"=No"),SUMIFS(Stations!U:U,Stations!$C:$C,"="&$C91)) -> 1
C92: ND | D92: North Dakota | F92: =IF($N$1,SUMIFS(Stations!L:L,Stations!$C:$C,"="&$C92,Stations!$W:$W,"=No"),SUMIFS(Stations!L:L,Stations!$C:$C,"="&$C92)) -> 40 | G92: =IF($N$1,SUMIFS(Stations!M:M,Stations!$C:$C,"="&$C92,Stations!$W:$W,"=No"),SUMIFS(Stations!M:M,Stations!$C:$C,"="&$C92)) -> 4 | H92: =IF($N$1,SUMIFS(Stations!O:O,Stations!$C:$C,"="&$C92,Stations!$W:$W,"=No"),SUMIFS(Stations!O:O,Stations!$C:$C,"="&$C92)) -> 0 | I92: =IF($N$1,SUMIFS(Stations!Q:Q,Stations!$C:$C,"="&$C92,Stations!$W:$W,"=No"),SUMIFS(Stations!Q:Q,Stations!$C:$C,"="&$C92)) -> 4 | J92: =IF($N$1,SUMIFS(Stations!S:S,Stations!$C:$C,"="&$C92,Stations!$W:$W,"=No"),SUMIFS(Stations!S:S,Stations!$C:$C,"="&$C92)) -> 1 | K92: =IF($N$1,SUMIFS(Stations!U:U,Stations!$C:$C,"="&$C92,Stations!$W:$W,"=No"),SUMIFS(Stations!U:U,Stations!$C:$C,"="&$C92)) -> 0
C93: NE | D93: Nebraska | F93: =IF($N$1,SUMIFS(Stations!L:L,Stations!$C:$C,"="&$C93,Stations!$W:$W,"=No"),SUMIFS(Stations!L:L,Stations!$C:$C,"="&$C93)) -> 160 | G93: =IF($N$1,SUMIFS(Stations!M:M,Stations!$C:$C,"="&$C93,Stations!$W:$W,"=No"),SUMIFS(Stations!M:M,Stations!$C:$C,"="&$C93)) -> 2 | H93: =IF($N$1,SUMIFS(Stations!O:O,Stations!$C:$C,"="&$C93,Stations!$W:$W,"=No"),SUMIFS(Stations!O:O,Stations!$C:$C,"="&$C93)) -> 0 | I93: =IF($N$1,SUMIFS(Stations!Q:Q,Stations!$C:$C,"="&$C93,Stations!$W:$W,"=No"),SUMIFS(Stations!Q:Q,Stations!$C:$C,"="&$C93)) -> 2 | J93: =IF($N$1,SUMIFS(Stations!S:S,Stations!$C:$C,"="&$C93,Stations!$W:$W,"=No"),SUMIFS(Stations!S:S,Stations!$C:$C,"="&$C93)) -> 1 | K93: =IF($N$1,SUMIFS(Stations!U:U,Stations!$C:$C,"="&$C93,Stations!$W:$W,"=No"),SUMIFS(Stations!U:U,Stations!$C:$C,"="&$C93)) -> 0
C94: NH | D94: New Hampshire | F94: =IF($N$1,SUMIFS(Stations!L:L,Stations!$C:$C,"="&$C94,Stations!$W:$W,"=No"),SUMIFS(Stations!L:L,Stations!$C:$C,"="&$C94)) -> 115 | G94: =IF($N$1,SUMIFS(Stations!M:M,Stations!$C:$C,"="&$C94,Stations!$W:$W,"=No"),SUMIFS(Stations!M:M,Stations!$C:$C,"="&$C94)) -> 15 | H94: =IF($N$1,SUMIFS(Stations!O:O,Stations!$C:$C,"="&$C94,Stations!$W:$W,"=No"),SUMIFS(Stations!O:O,Stations!$C:$C,"="&$C94)) -> 0 | I94: =IF($N$1,SUMIFS(Stations!Q:Q,Stations!$C:$C,"="&$C94,Stations!$W:$W,"=No"),SUMIFS(Stations!Q:Q,Stations!$C:$C,"="&$C94)) -> 15 | J94: =IF($N$1,SUMIFS(Stations!S:S,Stations!$C:$C,"="&$C94,Stations!$W:$W,"=No"),SUMIFS(Stations!S:S,Stations!$C:$C,"="&$C94)) -> 0 | K94: =IF($N$1,SUMIFS(Stations!U:U,Stations!$C:$C,"="&$C94,Stations!$W:$W,"=No"),SUMIFS(Stations!U:U,Stations!$C:$C,"="&$C94)) -> 0
C95: NJ | D95: New Jersey | F95: =IF($N$1,SUMIFS(Stations!L:L,Stations!$C:$C,"="&$C95,Stations!$W:$W,"=No"),SUMIFS(Stations!L:L,Stations!$C:$C,"="&$C95)) -> 4764 | G95: =IF($N$1,SUMIFS(Stations!M:M,Stations!$C:$C,"="&$C95,Stations!$W:$W,"=No"),SUMIFS(Stations!M:M,Stations!$C:$C,"="&$C95)) -> 207 | H95: =IF($N$1,SUMIFS(Stations!O:O,Stations!$C:$C,"="&$C95,Stations!$W:$W,"=No"),SUMIFS(Stations!O:O,Stations!$C:$C,"="&$C95)) -> 107 | I95: =IF($N$1,SUMIFS(Stations!Q:Q,Stations!$C:$C,"="&$C95,Stations!$W:$W,"=No"),SUMIFS(Stations!Q:Q,Stations!$C:$C,"="&$C95)) -> 314 | J95: =IF($N$1,SUMIFS(Stations!S:S,Stations!$C:$C,"="&$C95,Stations!$W:$W,"=No"),SUMIFS(Stations!S:S,Stations!$C:$C,"="&$C95)) -> 186 | K95: =IF($N$1,SUMIFS(Stations!U:U,Stations!$C:$C,"="&$C95,Stations!$W:$W,"=No"),SUMIFS(Stations!U:U,Stations!$C:$C,"="&$C95)) -> 129
C96: NM | D96: New Mexico | F96: =IF($N$1,SUMIFS(Stations!L:L,Stations!$C:$C,"="&$C96,Stations!$W:$W,"=No"),SUMIFS(Stations!L:L,Stations!$C:$C,"="&$C96)) -> 216 | G96: =IF($N$1,SUMIFS(Stations!M:M,Stations!$C:$C,"="&$C96,Stations!$W:$W,"=No"),SUMIFS(Stations!M:M,Stations!$C:$C,"="&$C96)) -> 20 | H96: =IF($N$1,SUMIFS(Stations!O:O,Stations!$C:$C,"="&$C96,Stations!$W:$W,"=No"),SUMIFS(Stations!O:O,Stations!$C:$C,"="&$C96)) -> 0 | I96: =IF($N$1,SUMIFS(Stations!Q:Q,Stations!$C:$C,"="&$C96,Stations!$W:$W,"=No"),SUMIFS(Stations!Q:Q,Stations!$C:$C,"="&$C96)) -> 20 | J96: =IF($N$1,SUMIFS(Stations!S:S,Stations!$C:$C,"="&$C96,Stations!$W:$W,"=No"),SUMIFS(Stations!S:S,Stations!$C:$C,"="&$C96)) -> 1 | K96: =IF($N$1,SUMIFS(Stations!U:U,Stations!$C:$C,"="&$C96,Stations!$W:$W,"=No"),SUMIFS(Stations!U:U,Stations!$C:$C,"="&$C96)) -> 0
C97: NV | D97: Nevada | F97: =IF($N$1,SUMIFS(Stations!L:L,Stations!$C:$C,"="&$C97,Stations!$W:$W,"=No"),SUMIFS(Stations!L:L,Stations!$C:$C,"="&$C97)) -> 446 | G97: =IF($N$1,SUMIFS(Stations!M:M,Stations!$C:$C,"="&$C97,Stations!$W:$W,"=No"),SUMIFS(Stations!M:M,Stations!$C:$C,"="&$C97)) -> 22 | H97: =IF($N$1,SUMIFS(Stations!O:O,Stations!$C:$C,"="&$C97,Stations!$W:$W,"=No"),SUMIFS(Stations!O:O,Stations!$C:$C,"="&$C97)) -> 0 | I97: =IF($N$1,SUMIFS(Stations!Q:Q,Stations!$C:$C,"="&$C97,Stations!$W:$W,"=No"),SUMIFS(Stations!Q:Q,Stations!$C:$C,"="&$C97)) -> 22 | J97: =IF($N$1,SUMIFS(Stations!S:S,Stations!$C:$C,"="&$C97,Stations!$W:$W,"=No"),SUMIFS(Stations!S:S,Stations!$C:$C,"="&$C97)) -> 22 | K97: =IF($N$1,SUMIFS(Stations!U:U,Stations!$C:$C,"="&$C97,Stations!$W:$W,"=No"),SUMIFS(Stations!U:U,Stations!$C:$C,"="&$C97)) -> 44
C98: NY | D98: New York | F98: =IF($N$1,SUMIFS(Stations!L:L,Stations!$C:$C,"="&$C98,Stations!$W:$W,"=No"),SUMIFS(Stations!L:L,Stations!$C:$C,"="&$C98)) -> 14470 | G98: =IF($N$1,SUMIFS(Stations!M:M,Stations!$C:$C,"="&$C98,Stations!$W:$W,"=No"),SUMIFS(Stations!M:M,Stations!$C:$C,"="&$C98)) -> 326 | H98: =IF($N$1,SUMIFS(Stations!O:O,Stations!$C:$C,"="&$C98,Stations!$W:$W,"=No"),SUMIFS(Stations!O:O,Stations!$C:$C,"="&$C98)) -> 470 | I98: =IF($N$1,SUMIFS(Stations!Q:Q,Stations!$C:$C,"="&$C98,Stations!$W:$W,"=No"),SUMIFS(Stations!Q:Q,Stations!$C:$C,"="&$C98)) -> 796 | J98: =IF($N$1,SUMIFS(Stations!S:S,Stations!$C:$C,"="&$C98,Stations!$W:$W,"=No"),SUMIFS(Stations!S:S,Stations!$C:$C,"="&$C98)) -> 445 | K98: =IF($N$1,SUMIFS(Stations!U:U,Stations!$C:$C,"="&$C98,Stations!$W:$W,"=No"),SUMIFS(Stations!U:U,Stations!$C:$C,"="&$C98)) -> 271
C99: OH | D99: Ohio | F99: =IF($N$1,SUMIFS(Stations!L:L,Stations!$C:$C,"="&$C99,Stations!$W:$W,"=No"),SUMIFS(Stations!L:L,Stations!$C:$C,"="&$C99)) -> 1524 | G99: =IF($N$1,SUMIFS(Stations!M:M,Stations!$C:$C,"="&$C99,Stations!$W:$W,"=No"),SUMIFS(Stations!M:M,Stations!$C:$C,"="&$C99)) -> 77 | H99: =IF($N$1,SUMIFS(Stations!O:O,Stations!$C:$C,"="&$C99,Stations!$W:$W,"=No"),SUMIFS(Stations!O:O,Stations!$C:$C,"="&$C99)) -> 27 | I99: =IF($N$1,SUMIFS(Stations!Q:Q,Stations!$C:$C,"="&$C99,Stations!$W:$W,"=No"),SUMIFS(Stations!Q:Q,Stations!$C:$C,"="&$C99)) -> 104 | J99: =IF($N$1,SUMIFS(Stations!S:S,Stations!$C:$C,"="&$C99,Stations!$W:$W,"=No"),SUMIFS(Stations!S:S,Stations!$C:$C,"="&$C99)) -> 33 | K99: =IF($N$1,SUMIFS(Stations!U:U,Stations!$C:$C,"="&$C99,Stations!$W:$W,"=No"),SUMIFS(Stations!U:U,Stations!$C:$C,"="&$C99)) -> 13
C100: OK | D100: Oklahoma | F100: =IF($N$1,SUMIFS(Stations!L:L,Stations!$C:$C,"="&$C100,Stations!$W:$W,"=No"),SUMIFS(Stations!L:L,Stations!$C:$C,"="&$C100)) -> 155 | G100: =IF($N$1,SUMIFS(Stations!M:M,Stations!$C:$C,"="&$C100,Stations!$W:$W,"=No"),SUMIFS(Stations!M:M,Stations!$C:$C,"="&$C100)) -> 12 | H100: =IF($N$1,SUMIFS(Stations!O:O,Stations!$C:$C,"="&$C100,Stations!$W:$W,"=No"),SUMIFS(Stations!O:O,Stations!$C:$C,"="&$C100)) -> 0 | I100: =IF($N$1,SUMIFS(Stations!Q:Q,Stations!$C:$C,"="&$C100,Stations!$W:$W,"=No"),SUMIFS(Stations!Q:Q,Stations!$C:$C,"="&$C100)) -> 12 | J100: =IF($N$1,SUMIFS(Stations!S:S,Stations!$C:$C,"="&$C100,Stations!$W:$W,"=No"),SUMIFS(Stations!S:S,Stations!$C:$C,"="&$C100)) -> 0 | K100: =IF($N$1,SUMIFS(Stations!U:U,Stations!$C:$C,"="&$C100,Stations!$W:$W,"=No"),SUMIFS(Stations!U:U,Stations!$C:$C,"="&$C100)) -> 0
C101: OR | D101: Oregon | F101: =IF($N$1,SUMIFS(Stations!L:L,Stations!$C:$C,"="&$C101,Stations!$W:$W,"=No"),SUMIFS(Stations!L:L,Stations!$C:$C,"="&$C101)) -> 890 | G101: =IF($N$1,SUMIFS(Stations!M:M,Stations!$C:$C,"="&$C101,Stations!$W:$W,"=No"),SUMIFS(Stations!M:M,Stations!$C:$C,"="&$C101)) -> 82 | H101: =IF($N$1,SUMIFS(Stations!O:O,Stations!$C:$C,"="&$C101,Stations!$W:$W,"=No"),SUMIFS(Stations!O:O,Stations!$C:$C,"="&$C101)) -> 0 | I101: =IF($N$1,SUMIFS(Stations!Q:Q,Stations!$C:$C,"="&$C101,Stations!$W:$W,"=No"),SUMIFS(Stations!Q:Q,Stations!$C:$C,"="&$C101)) -> 82 | J101: =IF($N$1,SUMIFS(Stations!S:S,Stations!$C:$C,"="&$C101,Stations!$W:$W,"=No"),SUMIFS(Stations!S:S,Stations!$C:$C,"="&$C101)) -> 13 | K101: =IF($N$1,SUMIFS(Stations!U:U,Stations!$C:$C,"="&$C101,Stations!$W:$W,"=No"),SUMIFS(Stations!U:U,Stations!$C:$C,"="&$C101)) -> 0
C102: PA | D102: Pennsylvania | F102: =IF($N$1,SUMIFS(Stations!L:L,Stations!$C:$C,"="&$C102,Stations!$W:$W,"=No"),SUMIFS(Stations!L:L,Stations!$C:$C,"="&$C102)) -> 3331 | G102: =IF($N$1,SUMIFS(Stations!M:M,Stations!$C:$C,"="&$C102,Stations!$W:$W,"=No"),SUMIFS(Stations!M:M,Stations!$C:$C,"="&$C102)) -> 196 | H102: =IF($N$1,SUMIFS(Stations!O:O,Stations!$C:$C,"="&$C102,Stations!$W:$W,"=No"),SUMIFS(Stations!O:O,Stations!$C:$C,"="&$C102)) -> 174 | I102: =IF($N$1,SUMIFS(Stations!Q:Q,Stations!$C:$C,"="&$C102,Stations!$W:$W,"=No"),SUMIFS(Stations!Q:Q,Stations!$C:$C,"="&$C102)) -> 370 | J102: =IF($N$1,SUMIFS(Stations!S:S,Stations!$C:$C,"="&$C102,Stations!$W:$W,"=No"),SUMIFS(Stations!S:S,Stations!$C:$C,"="&$C102)) -> 150 | K102: =IF($N$1,SUMIFS(Stations!U:U,Stations!$C:$C,"="&$C102,Stations!$W:$W,"=No"),SUMIFS(Stations!U:U,Stations!$C:$C,"="&$C102)) -> 89
C103: PR | D103: Puerto Rico | F103: =IF($N$1,SUMIFS(Stations!L:L,Stations!$C:$C,"="&$C103,Stations!$W:$W,"=No"),SUMIFS(Stations!L:L,Stations!$C:$C,"="&$C103)) -> 340 | G103: =IF($N$1,SUMIFS(Stations!M:M,Stations!$C:$C,"="&$C103,Stations!$W:$W,"=No"),SUMIFS(Stations!M:M,Stations!$C:$C,"="&$C103)) -> 67 | H103: =IF($N$1,SUMIFS(Stations!O:O,Stations!$C:$C,"="&$C103,Stations!$W:$W,"=No"),SUMIFS(Stations!O:O,Stations!$C:$C,"="&$C103)) -> 0 | I103: =IF($N$1,SUMIFS(Stations!Q:Q,Stations!$C:$C,"="&$C103,Stations!$W:$W,"=No"),SUMIFS(Stations!Q:Q,Stations!$C:$C,"="&$C103)) -> 67 | J103: =IF($N$1,SUMIFS(Stations!S:S,Stations!$C:$C,"="&$C103,Stations!$W:$W,"=No"),SUMIFS(Stations!S:S,Stations!$C:$C,"="&$C103)) -> 39 | K103: =IF($N$1,SUMIFS(Stations!U:U,Stations!$C:$C,"="&$C103,Stations!$W:$W,"=No"),SUMIFS(Stations!U:U,Stations!$C:$C,"="&$C103)) -> 55
C104: RI | D104: Rhode Island | F104: =IF($N$1,SUMIFS(Stations!L:L,Stations!$C:$C,"="&$C104,Stations!$W:$W,"=No"),SUMIFS(Stations!L:L,Stations!$C:$C,"="&$C104)) -> 196 | G104: =IF($N$1,SUMIFS(Stations!M:M,Stations!$C:$C,"="&$C104,Stations!$W:$W,"=No"),SUMIFS(Stations!M:M,Stations!$C:$C,"="&$C104)) -> 1 | H104: =IF($N$1,SUMIFS(Stations!O:O,Stations!$C:$C,"="&$C104,Stations!$W:$W,"=No"),SUMIFS(Stations!O:O,Stations!$C:$C,"="&$C104)) -> 0 | I104: =IF($N$1,SUMIFS(Stations!Q:Q,Stations!$C:$C,"="&$C104,Stations!$W:$W,"=No"),SUMIFS(Stations!Q:Q,Stations!$C:$C,"="&$C104)) -> 1 | J104: =IF($N$1,SUMIFS(Stations!S:S,Stations!$C:$C,"="&$C104,Stations!$W:$W,"=No"),SUMIFS(Stations!S:S,Stations!$C:$C,"="&$C104)) -> 0 | K104: =IF($N$1,SUMIFS(Stations!U:U,Stations!$C:$C,"="&$C104,Stations!$W:$W,"=No"),SUMIFS(Stations!U:U,Stations!$C:$C,"="&$C104)) -> 0
C105: SC | D105: South Carolina | F105: =IF($N$1,SUMIFS(Stations!L:L,Stations!$C:$C,"="&$C105,Stations!$W:$W,"=No"),SUMIFS(Stations!L:L,Stations!$C:$C,"="&$C105)) -> 241 | G105: =IF($N$1,SUMIFS(Stations!M:M,Stations!$C:$C,"="&$C105,Stations!$W:$W,"=No"),SUMIFS(Stations!M:M,Stations!$C:$C,"="&$C105)) -> 9 | H105: =IF($N$1,SUMIFS(Stations!O:O,Stations!$C:$C,"="&$C105,Stations!$W:$W,"=No"),SUMIFS(Stations!O:O,Stations!$C:$C,"="&$C105)) -> 0 | I105: =IF($N$1,SUMIFS(Stations!Q:Q,Stations!$C:$C,"="&$C105,Stations!$W:$W,"=No"),SUMIFS(Stations!Q:Q,Stations!$C:$C,"="&$C105)) -> 9 | J105: =IF($N$1,SUMIFS(Stations!S:S,Stations!$C:$C,"="&$C105,Stations!$W:$W,"=No"),SUMIFS(Stations!S:S,Stations!$C:$C,"="&$C105)) -> 1 | K105: =IF($N$1,SUMIFS(Stations!U:U,Stations!$C:$C,"="&$C105,Stations!$W:$W,"=No"),SUMIFS(Stations!U:U,Stations!$C:$C,"="&$C105)) -> 0
C106: SD | D106: South Dakota | F106: =IF($N$1,SUMIFS(Stations!L:L,Stations!$C:$C,"="&$C106,Stations!$W:$W,"=No"),SUMIFS(Stations!L:L,Stations!$C:$C,"="&$C106)) -> 42 | G106: =IF($N$1,SUMIFS(Stations!M:M,Stations!$C:$C,"="&$C106,Stations!$W:$W,"=No"),SUMIFS(Stations!M:M,Stations!$C:$C,"="&$C106)) -> 2 | H106: =IF($N$1,SUMIFS(Stations!O:O,Stations!$C:$C,"="&$C106,Stations!$W:$W,"=No"),SUMIFS(Stations!O:O,Stations!$C:$C,"="&$C106)) -> 0 | I106: =IF($N$1,SUMIFS(Stations!Q:Q,Stations!$C:$C,"="&$C106,Stations!$W:$W,"=No"),SUMIFS(Stations!Q:Q,Stations!$C:$C,"="&$C106)) -> 2 | J106: =IF($N$1,SUMIFS(Stations!S:S,Stations!$C:$C,"="&$C106,Stations!$W:$W,"=No"),SUMIFS(Stations!S:S,Stations!$C:$C,"="&$C106)) -> 0 | K106: =IF($N$1,SUMIFS(Stations!U:U,Stations!$C:$C,"="&$C106,Stations!$W:$W,"=No"),SUMIFS(Stations!U:U,Stations!$C:$C,"="&$C106)) -> 0
C107: TN | D107: Tennessee | F107: =IF($N$1,SUMIFS(Stations!L:L,Stations!$C:$C,"="&$C107,Stations!$W:$W,"=No"),SUMIFS(Stations!L:L,Stations!$C:$C,"="&$C107)) -> 459 | G107: =IF($N$1,SUMIFS(Stations!M:M,Stations!$C:$C,"="&$C107,Stations!$W:$W,"=No"),SUMIFS(Stations!M:M,Stations!$C:$C,"="&$C107)) -> 30 | H107: =IF($N$1,SUMIFS(Stations!O:O,Stations!$C:$C,"="&$C107,Stations!$W:$W,"=No"),SUMIFS(Stations!O:O,Stations!$C:$C,"="&$C107)) -> 0 | I107: =IF($N$1,SUMIFS(Stations!Q:Q,Stations!$C:$C,"="&$C107,Stations!$W:$W,"=No"),SUMIFS(Stations!Q:Q,Stations!$C:$C,"="&$C107)) -> 30 | J107: =IF($N$1,SUMIFS(Stations!S:S,Stations!$C:$C,"="&$C107,Stations!$W:$W,"=No"),SUMIFS(Stations!S:S,Stations!$C:$C,"="&$C107)) -> 10 | K107: =IF($N$1,SUMIFS(Stations!U:U,Stations!$C:$C,"="&$C107,Stations!$W:$W,"=No"),SUMIFS(Stations!U:U,Stations!$C:$C,"="&$C107)) -> 4
C108: TX | D108: Texas | F108: =IF($N$1,SUMIFS(Stations!L:L,Stations!$C:$C,"="&$C108,Stations!$W:$W,"=No"),SUMIFS(Stations!L:L,Stations!$C:$C,"="&$C108)) -> 3328 | G108: =IF($N$1,SUMIFS(Stations!M:M,Stations!$C:$C,"="&$C108,Stations!$W:$W,"=No"),SUMIFS(Stations!M:M,Stations!$C:$C,"="&$C108)) -> 347 | H108: =IF($N$1,SUMIFS(Stations!O:O,Stations!$C:$C,"="&$C108,Stations!$W:$W,"=No"),SUMIFS(Stations!O:O,Stations!$C:$C,"="&$C108)) -> 2 | I108: =IF($N$1,SUMIFS(Stations!Q:Q,Stations!$C:$C,"="&$C108,Stations!$W:$W,"=No"),SUMIFS(Stations!Q:Q,Stations!$C:$C,"="&$C108)) -> 349 | J108: =IF($N$1,SUMIFS(Stations!S:S,Stations!$C:$C,"="&$C108,Stations!$W:$W,"=No"),SUMIFS(Stations!S:S,Stations!$C:$C,"="&$C108)) -> 65 | K108: =IF($N$1,SUMIFS(Stations!U:U,Stations!$C:$C,"="&$C108,Stations!$W:$W,"=No"),SUMIFS(Stations!U:U,Stations!$C:$C,"="&$C108)) -> 16
C109: UT | D109: Utah | F109: =IF($N$1,SUMIFS(Stations!L:L,Stations!$C:$C,"="&$C109,Stations!$W:$W,"=No"),SUMIFS(Stations!L:L,Stations!$C:$C,"="&$C109)) -> 601 | G109: =IF($N$1,SUMIFS(Stations!M:M,Stations!$C:$C,"="&$C109,Stations!$W:$W,"=No"),SUMIFS(Stations!M:M,Stations!$C:$C,"="&$C109)) -> 103 | H109: =IF($N$1,SUMIFS(Stations!O:O,Stations!$C:$C,"="&$C109,Stations!$W:$W,"=No"),SUMIFS(Stations!O:O,Stations!$C:$C,"="&$C109)) -> 0 | I109: =IF($N$1,SUMIFS(Stations!Q:Q,Stations!$C:$C,"="&$C109,Stations!$W:$W,"=No"),SUMIFS(Stations!Q:Q,Stations!$C:$C,"="&$C109)) -> 103 | J109: =IF($N$1,SUMIFS(Stations!S:S,Stations!$C:$C,"="&$C109,Stations!$W:$W,"=No"),SUMIFS(Stations!S:S,Stations!$C:$C,"="&$C109)) -> 12 | K109: =IF($N$1,SUMIFS(Stations!U:U,Stations!$C:$C,"="&$C109,Stations!$W:$W,"=No"),SUMIFS(Stations!U:U,Stations!$C:$C,"="&$C109)) -> 2
C110: VA | D110: Virginia | F110: =IF($N$1,SUMIFS(Stations!L:L,Stations!$C:$C,"="&$C110,Stations!$W:$W,"=No"),SUMIFS(Stations!L:L,Stations!$C:$C,"="&$C110)) -> 1247 | G110: =IF($N$1,SUMIFS(Stations!M:M,Stations!$C:$C,"="&$C110,Stations!$W:$W,"=No"),SUMIFS(Stations!M:M,Stations!$C:$C,"="&$C110)) -> 67 | H110: =IF($N$1,SUMIFS(Stations!O:O,Stations!$C:$C,"="&$C110,Stations!$W:$W,"=No"),SUMIFS(Stations!O:O,Stations!$C:$C,"="&$C110)) -> 1 | I110: =IF($N$1,SUMIFS(Stations!Q:Q,Stations!$C:$C,"="&$C110,Stations!$W:$W,"=No"),SUMIFS(Stations!Q:Q,Stations!$C:$C,"="&$C110)) -> 68 | J110: =IF($N$1,SUMIFS(Stations!S:S,Stations!$C:$C,"="&$C110,Stations!$W:$W,"=No"),SUMIFS(Stations!S:S,Stations!$C:$C,"="&$C110)) -> 12 | K110: =IF($N$1,SUMIFS(Stations!U:U,Stations!$C:$C,"="&$C110,Stations!$W:$W,"=No"),SUMIFS(Stations!U:U,Stations!$C:$C,"="&$C110)) -> 0
C111: VI | D111: Virgin Islands | F111: =IF($N$1,SUMIFS(Stations!L:L,Stations!$C:$C,"="&$C111,Stations!$W:$W,"=No"),SUMIFS(Stations!L:L,Stations!$C:$C,"="&$C111)) -> 16 | G111: =IF($N$1,SUMIFS(Stations!M:M,Stations!$C:$C,"="&$C111,Stations!$W:$W,"=No"),SUMIFS(Stations!M:M,Stations!$C:$C,"="&$C111)) -> 0 | H111: =IF($N$1,SUMIFS(Stations!O:O,Stations!$C:$C,"="&$C111,Stations!$W:$W,"=No"),SUMIFS(Stations!O:O,Stations!$C:$C,"="&$C111)) -> 0 | I111: =IF($N$1,SUMIFS(Stations!Q:Q,Stations!$C:$C,"="&$C111,Stations!$W:$W,"=No"),SUMIFS(Stations!Q:Q,Stations!$C:$C,"="&$C111)) -> 0 | J111: =IF($N$1,SUMIFS(Stations!S:S,Stations!$C:$C,"="&$C111,Stations!$W:$W,"=No"),SUMIFS(Stations!S:S,Stations!$C:$C,"="&$C111)) -> 1 | K111: =IF($N$1,SUMIFS(Stations!U:U,Stations!$C:$C,"="&$C111,Stations!$W:$W,"=No"),SUMIFS(Stations!U:U,Stations!$C:$C,"="&$C111)) -> 0
C112: VT | D112: Vermont | F112: =IF($N$1,SUMIFS(Stations!L:L,Stations!$C:$C,"="&$C112,Stations!$W:$W,"=No"),SUMIFS(Stations!L:L,Stations!$C:$C,"="&$C112)) -> 54 | G112: =IF($N$1,SUMIFS(Stations!M:M,Stations!$C:$C,"="&$C112,Stations!$W:$W,"=No"),SUMIFS(Stations!M:M,Stations!$C:$C,"="&$C112)) -> 2 | H112: =IF($N$1,SUMIFS(Stations!O:O,Stations!$C:$C,"="&$C112,Stations!$W:$W,"=No"),SUMIFS(Stations!O:O,Stations!$C:$C,"="&$C112)) -> 0 | I112: =IF($N$1,SUMIFS(Stations!Q:Q,Stations!$C:$C,"="&$C112,Stations!$W:$W,"=No"),SUMIFS(Stations!Q:Q,Stations!$C:$C,"="&$C112)) -> 2 | J112: =IF($N$1,SUMIFS(Stations!S:S,Stations!$C:$C,"="&$C112,Stations!$W:$W,"=No"),SUMIFS(Stations!S:S,Stations!$C:$C,"="&$C112)) -> 0 | K112: =IF($N$1,SUMIFS(Stations!U:U,Stations!$C:$C,"="&$C112,Stations!$W:$W,"=No"),SUMIFS(Stations!U:U,Stations!$C:$C,"="&$C112)) -> 0
C113: WA | D113: Washington | F113: =IF($N$1,SUMIFS(Stations!L:L,Stations!$C:$C,"="&$C113,Stations!$W:$W,"=No"),SUMIFS(Stations!L:L,Stations!$C:$C,"="&$C113)) -> 2315 | G113: =IF($N$1,SUMIFS(Stations!M:M,Stations!$C:$C,"="&$C113,Stations!$W:$W,"=No"),SUMIFS(Stations!M:M,Stations!$C:$C,"="&$C113)) -> 173 | H113: =IF($N$1,SUMIFS(Stations!O:O,Stations!$C:$C,"="&$C113,Stations!$W:$W,"=No"),SUMIFS(Stations!O:O,Stations!$C:$C,"="&$C113)) -> 4 | I113: =IF($N$1,SUMIFS(Stations!Q:Q,Stations!$C:$C,"="&$C113,Stations!$W:$W,"=No"),SUMIFS(Stations!Q:Q,Stations!$C:$C,"="&$C113)) -> 177 | J113: =IF($N$1,SUMIFS(Stations!S:S,Stations!$C:$C,"="&$C113,Stations!$W:$W,"=No"),SUMIFS(Stations!S:S,Stations!$C:$C,"="&$C113)) -> 109 | K113: =IF($N$1,SUMIFS(Stations!U:U,Stations!$C:$C,"="&$C113,Stations!$W:$W,"=No"),SUMIFS(Stations!U:U,Stations!$C:$C,"="&$C113)) -> 92
C114: WI | D114: Wisconsin | F114: =IF($N$1,SUMIFS(Stations!L:L,Stations!$C:$C,"="&$C114,Stations!$W:$W,"=No"),SUMIFS(Stations!L:L,Stations!$C:$C,"="&$C114)) -> 822 | G114: =IF($N$1,SUMIFS(Stations!M:M,Stations!$C:$C,"="&$C114,Stations!$W:$W,"=No"),SUMIFS(Stations!M:M,Stations!$C:$C,"="&$C114)) -> 19 | H114: =IF($N$1,SUMIFS(Stations!O:O,Stations!$C:$C,"="&$C114,Stations!$W:$W,"=No"),SUMIFS(Stations!O:O,Stations!$C:$C,"="&$C114)) -> 0 | I114: =IF($N$1,SUMIFS(Stations!Q:Q,Stations!$C:$C,"="&$C114,Stations!$W:$W,"=No"),SUMIFS(Stations!Q:Q,Stations!$C:$C,"="&$C114)) -> 19 | J114: =IF($N$1,SUMIFS(Stations!S:S,Stations!$C:$C,"="&$C114,Stations!$W:$W,"=No"),SUMIFS(Stations!S:S,Stations!$C:$C,"="&$C114)) -> 5 | K114: =IF($N$1,SUMIFS(Stations!U:U,Stations!$C:$C,"="&$C114,Stations!$W:$W,"=No"),SUMIFS(Stations!U:U,Stations!$C:$C,"="&$C114)) -> 6
C115: WV | D115: West Virginia | F115: =IF($N$1,SUMIFS(Stations!L:L,Stations!$C:$C,"="&$C115,Stations!$W:$W,"=No"),SUMIFS(Stations!L:L,Stations!$C:$C,"="&$C115)) -> 217 | G115: =IF($N$1,SUMIFS(Stations!M:M,Stations!$C:$C,"="&$C115,Stations!$W:$W,"=No"),SUMIFS(Stations!M:M,Stations!$C:$C,"="&$C115)) -> 15 | H115: =IF($N$1,SUMIFS(Stations!O:O,Stations!$C:$C,"="&$C115,Stations!$W:$W,"=No"),SUMIFS(Stations!O:O,Stations!$C:$C,"="&$C115)) -> 0 | I115: =IF($N$1,SUMIFS(Stations!Q:Q,Stations!$C:$C,"="&$C115,Stations!$W:$W,"=No"),SUMIFS(Stations!Q:Q,Stations!$C:$C,"="&$C115)) -> 15 | J115: =IF($N$1,SUMIFS(Stations!S:S,Stations!$C:$C,"="&$C115,Stations!$W:$W,"=No"),SUMIFS(Stations!S:S,Stations!$C:$C,"="&$C115)) -> 12 | K115: =IF($N$1,SUMIFS(Stations!U:U,Stations!$C:$C,"="&$C115,Stations!$W:$W,"=No"),SUMIFS(Stations!U:U,Stations!$C:$C,"="&$C115)) -> 0
C116: WY | D116: Wyoming | F116: =IF($N$1,SUMIFS(Stations!L:L,Stations!$C:$C,"="&$C116,Stations!$W:$W,"=No"),SUMIFS(Stations!L:L,Stations!$C:$C,"="&$C116)) -> 16 | G116: =IF($N$1,SUMIFS(Stations!M:M,Stations!$C:$C,"="&$C116,Stations!$W:$W,"=No"),SUMIFS(Stations!M:M,Stations!$C:$C,"="&$C116)) -> 0 | H116: =IF($N$1,SUMIFS(Stations!O:O,Stations!$C:$C,"="&$C116,Stations!$W:$W,"=No"),SUMIFS(Stations!O:O,Stations!$C:$C,"="&$C116)) -> 0 | I116: =IF($N$1,SUMIFS(Stations!Q:Q,Stations!$C:$C,"="&$C116,Stations!$W:$W,"=No"),SUMIFS(Stations!Q:Q,Stations!$C:$C,"="&$C116)) -> 0 | J116: =IF($N$1,SUMIFS(Stations!S:S,Stations!$C:$C,"="&$C116,Stations!$W:$W,"=No"),SUMIFS(Stations!S:S,Stations!$C:$C,"="&$C116)) -> 0 | K116: =IF($N$1,SUMIFS(Stations!U:U,Stations!$C:$C,"="&$C116,Stations!$W:$W,"=No"),SUMIFS(Stations!U:U,Stations!$C:$C,"="&$C116)) -> 0
